Workbook

Sheet Student Entry
A1: Student Entry
A2: School # 1 Name: | B2: School # 2 Name: | C2: School # 3 Name:
A3: Columbia Heights | B3: Osseo-Maple Grove
A4: Student Names: | B4: Student Names: | C4: Student Names:
A5: Samantha Alexon | B5: Emily Barr
A6: Lily Dickson | B6: Heather Breidenbach
A7: Issy Rardin | B7: Holly Drazenovich
A8: Hannah Thalhuber | B8: Anna Ganser
A9: Shakila Hoke | B9: Danielle Hawes
A10: Ava Rosengren | B10: Elisabeth Heitzig
B11: Caroline LaBord
B12: Hannah Littel
B13: Gabriela Marick
B14: Elizabeth McBride
B15: Kelly McNamee
B16: Katelyn Moline
B17: Katherine Olsen
B18: Jessica Ruohoniemi
B19: Abigail Tollas
B20: Alexadra Trudeau
B21: Marie Vanderwarn
B22: Elena Vrba

Sheet Fig 1 Ballet Leg
B1: Figure #1: | C1: 101 R/L Ballet Leg, single, *right or *left
A2: # | B2: Degree of Difficulty | C2: Judge 1 | D2: Judge 2 | E2: Judge 3 | F2: Judge 4 | G2: Judge 5 | H2: Score | I2: Penalty
A3: =IF(Draw!E2=0,"",Draw!E2) -> 1 | B3: 1.6 | C3: 61 | D3: 62 | E3: 61 | H3: =IF(B3="","",IF(K3=5,(SUM(C3:G3)-MAX(C3:G3)-MIN(C3:G3))/3,IF(K3=4,(SUM(C3:G3)-MAX(C3:G3))/3,SUM(C3:G3)/3))*B3/7.6) -> 12.9122807 | K3: =COUNT(C3:G3) -> 3
A4: =IF(Draw!E3=0,"",Draw!E3) -> 2 | B4: =IF(A4="","",B$3) -> 1.6 | C4: 56 | D4: 60 | E4: 58 | H4: =IF(B4="","",IF(K4=5,(SUM(C4:G4)-MAX(C4:G4)-MIN(C4:G4))/3,IF(K4=4,(SUM(C4:G4)-MAX(C4:G4))/3,SUM(C4:G4)/3))*B4/7.6) -> 12.21052632 | K4: =COUNT(C4:G4) -> 3
A5: =IF(Draw!E4=0,"",Draw!E4) -> 3 | B5: 1.6 | H5: 0 | K5: 0
A6: =IF(Draw!E5=0,"",Draw!E5) -> 4 | B6: =IF(A6="","",B$3) -> 1.6 | C6: 57 | D6: 57 | E6: 58 | H6: =IF(B6="","",IF(K6=5,(SUM(C6:G6)-MAX(C6:G6)-MIN(C6:G6))/3,IF(K6=4,(SUM(C6:G6)-MAX(C6:G6))/3,SUM(C6:G6)/3))*B6/7.6) -> 12.07017544 | K6: 3
A7: =IF(Draw!E6=0,"",Draw!E6) -> 5 | B7: 1.6 | C7: 50 | D7: 52 | E7: 52 | H7: 10.80701754 | K7: 3
A8: =IF(Draw!E7=0,"",Draw!E7) -> 6 | B8: 1.6 | C8: 51 | D8: 50 | E8: 54 | H8: 10.87719298 | K8: 3
A9: =IF(Draw!E8=0,"",Draw!E8) -> 7 | B9: 1.6 | H9: 0 | K9: 0
A10: =IF(Draw!E9=0,"",Draw!E9) -> 8 | B10: 1.6 | C10: 62 | D10: 63 | E10: 65 | H10: 13.33333333 | K10: 3
A11: =IF(Draw!E10=0,"",Draw!E10) -> 9 | B11: 1.6 | C11: 46 | D11: 49 | E11: 50 | H11: 10.1754386 | K11: 3
A12: =IF(Draw!E11=0,"",Draw!E11) -> 10 | B12: 1.6 | C12: 54 | D12: 56 | E12: 57 | H12: 11.71929825 | K12: 3
A13: =IF(Draw!E12=0,"",Draw!E12) -> 11 | B13: 1.6 | C13: 49 | D13: 49 | E13: 46 | H13: 10.10526316 | K13: 3
A14: =IF(Draw!E13=0,"",Draw!E13) -> 12 | B14: 1.6 | C14: 50 | D14: 51 | E14: 49 | H14: 10.52631579 | K14: 3
A15: =IF(Draw!E14=0,"",Draw!E14) -> 13 | B15: 1.6 | C15: 57 | D15: 59 | E15: 60 | H15: 12.35087719 | K15: 3
A16: =IF(Draw!E15=0,"",Draw!E15) -> 14 | B16: 1.6 | C16: 47 | D16: 53 | E16: 46 | H16: 10.24561404 | K16: 3
A17: =IF(Draw!E16=0,"",Draw!E16) -> 15 | B17: 1.6 | C17: 56 | D17: 58 | E17: 58 | H17: 12.07017544 | K17: 3
A18: =IF(Draw!E17=0,"",Draw!E17) -> 16 | B18: 1.6 | C18: 59 | D18: 60 | E18: 59 | H18: 12.49122807 | K18: 3
A19: =IF(Draw!E18=0,"",Draw!E18) -> 17 | B19: 1.6 | C19: 55 | D19: 57 | E19: 56 | H19: 11.78947368 | K19: 3
A20: =IF(Draw!E19=0,"",Draw!E19) -> 18 | B20: 1.6 | C20: 49 | D20: 49 | E20: 49 | H20: 10.31578947 | K20: 3
A21: =IF(Draw!E20=0,"",Draw!E20) -> 19 | B21: 1.6 | H21: 0 | K21: 0
A22: =IF(Draw!E21=0,"",Draw!E21) -> 20 | B22: 1.6 | H22: 0 | K22: 0
A23: =IF(Draw!E22=0,"",Draw!E22) -> 21 | B23: 1.6 | C23: 47 | D23: 48 | E23: 47 | H23: 9.964912281 | K23: 3
A24: =IF(Draw!E23=0,"",Draw!E23) -> 22 | B24: 1.6 | C24: 61 | D24: 61 | E24: 62 | H24: 12.9122807 | K24: 3
A25: =IF(Draw!E24=0,"",Draw!E24) -> 23 | B25: 1.6 | C25: 50 | D25: 50 | E25: 43 | H25: 10.03508772 | K25: 3
A26: =IF(Draw!E25=0,"",Draw!E25) -> 24 | B26: 1.6 | C26: 55 | D26: 58 | E26: 56 | H26: 11.85964912 | K26: 3
A27: =IF(Draw!E26=0,"",Draw!E26) ->  | K27: 0
A28: =IF(Draw!E27=0,"",Draw!E27) ->  | K28: 0
A29: =IF(Draw!E28=0,"",Draw!E28) ->  | K29: 0
A30: =IF(Draw!E29=0,"",Draw!E29) ->  | E30: 214 | K30: 1
A31: 16 | B31: 1.6 | E31: 220 | H31: 15.43859649 | K31: 1
A32: =IF(Draw!E31=0,"",Draw!E31) ->  | E32: 226 | K32: 1
A33: 17 | B33: 1.6 | E33: 232 | H33: 16.28070175 | K33: 1
A34: =IF(Draw!E33=0,"",Draw!E33) ->  | D34: 237 | E34: 238 | K34: 2
A35: 18 | B35: 1.6 | D35: 243 | E35: 244 | H35: 34.1754386 | K35: 2
A36: =IF(Draw!E35=0,"",Draw!E35) ->  | D36: 249 | E36: 250 | K36: 2
A37: 19 | B37: 1.6 | D37: 255 | E37: 256 | H37: 35.85964912 | K37: 2
A38: =IF(Draw!E37=0,"",Draw!E37) ->  | D38: 261 | E38: 262 | K38: 2
A39: 20 | B39: 1.6 | D39: 267 | E39: 268 | H39: 37.54385965 | K39: 2
A40: =IF(Draw!E39=0,"",Draw!E39) ->  | D40: 273 | E40: 274 | K40: 2
A41: 21 | B41: 1.6 | D41: 279 | E41: 280 | H41: 39.22807018 | K41: 2
A42: =IF(Draw!E41=0,"",Draw!E41) ->  | D42: 285 | E42: 286 | K42: 2
A43: 22 | B43: 1.6 | D43: 291 | E43: 292 | H43: 40.9122807 | K43: 2
A44: =IF(Draw!E43=0,"",Draw!E43) ->  | D44: 297 | E44: 298 | K44: 2
A45: 23 | B45: 1.6 | D45: 303 | E45: 304 | H45: 42.59649123 | K45: 2
A46: =IF(Draw!E45=0,"",Draw!E45) ->  | D46: 309 | E46: 310 | K46: 2
A47: 24 | B47: 1.6 | D47: 315 | E47: 316 | H47: 44.28070175 | K47: 2
A48: =IF(Draw!E47=0,"",Draw!E47) ->  | D48: 321 | E48: 322 | K48: 2
A49: 25 | B49: 1.6 | D49: 327 | E49: 328 | H49: 45.96491228 | K49: 2
A50: =IF(Draw!E49=0,"",Draw!E49) ->  | D50: 333 | E50: 334 | K50: 2
A51: 26 | B51: 1.6 | D51: 339 | E51: 340 | H51: 47.64912281 | K51: 2
A52: =IF(Draw!E51=0,"",Draw!E51) ->  | D52: 345 | E52: 346 | K52: 2
A53: 27 | B53: 1.6 | D53: 351 | E53: 352 | H53: 49.33333333 | K53: 2
A54: =IF(Draw!E53=0,"",Draw!E53) ->  | D54: 357 | E54: 358 | K54: 2
A55: 28 | B55: 1.6 | D55: 363 | E55: 364 | H55: 51.01754386 | K55: 2
A56: =IF(Draw!E55=0,"",Draw!E55) ->  | D56: 369 | E56: 370 | K56: 2
A57: 29 | B57: 1.6 | D57: 375 | E57: 376 | H57: 52.70175439 | K57: 2
A58: =IF(Draw!E57=0,"",Draw!E57) ->  | D58: 381 | E58: 382 | K58: 2
A59: 30 | B59: 1.6 | D59: 387 | E59: 388 | H59: 54.38596491 | K59: 2
A60: =IF(Draw!E59=0,"",Draw!E59) ->  | D60: 393 | E60: 394 | K60: 2
A61: 31 | B61: 1.6 | D61: 399 | E61: 400 | H61: 56.07017544 | K61: 2
A62: =IF(Draw!E61=0,"",Draw!E61) ->  | D62: 405 | E62: 406 | K62: 2
A63: 32 | B63: 1.6 | D63: 411 | E63: 412 | H63: 57.75438596 | K63: 2
A64: =IF(Draw!E63=0,"",Draw!E63) ->  | D64: 417 | E64: 418 | K64: 2
A65: 33 | B65: 1.6 | D65: 423 | E65: 424 | H65: 59.43859649 | K65: 2
A66: =IF(Draw!E65=0,"",Draw!E65) ->  | D66: 429 | E66: 430 | K66: 2
A67: 34 | B67: 1.6 | D67: 435 | E67: 436 | H67: 61.12280702 | K67: 2
A68: =IF(Draw!E67=0,"",Draw!E67) ->  | D68: 441 | E68: 442 | K68: =COUNT(C68:G68) -> 2
A69: 35 | B69: 1.6 | D69: 447 | E69: 448 | H69: 62.80701754 | K69: 2
A70: =IF(Draw!E69=0,"",Draw!E69) ->  | B70: =IF(A70="","",B$3) ->  | D70: 453 | E70: 454 | H70: =IF(B70="","",IF(K70=5,(SUM(C70:G70)-MAX(C70:G70)-MIN(C70:G70))/3,IF(K70=4,(SUM(C70:G70)-MAX(C70:G70))/3,SUM(C70:G70)/3))*B70/7.6) ->  | K70: 2
A71: 36 | B71: 1.6 | D71: 459 | E71: 460 | H71: 64.49122807 | K71: 2
A72: =IF(Draw!E71=0,"",Draw!E71) ->  | D72: 465 | E72: 466 | K72: 2
A73: 37 | B73: 1.6 | D73: 471 | E73: 472 | H73: 66.1754386 | K73: 2
A74: =IF(Draw!E73=0,"",Draw!E73) ->  | D74: 477 | E74: 478 | K74: 2
A75: 38 | B75: 1.6 | C75: 341 | D75: 483 | E75: 484 | H75: 91.78947368 | K75: 3
A76: =IF(Draw!E75=0,"",Draw!E75) ->  | C76: 345 | D76: 489 | E76: 490 | K76: 3
A77: 39 | B77: 1.6 | C77: 349 | D77: 495 | E77: 496 | H77: 94.03508772 | K77: 3
A78: =IF(Draw!E77=0,"",Draw!E77) ->  | C78: 353 | D78: 501 | E78: 502 | K78: 3
A79: 40 | B79: 1.6 | C79: 357 | D79: 507 | E79: 508 | H79: 96.28070175 | K79: 3
A80: =IF(Draw!E79=0,"",Draw!E79) ->  | C80: 361 | D80: 513 | E80: 514 | K80: 3
A81: 41 | B81: 1.6 | C81: 365 | D81: 519 | E81: 520 | H81: 98.52631579 | K81: 3
A82: =IF(Draw!E81=0,"",Draw!E81) ->  | C82: 369 | D82: 525 | E82: 526 | K82: 3
A83: 42 | B83: 1.6 | C83: 373 | D83: 531 | E83: 532 | H83: 100.7719298 | K83: 3
A84: =IF(Draw!E83=0,"",Draw!E83) ->  | C84: 377 | D84: 537 | E84: 538 | K84: 3
A85: 43 | B85: 1.6 | C85: 381 | D85: 543 | E85: 544 | H85: 103.0175439 | K85: 3
A86: =IF(Draw!E85=0,"",Draw!E85) ->  | C86: 385 | D86: 549 | E86: 550 | K86: 3
A87: 44 | B87: 1.6 | C87: 389 | D87: 555 | E87: 556 | H87: 105.2631579 | K87: 3
A88: =IF(Draw!E87=0,"",Draw!E87) ->  | C88: 393 | D88: 561 | E88: 562 | K88: 3
A89: 45 | B89: 1.6 | C89: 397 | D89: 567 | E89: 568 | H89: 107.5087719 | K89: 3
A90: =IF(Draw!E89=0,"",Draw!E89) ->  | C90: 401 | D90: 573 | E90: 574 | K90: 3
A91: 46 | B91: 1.6 | C91: 405 | D91: 579 | E91: 580 | H91: 109.754386 | K91: 3
A92: =IF(Draw!E91=0,"",Draw!E91) ->  | C92: 409 | D92: 585 | E92: 586 | K92: 3
A93: 47 | B93: 1.6 | C93: 413 | D93: 591 | E93: 592 | H93: 112 | K93: 3
A94: =IF(Draw!E93=0,"",Draw!E93) ->  | C94: 417 | D94: 597 | E94: 598 | K94: 3
A95: 48 | B95: 1.6 | C95: 421 | D95: 603 | E95: 604 | H95: 114.245614 | K95: 3
A96: =IF(Draw!E95=0,"",Draw!E95) ->  | C96: 425 | D96: 609 | E96: 610 | K96: 3
A97: 49 | B97: 1.6 | C97: 429 | D97: 615 | E97: 616 | H97: 116.4912281 | K97: 3
A98: =IF(Draw!E97=0,"",Draw!E97) ->  | C98: 433 | D98: 621 | E98: 622 | K98: 3
A99: 50 | B99: 1.6 | C99: 437 | D99: 627 | E99: 628 | H99: 118.7368421 | K99: 3
A100: =IF(Draw!E99=0,"",Draw!E99) ->  | C100: 441 | D100: 633 | E100: 634 | K100: 3
A101: 51 | B101: 1.6 | C101: 445 | D101: 639 | E101: 640 | H101: 120.9824561 | K101: 3
A102: =IF(Draw!E101=0,"",Draw!E101) ->  | C102: 449 | D102: 645 | E102: 646 | K102: 3
A103: 52 | B103: 1.6 | C103: 453 | D103: 651 | E103: 652 | H103: 123.2280702 | K103: 3
A104: =IF(Draw!E103=0,"",Draw!E103) ->  | C104: 457 | D104: 657 | E104: 658 | K104: 3
A105: 53 | B105: 1.6 | C105: 461 | D105: 663 | E105: 664 | H105: 125.4736842 | K105: 3
A106: =IF(Draw!E105=0,"",Draw!E105) ->  | C106: 465 | D106: 669 | E106: 670 | K106: 3
A107: 54 | B107: 1.6 | C107: 469 | D107: 675 | E107: 676 | H107: 127.7192982 | K107: 3
A108: =IF(Draw!E107=0,"",Draw!E107) ->  | C108: 473 | D108: 681 | E108: 682 | K108: 3
A109: 55 | B109: 1.6 | C109: 477 | D109: 687 | E109: 688 | H109: 129.9649123 | K109: 3
A110: =IF(Draw!E109=0,"",Draw!E109) ->  | C110: 481 | D110: 693 | E110: 694 | K110: 3
A111: 56 | B111: 1.6 | C111: 485 | D111: 699 | E111: 700 | H111: 132.2105263 | K111: 3
A112: =IF(Draw!E111=0,"",Draw!E111) ->  | C112: 489 | D112: 705 | E112: 706 | K112: 3
A113: 57 | B113: 1.6 | C113: 493 | D113: 711 | E113: 712 | H113: 134.4561404 | K113: 3
A114: =IF(Draw!E113=0,"",Draw!E113) ->  | C114: 497 | D114: 717 | E114: 718 | K114: 3
A115: 58 | B115: 1.6 | C115: 501 | D115: 723 | E115: 724 | H115: 136.7017544 | K115: 3
A116: =IF(Draw!E115=0,"",Draw!E115) ->  | C116: 505 | D116: 729 | E116: 730 | K116: 3
A117: 59 | B117: 1.6 | C117: 509 | D117: 735 | E117: 736 | H117: 138.9473684 | K117: 3
A118: =IF(Draw!E117=0,"",Draw!E117) ->  | C118: 513 | D118: 741 | E118: 742 | K118: 3
A119: 60 | B119: 1.6 | C119: 517 | D119: 747 | E119: 748 | H119: 141.1929825 | K119: 3
A120: =IF(Draw!E119=0,"",Draw!E119) ->  | C120: 521 | D120: 753 | E120: 754 | K120: 3
A121: 61 | B121: 1.6 | C121: 525 | D121: 759 | E121: 760 | H121: 143.4385965 | K121: 3
A122: =IF(Draw!E121=0,"",Draw!E121) ->  | C122: 529 | D122: 765 | E122: 766 | K122: 3
A123: 62 | B123: 1.6 | C123: 533 | D123: 771 | E123: 772 | H123: 145.6842105 | K123: 3
A124: =IF(Draw!E123=0,"",Draw!E123) ->  | C124: 537 | D124: 777 | E124: 778 | K124: 3
A125: 63 | B125: 1.6 | C125: 541 | D125: 783 | E125: 784 | H125: 147.9298246 | K125: 3
A126: =IF(Draw!E125=0,"",Draw!E125) ->  | C126: 545 | D126: 789 | E126: 790 | K126: 3
A127: 64 | B127: 1.6 | C127: 549 | D127: 795 | E127: 796 | H127: 150.1754386 | K127: 3
A128: =IF(Draw!E127=0,"",Draw!E127) ->  | C128: 553 | D128: 801 | E128: 802 | K128: 3
A129: 65 | B129: 1.6 | C129: 557 | D129: 807 | E129: 808 | H129: 152.4210526 | K129: 3
A130: =IF(Draw!E129=0,"",Draw!E129) ->  | C130: 561 | D130: 813 | E130: 814 | K130: 3
A131: 66 | B131: 1.6 | C131: 565 | D131: 819 | E131: 820 | H131: 154.6666667 | K131: 3
A132: =IF(Draw!E131=0,"",Draw!E131) ->  | C132: 569 | D132: 825 | E132: 826 | K132: =COUNT(C132:G132) -> 3
A133: 67 | B133: 1.6 | C133: 573 | D133: 831 | E133: 832 | H133: 156.9122807 | K133: 3
A134: =IF(Draw!E133=0,"",Draw!E133) ->  | B134: =IF(A134="","",B$3) ->  | C134: 577 | D134: 837 | E134: 838 | H134: =IF(B134="","",IF(K134=5,(SUM(C134:G134)-MAX(C134:G134)-MIN(C134:G134))/3,IF(K134=4,(SUM(C134:G134)-MAX(C134:G134))/3,SUM(C134:G134)/3))*B134/7.6) ->  | K134: 3
A135: 68 | B135: 1.6 | C135: 581 | D135: 843 | E135: 844 | H135: 159.1578947 | K135: 3
A136: =IF(Draw!E135=0,"",Draw!E135) ->  | C136: 585 | D136: 849 | E136: 850 | K136: 3
A137: 69 | B137: 1.6 | C137: 589 | D137: 855 | E137: 856 | H137: 161.4035088 | K137: 3
A138: =IF(Draw!E137=0,"",Draw!E137) ->  | C138: 593 | D138: 861 | E138: 862 | K138: 3
A139: 70 | B139: 1.6 | C139: 597 | D139: 867 | E139: 868 | H139: 163.6491228 | K139: 3
A140: =IF(Draw!E139=0,"",Draw!E139) ->  | C140: 601 | D140: 873 | E140: 874 | K140: 3
A141: 71 | B141: 1.6 | C141: 605 | D141: 879 | E141: 880 | H141: 165.8947368 | K141: 3
A142: =IF(Draw!E141=0,"",Draw!E141) ->  | C142: 609 | D142: 885 | E142: 886 | K142: 3
A143: 72 | B143: 1.6 | C143: 613 | D143: 891 | E143: 892 | H143: 168.1403509 | K143: 3
A144: =IF(Draw!E143=0,"",Draw!E143) ->  | C144: 617 | D144: 897 | E144: 898 | K144: 3
A145: 73 | B145: 1.6 | C145: 621 | D145: 903 | E145: 904 | H145: 170.3859649 | K145: 3
A146: =IF(Draw!E145=0,"",Draw!E145) ->  | C146: 625 | D146: 909 | E146: 910 | K146: 3
A147: 74 | B147: 1.6 | C147: 629 | D147: 915 | E147: 916 | H147: 172.6315789 | K147: 3
A148: =IF(Draw!E147=0,"",Draw!E147) ->  | C148: 633 | D148: 921 | E148: 922 | K148: 3
A149: 75 | B149: 1.6 | C149: 637 | D149: 927 | E149: 928 | H149: 174.877193 | K149: 3
A150: =IF(Draw!E149=0,"",Draw!E149) ->  | C150: 641 | D150: 933 | E150: 934 | K150: 3

Sheet Fig 2 Barracuda
B1: Figure #2: | C1: 301 Barracuda
A2: # | B2: Degree of Difficulty | C2: Judge 1 | D2: Judge 2 | E2: Judge 3 | F2: Judge 4 | G2: Judge 5 | H2: Score | I2: Penalty
A3: =IF(Draw!E2=0,"",Draw!E2) -> 1 | B3: 2 | C3: 58 | D3: 60 | E3: 59 | H3: =IF(B3="","",IF(K3=5,(SUM(C3:G3)-MAX(C3:G3)-MIN(C3:G3))/3,IF(K3=4,(SUM(C3:G3)-MAX(C3:G3))/3,SUM(C3:G3)/3))*B3/7.6) -> 15.52631579 | K3: =COUNT(C3:G3) -> 3
A4: =IF(Draw!E3=0,"",Draw!E3) -> 2 | B4: =IF(A4="","",B$3) -> 2 | C4: 56 | D4: 55 | E4: 55 | H4: =IF(B4="","",IF(K4=5,(SUM(C4:G4)-MAX(C4:G4)-MIN(C4:G4))/3,IF(K4=4,(SUM(C4:G4)-MAX(C4:G4))/3,SUM(C4:G4)/3))*B4/7.6) -> 14.56140351 | K4: =COUNT(C4:G4) -> 3
A5: =IF(Draw!E4=0,"",Draw!E4) -> 3 | B5: 2 | H5: 0 | K5: 0
A6: =IF(Draw!E5=0,"",Draw!E5) -> 4 | B6: =IF(A6="","",B$3) -> 2 | C6: 52 | D6: 52 | E6: 54 | H6: =IF(B6="","",IF(K6=5,(SUM(C6:G6)-MAX(C6:G6)-MIN(C6:G6))/3,IF(K6=4,(SUM(C6:G6)-MAX(C6:G6))/3,SUM(C6:G6)/3))*B6/7.6) -> 13.85964912 | K6: 3
A7: =IF(Draw!E6=0,"",Draw!E6) -> 5 | B7: 2 | C7: 53 | D7: 53 | E7: 53 | H7: 13.94736842 | K7: 3
A8: =IF(Draw!E7=0,"",Draw!E7) -> 6 | B8: 2 | C8: 51 | D8: 49 | E8: 51 | H8: 13.24561404 | K8: 3
A9: =IF(Draw!E8=0,"",Draw!E8) -> 7 | B9: 2 | H9: 0 | K9: 0
A10: =IF(Draw!E9=0,"",Draw!E9) -> 8 | B10: 2 | C10: 56 | D10: 54 | E10: 59 | H10: 14.8245614 | K10: 3
A11: =IF(Draw!E10=0,"",Draw!E10) -> 9 | B11: 2 | C11: 55 | D11: 55 | E11: 54 | H11: 14.38596491 | K11: 3
A12: =IF(Draw!E11=0,"",Draw!E11) -> 10 | B12: 2 | C12: 51 | D12: 50 | E12: 48 | H12: 13.07017544 | K12: 3
A13: =IF(Draw!E12=0,"",Draw!E12) -> 11 | B13: 2 | C13: 48 | D13: 46 | E13: 46 | H13: 12.28070175 | K13: 3
A14: =IF(Draw!E13=0,"",Draw!E13) -> 12 | B14: 2 | C14: 53 | D14: 54 | E14: 52 | H14: 13.94736842 | K14: 3
A15: =IF(Draw!E14=0,"",Draw!E14) -> 13 | B15: 2 | C15: 55 | D15: 57 | E15: 58 | H15: 14.9122807 | I15: 1 | K15: 3
A16: =IF(Draw!E15=0,"",Draw!E15) -> 14 | B16: 2 | C16: 50 | D16: 48 | E16: 50 | H16: 12.98245614 | K16: 3
A17: =IF(Draw!E16=0,"",Draw!E16) -> 15 | B17: 2 | C17: 53 | D17: 56 | E17: 56 | H17: 14.47368421 | K17: 3
A18: =IF(Draw!E17=0,"",Draw!E17) -> 16 | B18: 2 | C18: 54 | D18: 57 | E18: 57 | H18: 14.73684211 | K18: 3
A19: =IF(Draw!E18=0,"",Draw!E18) -> 17 | B19: 2 | C19: 57 | D19: 58 | E19: 59 | H19: 15.26315789 | K19: 3
A20: =IF(Draw!E19=0,"",Draw!E19) -> 18 | B20: 2 | C20: 55 | D20: 56 | E20: 55 | H20: 14.56140351 | K20: 3
A21: =IF(Draw!E20=0,"",Draw!E20) -> 19 | B21: 2 | H21: 0 | K21: 0
A22: =IF(Draw!E21=0,"",Draw!E21) -> 20 | B22: 2 | H22: 0 | K22: 0
A23: =IF(Draw!E22=0,"",Draw!E22) -> 21 | B23: 2 | C23: 53 | D23: 50 | E23: 51 | H23: 13.50877193 | K23: 3
A24: =IF(Draw!E23=0,"",Draw!E23) -> 22 | B24: 2 | C24: 61 | D24: 63 | E24: 62 | H24: 16.31578947 | K24: 3
A25: =IF(Draw!E24=0,"",Draw!E24) -> 23 | B25: 2 | C25: 55 | D25: 54 | E25: 53 | H25: 14.21052632 | K25: 3
A26: =IF(Draw!E25=0,"",Draw!E25) -> 24 | B26: 2 | C26: 55 | D26: 57 | E26: 57 | H26: 14.8245614 | K26: 3
A27: =IF(Draw!E26=0,"",Draw!E26) ->  | K27: 0
A28: =IF(Draw!E27=0,"",Draw!E27) ->  | K28: 0
A29: =IF(Draw!E28=0,"",Draw!E28) ->  | C29: 306 | K29: 1
A30: =IF(Draw!E29=0,"",Draw!E29) ->  | C30: 316 | E30: 215 | F30: 214 | K30: 3
A31: =IF(Draw!E30=0,"",Draw!E30) ->  | C31: 326 | D31: 273 | E31: 221 | F31: 220 | K31: 4
A32: =IF(Draw!E31=0,"",Draw!E31) ->  | C32: 336 | D32: 281 | E32: 227 | F32: 226 | K32: 4
A33: =IF(Draw!E32=0,"",Draw!E32) ->  | C33: 346 | D33: 289 | E33: 233 | F33: 232 | K33: 4
A34: =IF(Draw!E33=0,"",Draw!E33) ->  | C34: 356 | D34: 297 | E34: 239 | F34: 238 | K34: 4
A35: =IF(Draw!E34=0,"",Draw!E34) ->  | C35: 366 | D35: 305 | E35: 245 | F35: 244 | K35: 4
A36: =IF(Draw!E35=0,"",Draw!E35) ->  | C36: 376 | D36: 313 | E36: 251 | F36: 250 | K36: 4
A37: =IF(Draw!E36=0,"",Draw!E36) ->  | C37: 386 | D37: 321 | E37: 257 | F37: 256 | K37: 4
A38: =IF(Draw!E37=0,"",Draw!E37) ->  | C38: 396 | D38: 329 | E38: 263 | F38: 262 | K38: 4
A39: =IF(Draw!E38=0,"",Draw!E38) ->  | C39: 406 | D39: 337 | E39: 269 | F39: 268 | K39: 4
A40: =IF(Draw!E39=0,"",Draw!E39) ->  | C40: 416 | D40: 345 | E40: 275 | F40: 274 | K40: 4
A41: =IF(Draw!E40=0,"",Draw!E40) ->  | C41: 426 | D41: 353 | E41: 281 | F41: 280 | K41: 4
A42: =IF(Draw!E41=0,"",Draw!E41) ->  | C42: 436 | D42: 361 | E42: 287 | F42: 286 | K42: 4
A43: =IF(Draw!E42=0,"",Draw!E42) ->  | C43: 446 | D43: 369 | E43: 293 | F43: 292 | K43: 4
A44: =IF(Draw!E43=0,"",Draw!E43) ->  | C44: 456 | D44: 377 | E44: 299 | F44: 298 | K44: 4
A45: =IF(Draw!E44=0,"",Draw!E44) ->  | C45: 466 | D45: 385 | E45: 305 | F45: 304 | K45: 4
A46: =IF(Draw!E45=0,"",Draw!E45) ->  | C46: 476 | D46: 393 | E46: 311 | F46: 310 | K46: 4
A47: =IF(Draw!E46=0,"",Draw!E46) ->  | C47: 486 | D47: 401 | E47: 317 | F47: 316 | K47: 4
A48: =IF(Draw!E47=0,"",Draw!E47) ->  | C48: 496 | D48: 409 | E48: 323 | F48: 322 | K48: 4
A49: =IF(Draw!E48=0,"",Draw!E48) ->  | C49: 506 | D49: 417 | E49: 329 | F49: 328 | K49: 4
A50: =IF(Draw!E49=0,"",Draw!E49) ->  | C50: 516 | D50: 425 | E50: 335 | F50: 334 | K50: 4
A51: =IF(Draw!E50=0,"",Draw!E50) ->  | C51: 526 | D51: 433 | E51: 341 | F51: 340 | K51: 4
A52: =IF(Draw!E51=0,"",Draw!E51) ->  | C52: 536 | D52: 441 | E52: 347 | F52: 346 | K52: 4
A53: =IF(Draw!E52=0,"",Draw!E52) ->  | C53: 546 | D53: 449 | E53: 353 | F53: 352 | K53: 4
A54: =IF(Draw!E53=0,"",Draw!E53) ->  | C54: 556 | D54: 457 | E54: 359 | F54: 358 | K54: 4
A55: =IF(Draw!E54=0,"",Draw!E54) ->  | C55: 566 | D55: 465 | E55: 365 | F55: 364 | K55: 4
A56: =IF(Draw!E55=0,"",Draw!E55) ->  | C56: 576 | D56: 473 | E56: 371 | F56: 370 | K56: 4
A57: =IF(Draw!E56=0,"",Draw!E56) ->  | C57: 586 | D57: 481 | E57: 377 | F57: 376 | K57: 4
A58: =IF(Draw!E57=0,"",Draw!E57) ->  | C58: 596 | D58: 489 | E58: 383 | F58: 382 | K58: 4
A59: =IF(Draw!E58=0,"",Draw!E58) ->  | C59: 606 | D59: 497 | E59: 389 | F59: 388 | K59: 4
A60: =IF(Draw!E59=0,"",Draw!E59) ->  | C60: 616 | D60: 505 | E60: 395 | F60: 394 | K60: 4
A61: =IF(Draw!E60=0,"",Draw!E60) ->  | C61: 626 | D61: 513 | E61: 401 | F61: 400 | K61: 4
A62: =IF(Draw!E61=0,"",Draw!E61) ->  | C62: 636 | D62: 521 | E62: 407 | F62: 406 | K62: 4
A63: =IF(Draw!E62=0,"",Draw!E62) ->  | C63: 646 | D63: 529 | E63: 413 | F63: 412 | K63: 4
A64: =IF(Draw!E63=0,"",Draw!E63) ->  | C64: 656 | D64: 537 | E64: 419 | F64: 418 | K64: 4
A65: =IF(Draw!E64=0,"",Draw!E64) ->  | C65: 666 | D65: 545 | E65: 425 | F65: 424 | K65: 4
A66: =IF(Draw!E65=0,"",Draw!E65) ->  | C66: 676 | D66: 553 | E66: 431 | F66: 430 | K66: 4
A67: =IF(Draw!E66=0,"",Draw!E66) ->  | C67: 686 | D67: 561 | E67: 437 | F67: 436 | K67: 4
A68: =IF(Draw!E67=0,"",Draw!E67) ->  | C68: 696 | D68: 569 | E68: 443 | F68: 442 | K68: =COUNT(C68:G68) -> 4
A69: =IF(Draw!E68=0,"",Draw!E68) ->  | C69: 706 | D69: 577 | E69: 449 | F69: 448 | K69: 4
A70: =IF(Draw!E69=0,"",Draw!E69) ->  | B70: =IF(A70="","",B$3) ->  | C70: 716 | D70: 585 | E70: 455 | F70: 454 | H70: =IF(B70="","",IF(K70=5,(SUM(C70:G70)-MAX(C70:G70)-MIN(C70:G70))/3,IF(K70=4,(SUM(C70:G70)-MAX(C70:G70))/3,SUM(C70:G70)/3))*B70/7.6) ->  | K70: 4
A71: =IF(Draw!E70=0,"",Draw!E70) ->  | C71: 726 | D71: 593 | E71: 461 | F71: 460 | K71: 4
A72: =IF(Draw!E71=0,"",Draw!E71) ->  | C72: 736 | D72: 601 | E72: 467 | F72: 466 | K72: 4
A73: =IF(Draw!E72=0,"",Draw!E72) ->  | C73: 746 | D73: 609 | E73: 473 | F73: 472 | K73: 4
A74: =IF(Draw!E73=0,"",Draw!E73) ->  | C74: 756 | D74: 617 | E74: 479 | F74: 478 | K74: 4
A75: =IF(Draw!E74=0,"",Draw!E74) ->  | C75: 766 | D75: 625 | E75: 485 | F75: 484 | K75: 4
A76: =IF(Draw!E75=0,"",Draw!E75) ->  | C76: 776 | D76: 633 | E76: 491 | F76: 490 | K76: 4
A77: =IF(Draw!E76=0,"",Draw!E76) ->  | C77: 786 | D77: 641 | E77: 497 | F77: 496 | K77: 4
A78: =IF(Draw!E77=0,"",Draw!E77) ->  | C78: 796 | D78: 649 | E78: 503 | F78: 502 | K78: 4
A79: =IF(Draw!E78=0,"",Draw!E78) ->  | C79: 806 | D79: 657 | E79: 509 | F79: 508 | K79: 4
A80: =IF(Draw!E79=0,"",Draw!E79) ->  | C80: 816 | D80: 665 | E80: 515 | F80: 514 | K80: 4
A81: =IF(Draw!E80=0,"",Draw!E80) ->  | C81: 826 | D81: 673 | E81: 521 | F81: 520 | K81: 4
A82: =IF(Draw!E81=0,"",Draw!E81) ->  | C82: 836 | D82: 681 | E82: 527 | F82: 526 | K82: 4
A83: =IF(Draw!E82=0,"",Draw!E82) ->  | C83: 846 | D83: 689 | E83: 533 | F83: 532 | K83: 4
A84: =IF(Draw!E83=0,"",Draw!E83) ->  | C84: 856 | D84: 697 | E84: 539 | F84: 538 | K84: 4
A85: =IF(Draw!E84=0,"",Draw!E84) ->  | C85: 866 | D85: 705 | E85: 545 | F85: 544 | K85: 4
A86: =IF(Draw!E85=0,"",Draw!E85) ->  | C86: 876 | D86: 713 | E86: 551 | F86: 550 | K86: 4
A87: =IF(Draw!E86=0,"",Draw!E86) ->  | C87: 886 | D87: 721 | E87: 557 | F87: 556 | K87: 4
A88: =IF(Draw!E87=0,"",Draw!E87) ->  | C88: 896 | D88: 729 | E88: 563 | F88: 562 | K88: 4
A89: =IF(Draw!E88=0,"",Draw!E88) ->  | C89: 906 | D89: 737 | E89: 569 | F89: 568 | K89: 4
A90: =IF(Draw!E89=0,"",Draw!E89) ->  | C90: 916 | D90: 745 | E90: 575 | F90: 574 | K90: 4
A91: =IF(Draw!E90=0,"",Draw!E90) ->  | C91: 926 | D91: 753 | E91: 581 | F91: 580 | K91: 4
A92: =IF(Draw!E91=0,"",Draw!E91) ->  | C92: 936 | D92: 761 | E92: 587 | F92: 586 | K92: 4
A93: =IF(Draw!E92=0,"",Draw!E92) ->  | C93: 946 | D93: 769 | E93: 593 | F93: 592 | K93: 4
A94: =IF(Draw!E93=0,"",Draw!E93) ->  | C94: 956 | D94: 777 | E94: 599 | F94: 598 | K94: 4
A95: =IF(Draw!E94=0,"",Draw!E94) ->  | C95: 966 | D95: 785 | E95: 605 | F95: 604 | K95: 4
A96: =IF(Draw!E95=0,"",Draw!E95) ->  | C96: 976 | D96: 793 | E96: 611 | F96: 610 | K96: 4
A97: =IF(Draw!E96=0,"",Draw!E96) ->  | C97: 986 | D97: 801 | E97: 617 | F97: 616 | K97: 4
A98: =IF(Draw!E97=0,"",Draw!E97) ->  | C98: 996 | D98: 809 | E98: 623 | F98: 622 | K98: 4
A99: =IF(Draw!E98=0,"",Draw!E98) ->  | C99: 1006 | D99: 817 | E99: 629 | F99: 628 | K99: 4
A100: =IF(Draw!E99=0,"",Draw!E99) ->  | C100: 1016 | D100: 825 | E100: 635 | F100: 634 | K100: 4
A101: =IF(Draw!E100=0,"",Draw!E100) ->  | C101: 1026 | D101: 833 | E101: 641 | F101: 640 | K101: 4
A102: =IF(Draw!E101=0,"",Draw!E101) ->  | C102: 1036 | D102: 841 | E102: 647 | F102: 646 | K102: 4
A103: =IF(Draw!E102=0,"",Draw!E102) ->  | C103: 1046 | D103: 849 | E103: 653 | F103: 652 | K103: 4
A104: =IF(Draw!E103=0,"",Draw!E103) ->  | C104: 1056 | D104: 857 | E104: 659 | F104: 658 | K104: 4
A105: =IF(Draw!E104=0,"",Draw!E104) ->  | C105: 1066 | D105: 865 | E105: 665 | F105: 664 | K105: 4
A106: =IF(Draw!E105=0,"",Draw!E105) ->  | C106: 1076 | D106: 873 | E106: 671 | F106: 670 | K106: 4
A107: =IF(Draw!E106=0,"",Draw!E106) ->  | C107: 1086 | D107: 881 | E107: 677 | F107: 676 | K107: 4
A108: =IF(Draw!E107=0,"",Draw!E107) ->  | C108: 1096 | D108: 889 | E108: 683 | F108: 682 | K108: 4
A109: =IF(Draw!E108=0,"",Draw!E108) ->  | C109: 1106 | D109: 897 | E109: 689 | F109: 688 | K109: 4
A110: =IF(Draw!E109=0,"",Draw!E109) ->  | C110: 1116 | D110: 905 | E110: 695 | F110: 694 | K110: 4
A111: =IF(Draw!E110=0,"",Draw!E110) ->  | C111: 1126 | D111: 913 | E111: 701 | F111: 700 | K111: 4
A112: =IF(Draw!E111=0,"",Draw!E111) ->  | C112: 1136 | D112: 921 | E112: 707 | F112: 706 | K112: 4
A113: =IF(Draw!E112=0,"",Draw!E112) ->  | C113: 1146 | D113: 929 | E113: 713 | F113: 712 | K113: 4
A114: =IF(Draw!E113=0,"",Draw!E113) ->  | C114: 1156 | D114: 937 | E114: 719 | F114: 718 | K114: 4
A115: =IF(Draw!E114=0,"",Draw!E114) ->  | C115: 1166 | D115: 945 | E115: 725 | F115: 724 | K115: 4
A116: =IF(Draw!E115=0,"",Draw!E115) ->  | C116: 1176 | D116: 953 | E116: 731 | F116: 730 | K116: 4
A117: =IF(Draw!E116=0,"",Draw!E116) ->  | C117: 1186 | D117: 961 | E117: 737 | F117: 736 | K117: 4
A118: =IF(Draw!E117=0,"",Draw!E117) ->  | C118: 1196 | D118: 969 | E118: 743 | F118: 742 | K118: 4
A119: =IF(Draw!E118=0,"",Draw!E118) ->  | C119: 1206 | D119: 977 | E119: 749 | F119: 748 | K119: 4
A120: =IF(Draw!E119=0,"",Draw!E119) ->  | C120: 1216 | D120: 985 | E120: 755 | F120: 754 | K120: 4
A121: =IF(Draw!E120=0,"",Draw!E120) ->  | C121: 1226 | D121: 993 | E121: 761 | F121: 760 | K121: 4
A122: =IF(Draw!E121=0,"",Draw!E121) ->  | C122: 1236 | D122: 1001 | E122: 767 | F122: 766 | K122: 4
A123: =IF(Draw!E122=0,"",Draw!E122) ->  | C123: 1246 | D123: 1009 | E123: 773 | F123: 772 | K123: 4
A124: =IF(Draw!E123=0,"",Draw!E123) ->  | C124: 1256 | D124: 1017 | E124: 779 | F124: 778 | K124: 4
A125: =IF(Draw!E124=0,"",Draw!E124) ->  | C125: 1266 | D125: 1025 | E125: 785 | F125: 784 | K125: 4
A126: =IF(Draw!E125=0,"",Draw!E125) ->  | C126: 1276 | D126: 1033 | E126: 791 | F126: 790 | K126: 4
A127: =IF(Draw!E126=0,"",Draw!E126) ->  | C127: 1286 | D127: 1041 | E127: 797 | F127: 796 | K127: 4
A128: =IF(Draw!E127=0,"",Draw!E127) ->  | C128: 1296 | D128: 1049 | E128: 803 | F128: 802 | K128: 4
A129: =IF(Draw!E128=0,"",Draw!E128) ->  | C129: 1306 | D129: 1057 | E129: 809 | F129: 808 | K129: 4
A130: =IF(Draw!E129=0,"",Draw!E129) ->  | C130: 1316 | D130: 1065 | E130: 815 | F130: 814 | K130: 4
A131: =IF(Draw!E130=0,"",Draw!E130) ->  | C131: 1326 | D131: 1073 | E131: 821 | F131: 820 | K131: 4
A132: =IF(Draw!E131=0,"",Draw!E131) ->  | C132: 1336 | D132: 1081 | E132: 827 | F132: 826 | K132: =COUNT(C132:G132) -> 4
A133: =IF(Draw!E132=0,"",Draw!E132) ->  | C133: 1346 | D133: 1089 | E133: 833 | F133: 832 | K133: 4
A134: =IF(Draw!E133=0,"",Draw!E133) ->  | B134: =IF(A134="","",B$3) ->  | C134: 1356 | D134: 1097 | E134: 839 | F134: 838 | H134: =IF(B134="","",IF(K134=5,(SUM(C134:G134)-MAX(C134:G134)-MIN(C134:G134))/3,IF(K134=4,(SUM(C134:G134)-MAX(C134:G134))/3,SUM(C134:G134)/3))*B134/7.6) ->  | K134: 4
A135: =IF(Draw!E134=0,"",Draw!E134) ->  | C135: 1366 | D135: 1105 | E135: 845 | F135: 844 | K135: 4
A136: =IF(Draw!E135=0,"",Draw!E135) ->  | C136: 1376 | D136: 1113 | E136: 851 | F136: 850 | K136: 4
A137: =IF(Draw!E136=0,"",Draw!E136) ->  | C137: 1386 | D137: 1121 | E137: 857 | F137: 856 | K137: 4
A138: =IF(Draw!E137=0,"",Draw!E137) ->  | C138: 1396 | D138: 1129 | E138: 863 | F138: 862 | K138: 4
A139: =IF(Draw!E138=0,"",Draw!E138) ->  | C139: 1406 | D139: 1137 | E139: 869 | F139: 868 | K139: 4
A140: =IF(Draw!E139=0,"",Draw!E139) ->  | C140: 1416 | D140: 1145 | E140: 875 | F140: 874 | K140: 4
A141: =IF(Draw!E140=0,"",Draw!E140) ->  | C141: 1426 | D141: 1153 | E141: 881 | F141: 880 | K141: 4
A142: =IF(Draw!E141=0,"",Draw!E141) ->  | C142: 1436 | D142: 1161 | E142: 887 | F142: 886 | K142: 4
A143: =IF(Draw!E142=0,"",Draw!E142) ->  | C143: 1446 | D143: 1169 | E143: 893 | F143: 892 | K143: 4
A144: =IF(Draw!E143=0,"",Draw!E143) ->  | C144: 1456 | D144: 1177 | E144: 899 | F144: 898 | K144: 4
A145: =IF(Draw!E144=0,"",Draw!E144) ->  | C145: 1466 | D145: 1185 | E145: 905 | F145: 904 | K145: 4
A146: =IF(Draw!E145=0,"",Draw!E145) ->  | C146: 1476 | D146: 1193 | E146: 911 | F146: 910 | K146: 4
A147: =IF(Draw!E146=0,"",Draw!E146) ->  | C147: 1486 | D147: 1201 | E147: 917 | F147: 916 | K147: 4
A148: =IF(Draw!E147=0,"",Draw!E147) ->  | C148: 1496 | D148: 1209 | E148: 923 | F148: 922 | K148: 4
A149: =IF(Draw!E148=0,"",Draw!E148) ->  | C149: 1506 | D149: 1217 | E149: 929 | F149: 928 | K149: 4
A150: =IF(Draw!E149=0,"",Draw!E149) ->  | C150: 1516 | D150: 1225 | E150: 935 | F150: 934 | K150: 4

Sheet Fig 3 Neptunus
B1: Figure #3: | C1: 344 Neptunus
A2: # | B2: Degree of Difficulty | C2: Judge 1 | D2: Judge 2 | E2: Judge 3 | F2: Judge 4 | G2: Judge 5 | H2: Score | I2: Penalty
A3: =IF(Draw!E2=0,"",Draw!E2) -> 1 | B3: 1.8 | C3: 59 | D3: 60 | E3: 61 | H3: =IF(B3="","",IF(K3=5,(SUM(C3:G3)-MAX(C3:G3)-MIN(C3:G3))/3,IF(K3=4,(SUM(C3:G3)-MAX(C3:G3))/3,SUM(C3:G3)/3))*B3/7.6) -> 14.21052632 | K3: =COUNT(C3:G3) -> 3
A4: =IF(Draw!E3=0,"",Draw!E3) -> 2 | B4: =IF(A4="","",B$3) -> 1.8 | C4: 58 | D4: 58 | E4: 57 | H4: =IF(B4="","",IF(K4=5,(SUM(C4:G4)-MAX(C4:G4)-MIN(C4:G4))/3,IF(K4=4,(SUM(C4:G4)-MAX(C4:G4))/3,SUM(C4:G4)/3))*B4/7.6) -> 13.65789474 | K4: =COUNT(C4:G4) -> 3
A5: =IF(Draw!E4=0,"",Draw!E4) -> 3 | B5: 1.8 | H5: 0 | K5: 0
A6: =IF(Draw!E5=0,"",Draw!E5) -> 4 | B6: =IF(A6="","",B$3) -> 1.8 | C6: 50 | D6: 52 | E6: 53 | H6: =IF(B6="","",IF(K6=5,(SUM(C6:G6)-MAX(C6:G6)-MIN(C6:G6))/3,IF(K6=4,(SUM(C6:G6)-MAX(C6:G6))/3,SUM(C6:G6)/3))*B6/7.6) -> 12.23684211 | K6: 3
A7: =IF(Draw!E6=0,"",Draw!E6) -> 5 | B7: 1.8 | C7: 50 | D7: 53 | E7: 52 | H7: 12.23684211 | K7: 3
A8: =IF(Draw!E7=0,"",Draw!E7) -> 6 | B8: 1.8 | C8: 49 | D8: 48 | E8: 48 | H8: 11.44736842 | K8: 3
A9: =IF(Draw!E8=0,"",Draw!E8) -> 7 | B9: 1.8 | H9: 0 | K9: 0
A10: =IF(Draw!E9=0,"",Draw!E9) -> 8 | B10: 1.8 | C10: 58 | D10: 61 | E10: 61 | H10: 14.21052632 | K10: 3
A11: =IF(Draw!E10=0,"",Draw!E10) -> 9 | B11: 1.8 | C11: 52 | D11: 50 | E11: 55 | H11: 12.39473684 | K11: 3
A12: =IF(Draw!E11=0,"",Draw!E11) -> 10 | B12: 1.8 | C12: 54 | D12: 57 | E12: 56 | H12: 13.18421053 | K12: 3
A13: =IF(Draw!E12=0,"",Draw!E12) -> 11 | B13: 1.8 | C13: 46 | D13: 42 | E13: 46 | H13: 10.57894737 | K13: 3
A14: =IF(Draw!E13=0,"",Draw!E13) -> 12 | B14: 1.8 | C14: 51 | D14: 45 | E14: 52 | H14: 11.68421053 | K14: 3
A15: =IF(Draw!E14=0,"",Draw!E14) -> 13 | B15: 1.8 | C15: 53 | D15: 57 | E15: 54 | H15: 12.94736842 | K15: 3
A16: =IF(Draw!E15=0,"",Draw!E15) -> 14 | B16: 1.8 | C16: 50 | D16: 52 | E16: 51 | H16: 12.07894737 | K16: 3
A17: =IF(Draw!E16=0,"",Draw!E16) -> 15 | B17: 1.8 | C17: 53 | D17: 54 | E17: 58 | H17: 13.02631579 | K17: 3
A18: =IF(Draw!E17=0,"",Draw!E17) -> 16 | B18: 1.8 | C18: 53 | D18: 56 | E18: 55 | H18: 12.94736842 | K18: 3
A19: =IF(Draw!E18=0,"",Draw!E18) -> 17 | B19: 1.8 | C19: 52 | D19: 52 | E19: 56 | H19: 12.63157895 | K19: 3
A20: =IF(Draw!E19=0,"",Draw!E19) -> 18 | B20: 1.8 | C20: 50 | D20: 48 | E20: 47 | H20: 11.44736842 | K20: 3
A21: =IF(Draw!E20=0,"",Draw!E20) -> 19 | B21: 1.8 | H21: 0 | K21: 0
A22: =IF(Draw!E21=0,"",Draw!E21) -> 20 | B22: 1.8 | H22: 0 | K22: 0
A23: =IF(Draw!E22=0,"",Draw!E22) -> 21 | B23: 1.8 | C23: 47 | D23: 47 | E23: 46 | H23: 11.05263158 | K23: 3
A24: =IF(Draw!E23=0,"",Draw!E23) -> 22 | B24: 1.8 | C24: 60 | D24: 62 | E24: 64 | H24: 14.68421053 | K24: 3
A25: =IF(Draw!E24=0,"",Draw!E24) -> 23 | B25: 1.8 | C25: 57 | D25: 53 | E25: 53 | H25: 12.86842105 | K25: 3
A26: =IF(Draw!E25=0,"",Draw!E25) -> 24 | B26: 1.8 | C26: 56 | D26: 56 | E26: 57 | H26: 13.34210526 | K26: 3
A27: =IF(Draw!E26=0,"",Draw!E26) ->  | K27: 0
A28: =IF(Draw!E27=0,"",Draw!E27) ->  | K28: 0
A29: =IF(Draw!E28=0,"",Draw!E28) ->  | K29: 0
A30: =IF(Draw!E29=0,"",Draw!E29) ->  | C30: 86 | K30: 1
A31: =IF(Draw!E30=0,"",Draw!E30) ->  | C31: 87 | D31: 140 | E31: 272 | K31: 3
A32: =IF(Draw!E31=0,"",Draw!E31) ->  | C32: 88 | D32: 143 | E32: 280 | K32: 3
A33: =IF(Draw!E32=0,"",Draw!E32) ->  | C33: 89 | D33: 146 | E33: 288 | K33: 3
A34: =IF(Draw!E33=0,"",Draw!E33) ->  | C34: 90 | D34: 149 | E34: 296 | K34: 3
A35: =IF(Draw!E34=0,"",Draw!E34) ->  | C35: 91 | D35: 152 | E35: 304 | K35: 3
A36: =IF(Draw!E35=0,"",Draw!E35) ->  | C36: 92 | D36: 155 | E36: 312 | K36: 3
A37: =IF(Draw!E36=0,"",Draw!E36) ->  | C37: 93 | D37: 158 | E37: 320 | K37: 3
A38: =IF(Draw!E37=0,"",Draw!E37) ->  | C38: 94 | D38: 161 | E38: 328 | K38: 3
A39: =IF(Draw!E38=0,"",Draw!E38) ->  | C39: 95 | D39: 164 | E39: 336 | K39: 3
A40: =IF(Draw!E39=0,"",Draw!E39) ->  | C40: 96 | D40: 167 | E40: 344 | K40: 3
A41: =IF(Draw!E40=0,"",Draw!E40) ->  | C41: 97 | D41: 170 | E41: 352 | K41: 3
A42: =IF(Draw!E41=0,"",Draw!E41) ->  | C42: 98 | D42: 173 | E42: 360 | K42: 3
A43: =IF(Draw!E42=0,"",Draw!E42) ->  | C43: 99 | D43: 176 | E43: 368 | K43: 3
A44: =IF(Draw!E43=0,"",Draw!E43) ->  | C44: 100 | D44: 179 | E44: 376 | K44: 3
A45: =IF(Draw!E44=0,"",Draw!E44) ->  | C45: 101 | D45: 182 | E45: 384 | K45: 3
A46: =IF(Draw!E45=0,"",Draw!E45) ->  | C46: 102 | D46: 185 | E46: 392 | K46: 3
A47: =IF(Draw!E46=0,"",Draw!E46) ->  | C47: 103 | D47: 188 | E47: 400 | K47: 3
A48: =IF(Draw!E47=0,"",Draw!E47) ->  | C48: 104 | D48: 191 | E48: 408 | K48: 3
A49: =IF(Draw!E48=0,"",Draw!E48) ->  | C49: 105 | D49: 194 | E49: 416 | K49: 3
A50: =IF(Draw!E49=0,"",Draw!E49) ->  | C50: 106 | D50: 197 | E50: 424 | K50: 3
A51: =IF(Draw!E50=0,"",Draw!E50) ->  | C51: 107 | D51: 200 | E51: 432 | K51: 3
A52: =IF(Draw!E51=0,"",Draw!E51) ->  | C52: 108 | D52: 203 | E52: 440 | K52: 3
A53: =IF(Draw!E52=0,"",Draw!E52) ->  | C53: 109 | D53: 206 | E53: 448 | K53: 3
A54: =IF(Draw!E53=0,"",Draw!E53) ->  | C54: 110 | D54: 209 | E54: 456 | K54: 3
A55: =IF(Draw!E54=0,"",Draw!E54) ->  | C55: 111 | D55: 212 | E55: 464 | K55: 3
A56: =IF(Draw!E55=0,"",Draw!E55) ->  | C56: 112 | D56: 215 | E56: 472 | K56: 3
A57: =IF(Draw!E56=0,"",Draw!E56) ->  | C57: 113 | D57: 218 | E57: 480 | K57: 3
A58: =IF(Draw!E57=0,"",Draw!E57) ->  | C58: 114 | D58: 221 | E58: 488 | K58: 3
A59: =IF(Draw!E58=0,"",Draw!E58) ->  | C59: 115 | D59: 224 | E59: 496 | K59: 3
A60: =IF(Draw!E59=0,"",Draw!E59) ->  | C60: 116 | D60: 227 | E60: 504 | K60: 3
A61: =IF(Draw!E60=0,"",Draw!E60) ->  | C61: 117 | D61: 230 | E61: 512 | K61: 3
A62: =IF(Draw!E61=0,"",Draw!E61) ->  | C62: 118 | D62: 233 | E62: 520 | K62: 3
A63: =IF(Draw!E62=0,"",Draw!E62) ->  | C63: 119 | D63: 236 | E63: 528 | K63: 3
A64: =IF(Draw!E63=0,"",Draw!E63) ->  | C64: 120 | D64: 239 | E64: 536 | K64: 3
A65: =IF(Draw!E64=0,"",Draw!E64) ->  | C65: 121 | D65: 242 | E65: 544 | K65: 3
A66: =IF(Draw!E65=0,"",Draw!E65) ->  | C66: 122 | D66: 245 | E66: 552 | K66: 3
A67: =IF(Draw!E66=0,"",Draw!E66) ->  | C67: 123 | D67: 248 | E67: 560 | K67: 3
A68: =IF(Draw!E67=0,"",Draw!E67) ->  | C68: 124 | D68: 251 | E68: 568 | K68: =COUNT(C68:G68) -> 3
A69: =IF(Draw!E68=0,"",Draw!E68) ->  | C69: 125 | D69: 254 | E69: 576 | K69: 3
A70: =IF(Draw!E69=0,"",Draw!E69) ->  | B70: =IF(A70="","",B$3) ->  | C70: 126 | D70: 257 | E70: 584 | H70: =IF(B70="","",IF(K70=5,(SUM(C70:G70)-MAX(C70:G70)-MIN(C70:G70))/3,IF(K70=4,(SUM(C70:G70)-MAX(C70:G70))/3,SUM(C70:G70)/3))*B70/7.6) ->  | K70: 3
A71: =IF(Draw!E70=0,"",Draw!E70) ->  | C71: 127 | D71: 260 | E71: 592 | K71: 3
A72: =IF(Draw!E71=0,"",Draw!E71) ->  | C72: 128 | D72: 263 | E72: 600 | K72: 3
A73: =IF(Draw!E72=0,"",Draw!E72) ->  | C73: 129 | D73: 266 | E73: 608 | K73: 3
A74: =IF(Draw!E73=0,"",Draw!E73) ->  | C74: 130 | D74: 269 | E74: 616 | K74: 3
A75: =IF(Draw!E74=0,"",Draw!E74) ->  | C75: 131 | D75: 272 | E75: 624 | K75: 3
A76: =IF(Draw!E75=0,"",Draw!E75) ->  | C76: 132 | D76: 275 | E76: 632 | K76: 3
A77: =IF(Draw!E76=0,"",Draw!E76) ->  | C77: 133 | D77: 278 | E77: 640 | K77: 3
A78: =IF(Draw!E77=0,"",Draw!E77) ->  | C78: 134 | D78: 281 | E78: 648 | K78: 3
A79: =IF(Draw!E78=0,"",Draw!E78) ->  | C79: 135 | D79: 284 | E79: 656 | K79: 3
A80: =IF(Draw!E79=0,"",Draw!E79) ->  | C80: 136 | D80: 287 | E80: 664 | K80: 3
A81: =IF(Draw!E80=0,"",Draw!E80) ->  | C81: 137 | D81: 290 | E81: 672 | K81: 3
A82: =IF(Draw!E81=0,"",Draw!E81) ->  | C82: 138 | D82: 293 | E82: 680 | K82: 3
A83: =IF(Draw!E82=0,"",Draw!E82) ->  | C83: 139 | D83: 296 | E83: 688 | K83: 3
A84: =IF(Draw!E83=0,"",Draw!E83) ->  | C84: 140 | D84: 299 | E84: 696 | K84: 3
A85: =IF(Draw!E84=0,"",Draw!E84) ->  | C85: 141 | D85: 302 | E85: 704 | K85: 3
A86: =IF(Draw!E85=0,"",Draw!E85) ->  | C86: 142 | D86: 305 | E86: 712 | K86: 3
A87: =IF(Draw!E86=0,"",Draw!E86) ->  | C87: 143 | D87: 308 | E87: 720 | K87: 3
A88: =IF(Draw!E87=0,"",Draw!E87) ->  | C88: 144 | D88: 311 | E88: 728 | K88: 3
A89: =IF(Draw!E88=0,"",Draw!E88) ->  | C89: 145 | D89: 314 | E89: 736 | K89: 3
A90: =IF(Draw!E89=0,"",Draw!E89) ->  | C90: 146 | D90: 317 | E90: 744 | K90: 3
A91: =IF(Draw!E90=0,"",Draw!E90) ->  | C91: 147 | D91: 320 | E91: 752 | K91: 3
A92: =IF(Draw!E91=0,"",Draw!E91) ->  | C92: 148 | D92: 323 | E92: 760 | K92: 3
A93: =IF(Draw!E92=0,"",Draw!E92) ->  | C93: 149 | D93: 326 | E93: 768 | K93: 3
A94: =IF(Draw!E93=0,"",Draw!E93) ->  | C94: 150 | D94: 329 | E94: 776 | K94: 3
A95: =IF(Draw!E94=0,"",Draw!E94) ->  | C95: 151 | D95: 332 | E95: 784 | K95: 3
A96: =IF(Draw!E95=0,"",Draw!E95) ->  | C96: 152 | D96: 335 | E96: 792 | K96: 3
A97: =IF(Draw!E96=0,"",Draw!E96) ->  | C97: 153 | D97: 338 | E97: 800 | K97: 3
A98: =IF(Draw!E97=0,"",Draw!E97) ->  | C98: 154 | D98: 341 | E98: 808 | K98: 3
A99: =IF(Draw!E98=0,"",Draw!E98) ->  | C99: 155 | D99: 344 | E99: 816 | K99: 3
A100: =IF(Draw!E99=0,"",Draw!E99) ->  | C100: 156 | D100: 347 | E100: 824 | K100: 3
A101: =IF(Draw!E100=0,"",Draw!E100) ->  | C101: 157 | D101: 350 | E101: 832 | K101: 3
A102: =IF(Draw!E101=0,"",Draw!E101) ->  | C102: 158 | D102: 353 | E102: 840 | K102: 3
A103: =IF(Draw!E102=0,"",Draw!E102) ->  | C103: 159 | D103: 356 | E103: 848 | K103: 3
A104: =IF(Draw!E103=0,"",Draw!E103) ->  | C104: 160 | D104: 359 | E104: 856 | K104: 3
A105: =IF(Draw!E104=0,"",Draw!E104) ->  | C105: 161 | D105: 362 | E105: 864 | K105: 3
A106: =IF(Draw!E105=0,"",Draw!E105) ->  | C106: 162 | D106: 365 | E106: 872 | K106: 3
A107: =IF(Draw!E106=0,"",Draw!E106) ->  | C107: 163 | D107: 368 | E107: 880 | K107: 3
A108: =IF(Draw!E107=0,"",Draw!E107) ->  | C108: 164 | D108: 371 | E108: 888 | K108: 3
A109: =IF(Draw!E108=0,"",Draw!E108) ->  | C109: 165 | D109: 374 | E109: 896 | K109: 3
A110: =IF(Draw!E109=0,"",Draw!E109) ->  | C110: 166 | D110: 377 | E110: 904 | K110: 3
A111: =IF(Draw!E110=0,"",Draw!E110) ->  | C111: 167 | D111: 380 | E111: 912 | K111: 3
A112: =IF(Draw!E111=0,"",Draw!E111) ->  | C112: 168 | D112: 383 | E112: 920 | K112: 3
A113: =IF(Draw!E112=0,"",Draw!E112) ->  | C113: 169 | D113: 386 | E113: 928 | K113: 3
A114: =IF(Draw!E113=0,"",Draw!E113) ->  | C114: 170 | D114: 389 | E114: 936 | K114: 3
A115: =IF(Draw!E114=0,"",Draw!E114) ->  | C115: 171 | D115: 392 | E115: 944 | K115: 3
A116: =IF(Draw!E115=0,"",Draw!E115) ->  | C116: 172 | D116: 395 | E116: 952 | K116: 3
A117: =IF(Draw!E116=0,"",Draw!E116) ->  | C117: 173 | D117: 398 | E117: 960 | K117: 3
A118: =IF(Draw!E117=0,"",Draw!E117) ->  | C118: 174 | D118: 401 | E118: 968 | K118: 3
A119: =IF(Draw!E118=0,"",Draw!E118) ->  | C119: 175 | D119: 404 | E119: 976 | K119: 3
A120: =IF(Draw!E119=0,"",Draw!E119) ->  | C120: 176 | D120: 407 | E120: 984 | K120: 3
A121: =IF(Draw!E120=0,"",Draw!E120) ->  | C121: 177 | D121: 410 | E121: 992 | K121: 3
A122: =IF(Draw!E121=0,"",Draw!E121) ->  | C122: 178 | D122: 413 | E122: 1000 | K122: 3
A123: =IF(Draw!E122=0,"",Draw!E122) ->  | C123: 179 | D123: 416 | E123: 1008 | K123: 3
A124: =IF(Draw!E123=0,"",Draw!E123) ->  | C124: 180 | D124: 419 | E124: 1016 | K124: 3
A125: =IF(Draw!E124=0,"",Draw!E124) ->  | C125: 181 | D125: 422 | E125: 1024 | K125: 3
A126: =IF(Draw!E125=0,"",Draw!E125) ->  | C126: 182 | D126: 425 | E126: 1032 | K126: 3
A127: =IF(Draw!E126=0,"",Draw!E126) ->  | C127: 183 | D127: 428 | E127: 1040 | K127: 3
A128: =IF(Draw!E127=0,"",Draw!E127) ->  | C128: 184 | D128: 431 | E128: 1048 | K128: 3
A129: =IF(Draw!E128=0,"",Draw!E128) ->  | C129: 185 | D129: 434 | E129: 1056 | K129: 3
A130: =IF(Draw!E129=0,"",Draw!E129) ->  | C130: 186 | D130: 437 | E130: 1064 | K130: 3
A131: =IF(Draw!E130=0,"",Draw!E130) ->  | C131: 187 | D131: 440 | E131: 1072 | K131: 3
A132: =IF(Draw!E131=0,"",Draw!E131) ->  | C132: 188 | D132: 443 | E132: 1080 | K132: =COUNT(C132:G132) -> 3
A133: =IF(Draw!E132=0,"",Draw!E132) ->  | C133: 189 | D133: 446 | E133: 1088 | K133: 3
A134: =IF(Draw!E133=0,"",Draw!E133) ->  | B134: =IF(A134="","",B$3) ->  | C134: 190 | D134: 449 | E134: 1096 | H134: =IF(B134="","",IF(K134=5,(SUM(C134:G134)-MAX(C134:G134)-MIN(C134:G134))/3,IF(K134=4,(SUM(C134:G134)-MAX(C134:G134))/3,SUM(C134:G134)/3))*B134/7.6) ->  | K134: 3
A135: =IF(Draw!E134=0,"",Draw!E134) ->  | C135: 191 | D135: 452 | E135: 1104 | K135: 3
A136: =IF(Draw!E135=0,"",Draw!E135) ->  | C136: 192 | D136: 455 | E136: 1112 | K136: 3
A137: =IF(Draw!E136=0,"",Draw!E136) ->  | C137: 193 | D137: 458 | E137: 1120 | K137: 3
A138: =IF(Draw!E137=0,"",Draw!E137) ->  | C138: 194 | D138: 461 | E138: 1128 | K138: 3
A139: =IF(Draw!E138=0,"",Draw!E138) ->  | C139: 195 | D139: 464 | E139: 1136 | K139: 3
A140: =IF(Draw!E139=0,"",Draw!E139) ->  | C140: 196 | D140: 467 | E140: 1144 | K140: 3
A141: =IF(Draw!E140=0,"",Draw!E140) ->  | C141: 197 | D141: 470 | E141: 1152 | K141: 3
A142: =IF(Draw!E141=0,"",Draw!E141) ->  | C142: 198 | D142: 473 | E142: 1160 | K142: 3
A143: =IF(Draw!E142=0,"",Draw!E142) ->  | C143: 199 | D143: 476 | E143: 1168 | K143: 3
A144: =IF(Draw!E143=0,"",Draw!E143) ->  | C144: 200 | D144: 479 | E144: 1176 | K144: 3
A145: =IF(Draw!E144=0,"",Draw!E144) ->  | C145: 201 | D145: 482 | E145: 1184 | K145: 3
A146: =IF(Draw!E145=0,"",Draw!E145) ->  | C146: 202 | D146: 485 | E146: 1192 | K146: 3
A147: =IF(Draw!E146=0,"",Draw!E146) ->  | C147: 203 | D147: 488 | E147: 1200 | K147: 3
A148: =IF(Draw!E147=0,"",Draw!E147) ->  | C148: 204 | D148: 491 | E148: 1208 | K148: 3
A149: =IF(Draw!E148=0,"",Draw!E148) ->  | C149: 205 | D149: 494 | E149: 1216 | K149: 3
A150: =IF(Draw!E149=0,"",Draw!E149) ->  | C150: 206 | D150: 497 | E150: 1224 | K150: 3

Sheet Fig 4 Walkover
B1: Figure #4: | C1: 360 Walkover Front
A2: # | B2: Degree of Difficulty | C2: Judge 1 | D2: Judge 2 | E2: Judge 3 | F2: Judge 4 | G2: Judge 5 | H2: Score | I2: Penalty
A3: =IF(Draw!E2=0,"",Draw!E2) -> 1 | B3: 2.1 | C3: 58 | D3: 58 | E3: 61 | H3: =IF(B3="","",IF(K3=5,(SUM(C3:G3)-MAX(C3:G3)-MIN(C3:G3))/3,IF(K3=4,(SUM(C3:G3)-MAX(C3:G3))/3,SUM(C3:G3)/3))*B3/7.6) -> 16.30263158 | K3: =COUNT(C3:G3) -> 3
A4: =IF(Draw!E3=0,"",Draw!E3) -> 2 | B4: =IF(A4="","",B$3) -> 2.1 | C4: 53 | D4: 57 | E4: 57 | H4: =IF(B4="","",IF(K4=5,(SUM(C4:G4)-MAX(C4:G4)-MIN(C4:G4))/3,IF(K4=4,(SUM(C4:G4)-MAX(C4:G4))/3,SUM(C4:G4)/3))*B4/7.6) -> 15.38157895 | K4: =COUNT(C4:G4) -> 3
A5: =IF(Draw!E4=0,"",Draw!E4) -> 3 | B5: 2.1 | H5: 0 | K5: 0
A6: =IF(Draw!E5=0,"",Draw!E5) -> 4 | B6: =IF(A6="","",B$3) -> 2.1 | C6: 55 | D6: 56 | E6: 56 | H6: =IF(B6="","",IF(K6=5,(SUM(C6:G6)-MAX(C6:G6)-MIN(C6:G6))/3,IF(K6=4,(SUM(C6:G6)-MAX(C6:G6))/3,SUM(C6:G6)/3))*B6/7.6) -> 15.38157895 | K6: 3
A7: =IF(Draw!E6=0,"",Draw!E6) -> 5 | B7: 2.1 | C7: 54 | D7: 52 | E7: 50 | H7: 14.36842105 | K7: 3
A8: =IF(Draw!E7=0,"",Draw!E7) -> 6 | B8: 2.1 | C8: 54 | D8: 52 | E8: 53 | H8: 14.64473684 | K8: 3
A9: =IF(Draw!E8=0,"",Draw!E8) -> 7 | B9: 2.1 | H9: 0 | K9: 0
A10: =IF(Draw!E9=0,"",Draw!E9) -> 8 | B10: 2.1 | C10: 59 | D10: 59 | E10: 55 | H10: 15.93421053 | K10: 3
A11: =IF(Draw!E10=0,"",Draw!E10) -> 9 | B11: 2.1 | C11: 52 | D11: 50 | E11: 48 | H11: 13.81578947 | K11: 3
A12: =IF(Draw!E11=0,"",Draw!E11) -> 10 | B12: 2.1 | C12: 55 | D12: 55 | E12: 56 | H12: 15.28947368 | K12: 3
A13: =IF(Draw!E12=0,"",Draw!E12) -> 11 | B13: 2.1 | C13: 48 | D13: 47 | E13: 45 | H13: 12.89473684 | K13: 3
A14: =IF(Draw!E13=0,"",Draw!E13) -> 12 | B14: 2.1 | C14: 52 | D14: 46 | E14: 47 | H14: 13.35526316 | K14: 3
A15: =IF(Draw!E14=0,"",Draw!E14) -> 13 | B15: 2.1 | C15: 57 | D15: 59 | E15: 58 | H15: 16.02631579 | K15: 3
A16: =IF(Draw!E15=0,"",Draw!E15) -> 14 | B16: 2.1 | C16: 48 | D16: 45 | E16: 46 | H16: 12.80263158 | K16: 3
A17: =IF(Draw!E16=0,"",Draw!E16) -> 15 | B17: 2.1 | C17: 49 | D17: 51 | E17: 52 | H17: 14 | K17: 3
A18: =IF(Draw!E17=0,"",Draw!E17) -> 16 | B18: 2.1 | C18: 58 | D18: 58 | E18: 56 | H18: 15.84210526 | K18: 3
A19: =IF(Draw!E18=0,"",Draw!E18) -> 17 | B19: 2.1 | C19: 55 | D19: 57 | E19: 55 | H19: 15.38157895 | K19: 3
A20: =IF(Draw!E19=0,"",Draw!E19) -> 18 | B20: 2.1 | C20: 51 | D20: 50 | E20: 49 | H20: 13.81578947 | K20: 3
A21: =IF(Draw!E20=0,"",Draw!E20) -> 19 | B21: 2.1 | H21: 0 | K21: 0
A22: =IF(Draw!E21=0,"",Draw!E21) -> 20 | B22: 2.1 | H22: 0 | K22: 0
A23: =IF(Draw!E22=0,"",Draw!E22) -> 21 | B23: 2.1 | C23: 47 | D23: 44 | E23: 48 | H23: 12.80263158 | K23: 3
A24: =IF(Draw!E23=0,"",Draw!E23) -> 22 | B24: 2.1 | C24: 61 | D24: 60 | E24: 63 | H24: 16.94736842 | K24: 3
A25: =IF(Draw!E24=0,"",Draw!E24) -> 23 | B25: 2.1 | C25: 50 | D25: 50 | E25: 49 | H25: 13.72368421 | K25: 3
A26: =IF(Draw!E25=0,"",Draw!E25) -> 24 | B26: 2.1 | C26: 58 | D26: 60 | E26: 62 | H26: 16.57894737 | K26: 3
A27: =IF(Draw!E26=0,"",Draw!E26) ->  | K27: 0
A28: =IF(Draw!E27=0,"",Draw!E27) ->  | K28: 0
A29: =IF(Draw!E28=0,"",Draw!E28) ->  | K29: 0
A30: =IF(Draw!E29=0,"",Draw!E29) ->  | D30: 185 | E30: 214 | F30: 135 | K30: 3
A31: =IF(Draw!E30=0,"",Draw!E30) ->  | D31: 190 | E31: 220 | F31: 138 | K31: 3
A32: =IF(Draw!E31=0,"",Draw!E31) ->  | C32: 195 | D32: 195 | E32: 226 | F32: 141 | K32: 4
A33: =IF(Draw!E32=0,"",Draw!E32) ->  | C33: 200 | D33: 200 | E33: 232 | F33: 144 | K33: 4
A34: =IF(Draw!E33=0,"",Draw!E33) ->  | C34: 205 | D34: 205 | E34: 238 | F34: 147 | K34: 4
A35: =IF(Draw!E34=0,"",Draw!E34) ->  | C35: 210 | D35: 210 | E35: 244 | F35: 150 | K35: 4
A36: =IF(Draw!E35=0,"",Draw!E35) ->  | C36: 215 | D36: 215 | E36: 250 | F36: 153 | K36: 4
A37: =IF(Draw!E36=0,"",Draw!E36) ->  | C37: 220 | D37: 220 | E37: 256 | F37: 156 | K37: 4
A38: =IF(Draw!E37=0,"",Draw!E37) ->  | C38: 225 | D38: 225 | E38: 262 | F38: 159 | K38: 4
A39: =IF(Draw!E38=0,"",Draw!E38) ->  | C39: 230 | D39: 230 | E39: 268 | F39: 162 | K39: 4
A40: =IF(Draw!E39=0,"",Draw!E39) ->  | C40: 235 | D40: 235 | E40: 274 | F40: 165 | K40: 4
A41: =IF(Draw!E40=0,"",Draw!E40) ->  | C41: 240 | D41: 240 | E41: 280 | F41: 168 | K41: 4
A42: =IF(Draw!E41=0,"",Draw!E41) ->  | C42: 245 | D42: 245 | E42: 286 | F42: 171 | K42: 4
A43: =IF(Draw!E42=0,"",Draw!E42) ->  | C43: 250 | D43: 250 | E43: 292 | F43: 174 | K43: 4
A44: =IF(Draw!E43=0,"",Draw!E43) ->  | C44: 255 | D44: 255 | E44: 298 | F44: 177 | K44: 4
A45: =IF(Draw!E44=0,"",Draw!E44) ->  | C45: 260 | D45: 260 | E45: 304 | F45: 180 | K45: 4
A46: =IF(Draw!E45=0,"",Draw!E45) ->  | C46: 265 | D46: 265 | E46: 310 | F46: 183 | K46: 4
A47: =IF(Draw!E46=0,"",Draw!E46) ->  | C47: 270 | D47: 270 | E47: 316 | F47: 186 | K47: 4
A48: =IF(Draw!E47=0,"",Draw!E47) ->  | C48: 275 | D48: 275 | E48: 322 | F48: 189 | K48: 4
A49: =IF(Draw!E48=0,"",Draw!E48) ->  | C49: 280 | D49: 280 | E49: 328 | F49: 192 | K49: 4
A50: =IF(Draw!E49=0,"",Draw!E49) ->  | C50: 285 | D50: 285 | E50: 334 | F50: 195 | K50: 4
A51: =IF(Draw!E50=0,"",Draw!E50) ->  | C51: 290 | D51: 290 | E51: 340 | F51: 198 | K51: 4
A52: =IF(Draw!E51=0,"",Draw!E51) ->  | C52: 295 | D52: 295 | E52: 346 | F52: 201 | K52: 4
A53: =IF(Draw!E52=0,"",Draw!E52) ->  | C53: 300 | D53: 300 | E53: 352 | F53: 204 | K53: 4
A54: =IF(Draw!E53=0,"",Draw!E53) ->  | C54: 305 | D54: 305 | E54: 358 | F54: 207 | K54: 4
A55: =IF(Draw!E54=0,"",Draw!E54) ->  | C55: 310 | D55: 310 | E55: 364 | F55: 210 | K55: 4
A56: =IF(Draw!E55=0,"",Draw!E55) ->  | C56: 315 | D56: 315 | E56: 370 | F56: 213 | K56: 4
A57: =IF(Draw!E56=0,"",Draw!E56) ->  | C57: 320 | D57: 320 | E57: 376 | F57: 216 | K57: 4
A58: =IF(Draw!E57=0,"",Draw!E57) ->  | C58: 325 | D58: 325 | E58: 382 | F58: 219 | K58: 4
A59: =IF(Draw!E58=0,"",Draw!E58) ->  | C59: 330 | D59: 330 | E59: 388 | F59: 222 | K59: 4
A60: =IF(Draw!E59=0,"",Draw!E59) ->  | C60: 335 | D60: 335 | E60: 394 | F60: 225 | K60: 4
A61: =IF(Draw!E60=0,"",Draw!E60) ->  | C61: 340 | D61: 340 | E61: 400 | F61: 228 | K61: 4
A62: =IF(Draw!E61=0,"",Draw!E61) ->  | C62: 345 | D62: 345 | E62: 406 | F62: 231 | K62: 4
A63: =IF(Draw!E62=0,"",Draw!E62) ->  | C63: 350 | D63: 350 | E63: 412 | F63: 234 | K63: 4
A64: =IF(Draw!E63=0,"",Draw!E63) ->  | C64: 355 | D64: 355 | E64: 418 | F64: 237 | K64: 4
A65: =IF(Draw!E64=0,"",Draw!E64) ->  | C65: 360 | D65: 360 | E65: 424 | F65: 240 | K65: 4
A66: =IF(Draw!E65=0,"",Draw!E65) ->  | C66: 365 | D66: 365 | E66: 430 | F66: 243 | K66: 4
A67: =IF(Draw!E66=0,"",Draw!E66) ->  | C67: 370 | D67: 370 | E67: 436 | F67: 246 | K67: 4
A68: =IF(Draw!E67=0,"",Draw!E67) ->  | C68: 375 | D68: 375 | E68: 442 | F68: 249 | K68: =COUNT(C68:G68) -> 4
A69: =IF(Draw!E68=0,"",Draw!E68) ->  | C69: 380 | D69: 380 | E69: 448 | F69: 252 | K69: 4
A70: =IF(Draw!E69=0,"",Draw!E69) ->  | B70: =IF(A70="","",B$3) ->  | C70: 385 | D70: 385 | E70: 454 | F70: 255 | H70: =IF(B70="","",IF(K70=5,(SUM(C70:G70)-MAX(C70:G70)-MIN(C70:G70))/3,IF(K70=4,(SUM(C70:G70)-MAX(C70:G70))/3,SUM(C70:G70)/3))*B70/7.6) ->  | K70: 4
A71: =IF(Draw!E70=0,"",Draw!E70) ->  | C71: 390 | D71: 390 | E71: 460 | F71: 258 | K71: 4
A72: =IF(Draw!E71=0,"",Draw!E71) ->  | C72: 395 | D72: 395 | E72: 466 | F72: 261 | K72: 4
A73: =IF(Draw!E72=0,"",Draw!E72) ->  | C73: 400 | D73: 400 | E73: 472 | F73: 264 | K73: 4
A74: =IF(Draw!E73=0,"",Draw!E73) ->  | C74: 405 | D74: 405 | E74: 478 | F74: 267 | K74: 4
A75: =IF(Draw!E74=0,"",Draw!E74) ->  | C75: 410 | D75: 410 | E75: 484 | F75: 270 | K75: 4
A76: =IF(Draw!E75=0,"",Draw!E75) ->  | C76: 415 | D76: 415 | E76: 490 | F76: 273 | K76: 4
A77: =IF(Draw!E76=0,"",Draw!E76) ->  | C77: 420 | D77: 420 | E77: 496 | F77: 276 | K77: 4
A78: =IF(Draw!E77=0,"",Draw!E77) ->  | C78: 425 | D78: 425 | E78: 502 | F78: 279 | K78: 4
A79: =IF(Draw!E78=0,"",Draw!E78) ->  | C79: 430 | D79: 430 | E79: 508 | F79: 282 | K79: 4
A80: =IF(Draw!E79=0,"",Draw!E79) ->  | C80: 435 | D80: 435 | E80: 514 | F80: 285 | K80: 4
A81: =IF(Draw!E80=0,"",Draw!E80) ->  | C81: 440 | D81: 440 | E81: 520 | F81: 288 | K81: 4
A82: =IF(Draw!E81=0,"",Draw!E81) ->  | C82: 445 | D82: 445 | E82: 526 | F82: 291 | K82: 4
A83: =IF(Draw!E82=0,"",Draw!E82) ->  | C83: 450 | D83: 450 | E83: 532 | F83: 294 | K83: 4
A84: =IF(Draw!E83=0,"",Draw!E83) ->  | C84: 455 | D84: 455 | E84: 538 | F84: 297 | K84: 4
A85: =IF(Draw!E84=0,"",Draw!E84) ->  | C85: 460 | D85: 460 | E85: 544 | F85: 300 | K85: 4
A86: =IF(Draw!E85=0,"",Draw!E85) ->  | C86: 465 | D86: 465 | E86: 550 | F86: 303 | K86: 4
A87: =IF(Draw!E86=0,"",Draw!E86) ->  | C87: 470 | D87: 470 | E87: 556 | F87: 306 | K87: 4
A88: =IF(Draw!E87=0,"",Draw!E87) ->  | C88: 475 | D88: 475 | E88: 562 | F88: 309 | K88: 4
A89: =IF(Draw!E88=0,"",Draw!E88) ->  | C89: 480 | D89: 480 | E89: 568 | F89: 312 | K89: 4
A90: =IF(Draw!E89=0,"",Draw!E89) ->  | C90: 485 | D90: 485 | E90: 574 | F90: 315 | K90: 4
A91: =IF(Draw!E90=0,"",Draw!E90) ->  | C91: 490 | D91: 490 | E91: 580 | F91: 318 | K91: 4
A92: =IF(Draw!E91=0,"",Draw!E91) ->  | C92: 495 | D92: 495 | E92: 586 | F92: 321 | K92: 4
A93: =IF(Draw!E92=0,"",Draw!E92) ->  | C93: 500 | D93: 500 | E93: 592 | F93: 324 | K93: 4
A94: =IF(Draw!E93=0,"",Draw!E93) ->  | C94: 505 | D94: 505 | E94: 598 | F94: 327 | K94: 4
A95: =IF(Draw!E94=0,"",Draw!E94) ->  | C95: 510 | D95: 510 | E95: 604 | F95: 330 | K95: 4
A96: =IF(Draw!E95=0,"",Draw!E95) ->  | C96: 515 | D96: 515 | E96: 610 | F96: 333 | K96: 4
A97: =IF(Draw!E96=0,"",Draw!E96) ->  | C97: 520 | D97: 520 | E97: 616 | F97: 336 | K97: 4
A98: =IF(Draw!E97=0,"",Draw!E97) ->  | C98: 525 | D98: 525 | E98: 622 | F98: 339 | K98: 4
A99: =IF(Draw!E98=0,"",Draw!E98) ->  | C99: 530 | D99: 530 | E99: 628 | F99: 342 | K99: 4
A100: =IF(Draw!E99=0,"",Draw!E99) ->  | C100: 535 | D100: 535 | E100: 634 | F100: 345 | K100: 4
A101: =IF(Draw!E100=0,"",Draw!E100) ->  | C101: 540 | D101: 540 | E101: 640 | F101: 348 | K101: 4
A102: =IF(Draw!E101=0,"",Draw!E101) ->  | C102: 545 | D102: 545 | E102: 646 | F102: 351 | K102: 4
A103: =IF(Draw!E102=0,"",Draw!E102) ->  | C103: 550 | D103: 550 | E103: 652 | F103: 354 | K103: 4
A104: =IF(Draw!E103=0,"",Draw!E103) ->  | C104: 555 | D104: 555 | E104: 658 | F104: 357 | K104: 4
A105: =IF(Draw!E104=0,"",Draw!E104) ->  | C105: 560 | D105: 560 | E105: 664 | F105: 360 | K105: 4
A106: =IF(Draw!E105=0,"",Draw!E105) ->  | C106: 565 | D106: 565 | E106: 670 | F106: 363 | K106: 4
A107: =IF(Draw!E106=0,"",Draw!E106) ->  | C107: 570 | D107: 570 | E107: 676 | F107: 366 | K107: 4
A108: =IF(Draw!E107=0,"",Draw!E107) ->  | C108: 575 | D108: 575 | E108: 682 | F108: 369 | K108: 4
A109: =IF(Draw!E108=0,"",Draw!E108) ->  | C109: 580 | D109: 580 | E109: 688 | F109: 372 | K109: 4
A110: =IF(Draw!E109=0,"",Draw!E109) ->  | C110: 585 | D110: 585 | E110: 694 | F110: 375 | K110: 4
A111: =IF(Draw!E110=0,"",Draw!E110) ->  | C111: 590 | D111: 590 | E111: 700 | F111: 378 | K111: 4
A112: =IF(Draw!E111=0,"",Draw!E111) ->  | C112: 595 | D112: 595 | E112: 706 | F112: 381 | K112: 4
A113: =IF(Draw!E112=0,"",Draw!E112) ->  | C113: 600 | D113: 600 | E113: 712 | F113: 384 | K113: 4
A114: =IF(Draw!E113=0,"",Draw!E113) ->  | C114: 605 | D114: 605 | E114: 718 | F114: 387 | K114: 4
A115: =IF(Draw!E114=0,"",Draw!E114) ->  | C115: 610 | D115: 610 | E115: 724 | F115: 390 | K115: 4
A116: =IF(Draw!E115=0,"",Draw!E115) ->  | C116: 615 | D116: 615 | E116: 730 | F116: 393 | K116: 4
A117: =IF(Draw!E116=0,"",Draw!E116) ->  | C117: 620 | D117: 620 | E117: 736 | F117: 396 | K117: 4
A118: =IF(Draw!E117=0,"",Draw!E117) ->  | C118: 625 | D118: 625 | E118: 742 | F118: 399 | K118: 4
A119: =IF(Draw!E118=0,"",Draw!E118) ->  | C119: 630 | D119: 630 | E119: 748 | F119: 402 | K119: 4
A120: =IF(Draw!E119=0,"",Draw!E119) ->  | C120: 635 | D120: 635 | E120: 754 | F120: 405 | K120: 4
A121: =IF(Draw!E120=0,"",Draw!E120) ->  | C121: 640 | D121: 640 | E121: 760 | F121: 408 | K121: 4
A122: =IF(Draw!E121=0,"",Draw!E121) ->  | C122: 645 | D122: 645 | E122: 766 | F122: 411 | K122: 4
A123: =IF(Draw!E122=0,"",Draw!E122) ->  | C123: 650 | D123: 650 | E123: 772 | F123: 414 | K123: 4
A124: =IF(Draw!E123=0,"",Draw!E123) ->  | C124: 655 | D124: 655 | E124: 778 | F124: 417 | K124: 4
A125: =IF(Draw!E124=0,"",Draw!E124) ->  | C125: 660 | D125: 660 | E125: 784 | F125: 420 | K125: 4
A126: =IF(Draw!E125=0,"",Draw!E125) ->  | C126: 665 | D126: 665 | E126: 790 | F126: 423 | K126: 4
A127: =IF(Draw!E126=0,"",Draw!E126) ->  | C127: 670 | D127: 670 | E127: 796 | F127: 426 | K127: 4
A128: =IF(Draw!E127=0,"",Draw!E127) ->  | C128: 675 | D128: 675 | E128: 802 | F128: 429 | K128: 4
A129: =IF(Draw!E128=0,"",Draw!E128) ->  | C129: 680 | D129: 680 | E129: 808 | F129: 432 | K129: 4
A130: =IF(Draw!E129=0,"",Draw!E129) ->  | C130: 685 | D130: 685 | E130: 814 | F130: 435 | K130: 4
A131: =IF(Draw!E130=0,"",Draw!E130) ->  | C131: 690 | D131: 690 | E131: 820 | F131: 438 | K131: 4
A132: =IF(Draw!E131=0,"",Draw!E131) ->  | C132: 695 | D132: 695 | E132: 826 | F132: 441 | K132: =COUNT(C132:G132) -> 4
A133: =IF(Draw!E132=0,"",Draw!E132) ->  | C133: 700 | D133: 700 | E133: 832 | F133: 444 | K133: 4
A134: =IF(Draw!E133=0,"",Draw!E133) ->  | B134: =IF(A134="","",B$3) ->  | C134: 705 | D134: 705 | E134: 838 | F134: 447 | H134: =IF(B134="","",IF(K134=5,(SUM(C134:G134)-MAX(C134:G134)-MIN(C134:G134))/3,IF(K134=4,(SUM(C134:G134)-MAX(C134:G134))/3,SUM(C134:G134)/3))*B134/7.6) ->  | K134: 4
A135: =IF(Draw!E134=0,"",Draw!E134) ->  | C135: 710 | D135: 710 | E135: 844 | F135: 450 | K135: 4
A136: =IF(Draw!E135=0,"",Draw!E135) ->  | C136: 715 | D136: 715 | E136: 850 | F136: 453 | K136: 4
A137: =IF(Draw!E136=0,"",Draw!E136) ->  | C137: 720 | D137: 720 | E137: 856 | F137: 456 | K137: 4
A138: =IF(Draw!E137=0,"",Draw!E137) ->  | C138: 725 | D138: 725 | E138: 862 | F138: 459 | K138: 4
A139: =IF(Draw!E138=0,"",Draw!E138) ->  | C139: 730 | D139: 730 | E139: 868 | F139: 462 | K139: 4
A140: =IF(Draw!E139=0,"",Draw!E139) ->  | C140: 735 | D140: 735 | E140: 874 | F140: 465 | K140: 4
A141: =IF(Draw!E140=0,"",Draw!E140) ->  | C141: 740 | D141: 740 | E141: 880 | F141: 468 | K141: 4
A142: =IF(Draw!E141=0,"",Draw!E141) ->  | C142: 745 | D142: 745 | E142: 886 | F142: 471 | K142: 4
A143: =IF(Draw!E142=0,"",Draw!E142) ->  | C143: 750 | D143: 750 | E143: 892 | F143: 474 | K143: 4
A144: =IF(Draw!E143=0,"",Draw!E143) ->  | C144: 755 | D144: 755 | E144: 898 | F144: 477 | K144: 4
A145: =IF(Draw!E144=0,"",Draw!E144) ->  | C145: 760 | D145: 760 | E145: 904 | F145: 480 | K145: 4
A146: =IF(Draw!E145=0,"",Draw!E145) ->  | C146: 765 | D146: 765 | E146: 910 | F146: 483 | K146: 4
A147: =IF(Draw!E146=0,"",Draw!E146) ->  | C147: 770 | D147: 770 | E147: 916 | F147: 486 | K147: 4
A148: =IF(Draw!E147=0,"",Draw!E147) ->  | C148: 775 | D148: 775 | E148: 922 | F148: 489 | K148: 4
A149: =IF(Draw!E148=0,"",Draw!E148) ->  | C149: 780 | D149: 780 | E149: 928 | F149: 492 | K149: 4
A150: =IF(Draw!E149=0,"",Draw!E149) ->  | C150: 785 | D150: 785 | E150: 934 | F150: 495 | K150: 4

Sheet Totals
A1: # | B1: Swimmer | C1: School | D1: Total Score | E1: Place | F1: Figure 1 | G1: Figure 2 | H1: Figure 3 | I1: Figure 4 | J1: Penalties | K1: Score
A2: =IF(Draw!E2=0,"",Draw!E2) -> 1 | B2: Anna Ganser | C2: Osseo-Maple Grove | D2: =IF($A2="","",SUM(F2:I2)-J2) -> 58.95175439 | E2: =IF($A2="","",RANK(D2,D$2:D$150)) -> 2 | F2: =IF($A2="","",'Fig 1 Ballet Leg'!H3) -> 12.9122807 | G2: =IF($A2="","",'Fig 2 Barracuda'!H3) -> 15.52631579 | H2: =IF($A2="","",'Fig 3 Neptunus'!H3) -> 14.21052632 | I2: =IF($A2="","",'Fig 4 Walkover'!H3) -> 16.30263158 | J2: =IF($A2="","",'Fig 1 Ballet Leg'!I3+'Fig 2 Barracuda'!I3+'Fig 3 Neptunus'!I3+'Fig 4 Walkover'!I3) -> 0 | K2: =IF($A2="","",IF(A2="","",VLOOKUP(E2,AX$3:AY$102,2,FALSE))) -> 6
A3: =IF(Draw!E3=0,"",Draw!E3) -> 2 | B3: Abigail Tollas | C3: Osseo-Maple Grove | D3: =IF($A3="","",SUM(F3:I3)-J3) -> 55.81140351 | E3: =IF($A3="","",RANK(D3,D$2:D$150)) -> 6 | F3: =IF($A3="","",'Fig 1 Ballet Leg'!H4) -> 12.21052632 | G3: =IF($A3="","",'Fig 2 Barracuda'!H4) -> 14.56140351 | H3: =IF($A3="","",'Fig 3 Neptunus'!H4) -> 13.65789474 | I3: =IF($A3="","",'Fig 4 Walkover'!H4) -> 15.38157895 | J3: =IF($A3="","",'Fig 1 Ballet Leg'!I4+'Fig 2 Barracuda'!I4+'Fig 3 Neptunus'!I4+'Fig 4 Walkover'!I4) -> 0 | K3: =IF($A3="","",IF(A3="","",VLOOKUP(E3,AX$3:AY$102,2,FALSE))) -> 2 | AX3: 1 | AY3: 8
A4: =IF(Draw!E4=0,"",Draw!E4) -> 3 | B4: Shakila Hoke | C4: Columbia Heights | D4: 0 | E4: 21 | F4: =IF($A4="","",'Fig 1 Ballet Leg'!H5) -> 0 | G4: =IF($A4="","",'Fig 2 Barracuda'!H5) -> 0 | H4: =IF($A4="","",'Fig 3 Neptunus'!H5) -> 0 | I4: =IF($A4="","",'Fig 4 Walkover'!H5) -> 0 | J4: =IF($A4="","",'Fig 1 Ballet Leg'!I5+'Fig 2 Barracuda'!I5+'Fig 3 Neptunus'!I5+'Fig 4 Walkover'!I5) -> 0 | K4: 0 | AX4: 2 | AY4: 6
A5: =IF(Draw!E5=0,"",Draw!E5) -> 4 | B5: Kelly McNamee | C5: Osseo-Maple Grove | D5: =IF($A5="","",SUM(F5:I5)-J5) -> 53.54824561 | E5: =IF($A5="","",RANK(D5,D$2:D$150)) -> 10 | F5: =IF($A5="","",'Fig 1 Ballet Leg'!H6) -> 12.07017544 | G5: =IF($A5="","",'Fig 2 Barracuda'!H6) -> 13.85964912 | H5: =IF($A5="","",'Fig 3 Neptunus'!H6) -> 12.23684211 | I5: =IF($A5="","",'Fig 4 Walkover'!H6) -> 15.38157895 | J5: =IF($A5="","",'Fig 1 Ballet Leg'!I6+'Fig 2 Barracuda'!I6+'Fig 3 Neptunus'!I6+'Fig 4 Walkover'!I6) -> 0 | K5: =IF($A5="","",IF(A5="","",VLOOKUP(E5,AX$3:AY$102,2,FALSE))) -> 0 | AX5: 3 | AY5: 5
A6: =IF(Draw!E6=0,"",Draw!E6) -> 5 | B6: Jessica Ruohoniemi | C6: Osseo-Maple Grove | D6: 51.35964912 | E6: 12 | F6: =IF($A6="","",'Fig 1 Ballet Leg'!H7) -> 10.80701754 | G6: =IF($A6="","",'Fig 2 Barracuda'!H7) -> 13.94736842 | H6: =IF($A6="","",'Fig 3 Neptunus'!H7) -> 12.23684211 | I6: =IF($A6="","",'Fig 4 Walkover'!H7) -> 14.36842105 | J6: =IF($A6="","",'Fig 1 Ballet Leg'!I7+'Fig 2 Barracuda'!I7+'Fig 3 Neptunus'!I7+'Fig 4 Walkover'!I7) -> 0 | K6: 0 | AX6: 4 | AY6: 4
A7: =IF(Draw!E7=0,"",Draw!E7) -> 6 | B7: Katherine Olsen | C7: Osseo-Maple Grove | D7: 50.21491228 | E7: 15 | F7: =IF($A7="","",'Fig 1 Ballet Leg'!H8) -> 10.87719298 | G7: =IF($A7="","",'Fig 2 Barracuda'!H8) -> 13.24561404 | H7: =IF($A7="","",'Fig 3 Neptunus'!H8) -> 11.44736842 | I7: =IF($A7="","",'Fig 4 Walkover'!H8) -> 14.64473684 | J7: =IF($A7="","",'Fig 1 Ballet Leg'!I8+'Fig 2 Barracuda'!I8+'Fig 3 Neptunus'!I8+'Fig 4 Walkover'!I8) -> 0 | K7: 0 | AX7: 5 | AY7: 3
A8: =IF(Draw!E8=0,"",Draw!E8) -> 7 | B8: Holly Drazenovich | C8: Osseo-Maple Grove | D8: 0 | E8: 21 | F8: =IF($A8="","",'Fig 1 Ballet Leg'!H9) -> 0 | G8: =IF($A8="","",'Fig 2 Barracuda'!H9) -> 0 | H8: =IF($A8="","",'Fig 3 Neptunus'!H9) -> 0 | I8: =IF($A8="","",'Fig 4 Walkover'!H9) -> 0 | J8: =IF($A8="","",'Fig 1 Ballet Leg'!I9+'Fig 2 Barracuda'!I9+'Fig 3 Neptunus'!I9+'Fig 4 Walkover'!I9) -> 0 | K8: 0 | AX8: 6 | AY8: 2
A9: =IF(Draw!E9=0,"",Draw!E9) -> 8 | B9: Gabriela Marick | C9: Osseo-Maple Grove | D9: 58.30263158 | E9: 3 | F9: =IF($A9="","",'Fig 1 Ballet Leg'!H10) -> 13.33333333 | G9: =IF($A9="","",'Fig 2 Barracuda'!H10) -> 14.8245614 | H9: =IF($A9="","",'Fig 3 Neptunus'!H10) -> 14.21052632 | I9: =IF($A9="","",'Fig 4 Walkover'!H10) -> 15.93421053 | J9: =IF($A9="","",'Fig 1 Ballet Leg'!I10+'Fig 2 Barracuda'!I10+'Fig 3 Neptunus'!I10+'Fig 4 Walkover'!I10) -> 0 | K9: 5 | AX9: 7 | AY9: 1
A10: =IF(Draw!E10=0,"",Draw!E10) -> 9 | B10: Danielle Hawes | C10: Osseo-Maple Grove | D10: 50.77192982 | E10: 14 | F10: =IF($A10="","",'Fig 1 Ballet Leg'!H11) -> 10.1754386 | G10: =IF($A10="","",'Fig 2 Barracuda'!H11) -> 14.38596491 | H10: =IF($A10="","",'Fig 3 Neptunus'!H11) -> 12.39473684 | I10: =IF($A10="","",'Fig 4 Walkover'!H11) -> 13.81578947 | J10: =IF($A10="","",'Fig 1 Ballet Leg'!I11+'Fig 2 Barracuda'!I11+'Fig 3 Neptunus'!I11+'Fig 4 Walkover'!I11) -> 0 | K10: 0 | AX10: 8 | AY10: 0
A11: =IF(Draw!E11=0,"",Draw!E11) -> 10 | B11: Hannah Littel | C11: Osseo-Maple Grove | D11: 53.26315789 | E11: 11 | F11: =IF($A11="","",'Fig 1 Ballet Leg'!H12) -> 11.71929825 | G11: =IF($A11="","",'Fig 2 Barracuda'!H12) -> 13.07017544 | H11: =IF($A11="","",'Fig 3 Neptunus'!H12) -> 13.18421053 | I11: =IF($A11="","",'Fig 4 Walkover'!H12) -> 15.28947368 | J11: =IF($A11="","",'Fig 1 Ballet Leg'!I12+'Fig 2 Barracuda'!I12+'Fig 3 Neptunus'!I12+'Fig 4 Walkover'!I12) -> 0 | K11: 0 | AX11: 9 | AY11: 0
A12: =IF(Draw!E12=0,"",Draw!E12) -> 11 | B12: Katelyn Moline | C12: Osseo-Maple Grove | D12: 45.85964912 | E12: 20 | F12: =IF($A12="","",'Fig 1 Ballet Leg'!H13) -> 10.10526316 | G12: =IF($A12="","",'Fig 2 Barracuda'!H13) -> 12.28070175 | H12: =IF($A12="","",'Fig 3 Neptunus'!H13) -> 10.57894737 | I12: =IF($A12="","",'Fig 4 Walkover'!H13) -> 12.89473684 | J12: =IF($A12="","",'Fig 1 Ballet Leg'!I13+'Fig 2 Barracuda'!I13+'Fig 3 Neptunus'!I13+'Fig 4 Walkover'!I13) -> 0 | K12: 0 | AX12: 10 | AY12: 0
A13: =IF(Draw!E13=0,"",Draw!E13) -> 12 | B13: Hannah Thalhuber | C13: Columbia Heights | D13: 49.51315789 | E13: 17 | F13: =IF($A13="","",'Fig 1 Ballet Leg'!H14) -> 10.52631579 | G13: =IF($A13="","",'Fig 2 Barracuda'!H14) -> 13.94736842 | H13: =IF($A13="","",'Fig 3 Neptunus'!H14) -> 11.68421053 | I13: =IF($A13="","",'Fig 4 Walkover'!H14) -> 13.35526316 | J13: =IF($A13="","",'Fig 1 Ballet Leg'!I14+'Fig 2 Barracuda'!I14+'Fig 3 Neptunus'!I14+'Fig 4 Walkover'!I14) -> 0 | K13: 0 | AX13: 11 | AY13: 0
A14: =IF(Draw!E14=0,"",Draw!E14) -> 13 | B14: Marie Vanderwarn | C14: Osseo-Maple Grove | D14: 55.23684211 | E14: 7 | F14: =IF($A14="","",'Fig 1 Ballet Leg'!H15) -> 12.35087719 | G14: =IF($A14="","",'Fig 2 Barracuda'!H15) -> 14.9122807 | H14: =IF($A14="","",'Fig 3 Neptunus'!H15) -> 12.94736842 | I14: =IF($A14="","",'Fig 4 Walkover'!H15) -> 16.02631579 | J14: =IF($A14="","",'Fig 1 Ballet Leg'!I15+'Fig 2 Barracuda'!I15+'Fig 3 Neptunus'!I15+'Fig 4 Walkover'!I15) -> 1 | K14: 1 | AX14: 12 | AY14: 0
A15: =IF(Draw!E15=0,"",Draw!E15) -> 14 | B15: Issy Rardin | C15: Columbia Heights | D15: 48.10964912 | E15: 18 | F15: =IF($A15="","",'Fig 1 Ballet Leg'!H16) -> 10.24561404 | G15: =IF($A15="","",'Fig 2 Barracuda'!H16) -> 12.98245614 | H15: =IF($A15="","",'Fig 3 Neptunus'!H16) -> 12.07894737 | I15: =IF($A15="","",'Fig 4 Walkover'!H16) -> 12.80263158 | J15: =IF($A15="","",'Fig 1 Ballet Leg'!I16+'Fig 2 Barracuda'!I16+'Fig 3 Neptunus'!I16+'Fig 4 Walkover'!I16) -> 0 | K15: 0 | AX15: 13 | AY15: 0
A16: =IF(Draw!E16=0,"",Draw!E16) -> 15 | B16: Samantha Alexon | C16: Columbia Heights | D16: 53.57017544 | E16: 9 | F16: =IF($A16="","",'Fig 1 Ballet Leg'!H17) -> 12.07017544 | G16: =IF($A16="","",'Fig 2 Barracuda'!H17) -> 14.47368421 | H16: =IF($A16="","",'Fig 3 Neptunus'!H17) -> 13.02631579 | I16: =IF($A16="","",'Fig 4 Walkover'!H17) -> 14 | J16: =IF($A16="","",'Fig 1 Ballet Leg'!I17+'Fig 2 Barracuda'!I17+'Fig 3 Neptunus'!I17+'Fig 4 Walkover'!I17) -> 0 | K16: 0 | AX16: 14 | AY16: 0
A17: =IF(Draw!E17=0,"",Draw!E17) -> 16 | B17: Elisabeth Heitzig | C17: Osseo-Maple Grove | D17: 56.01754386 | E17: 5 | F17: =IF($A17="","",'Fig 1 Ballet Leg'!H18) -> 12.49122807 | G17: =IF($A17="","",'Fig 2 Barracuda'!H18) -> 14.73684211 | H17: =IF($A17="","",'Fig 3 Neptunus'!H18) -> 12.94736842 | I17: =IF($A17="","",'Fig 4 Walkover'!H18) -> 15.84210526 | J17: =IF($A17="","",'Fig 1 Ballet Leg'!I18+'Fig 2 Barracuda'!I18+'Fig 3 Neptunus'!I18+'Fig 4 Walkover'!I18) -> 0 | K17: 3 | AX17: 15 | AY17: 0
A18: =IF(Draw!E18=0,"",Draw!E18) -> 17 | B18: Elena Vrba | C18: Osseo-Maple Grove | D18: 55.06578947 | E18: 8 | F18: =IF($A18="","",'Fig 1 Ballet Leg'!H19) -> 11.78947368 | G18: =IF($A18="","",'Fig 2 Barracuda'!H19) -> 15.26315789 | H18: =IF($A18="","",'Fig 3 Neptunus'!H19) -> 12.63157895 | I18: =IF($A18="","",'Fig 4 Walkover'!H19) -> 15.38157895 | J18: =IF($A18="","",'Fig 1 Ballet Leg'!I19+'Fig 2 Barracuda'!I19+'Fig 3 Neptunus'!I19+'Fig 4 Walkover'!I19) -> 0 | K18: 0 | AX18: 16 | AY18: 0
A19: =IF(Draw!E19=0,"",Draw!E19) -> 18 | B19: Caroline LaBord | C19: Osseo-Maple Grove | D19: 50.14035088 | E19: 16 | F19: =IF($A19="","",'Fig 1 Ballet Leg'!H20) -> 10.31578947 | G19: =IF($A19="","",'Fig 2 Barracuda'!H20) -> 14.56140351 | H19: =IF($A19="","",'Fig 3 Neptunus'!H20) -> 11.44736842 | I19: =IF($A19="","",'Fig 4 Walkover'!H20) -> 13.81578947 | J19: =IF($A19="","",'Fig 1 Ballet Leg'!I20+'Fig 2 Barracuda'!I20+'Fig 3 Neptunus'!I20+'Fig 4 Walkover'!I20) -> 0 | K19: 0 | AX19: 17 | AY19: 0
A20: =IF(Draw!E20=0,"",Draw!E20) -> 19 | B20: Lily Dickson | C20: Columbia Heights | D20: 0 | E20: 21 | F20: =IF($A20="","",'Fig 1 Ballet Leg'!H21) -> 0 | G20: =IF($A20="","",'Fig 2 Barracuda'!H21) -> 0 | H20: =IF($A20="","",'Fig 3 Neptunus'!H21) -> 0 | I20: =IF($A20="","",'Fig 4 Walkover'!H21) -> 0 | J20: =IF($A20="","",'Fig 1 Ballet Leg'!I21+'Fig 2 Barracuda'!I21+'Fig 3 Neptunus'!I21+'Fig 4 Walkover'!I21) -> 0 | K20: 0 | AX20: 18 | AY20: 0
A21: =IF(Draw!E21=0,"",Draw!E21) -> 20 | B21: Ava Rosengren | C21: Columbia Heights | D21: 0 | E21: 21 | F21: =IF($A21="","",'Fig 1 Ballet Leg'!H22) -> 0 | G21: =IF($A21="","",'Fig 2 Barracuda'!H22) -> 0 | H21: =IF($A21="","",'Fig 3 Neptunus'!H22) -> 0 | I21: =IF($A21="","",'Fig 4 Walkover'!H22) -> 0 | J21: =IF($A21="","",'Fig 1 Ballet Leg'!I22+'Fig 2 Barracuda'!I22+'Fig 3 Neptunus'!I22+'Fig 4 Walkover'!I22) -> 0 | K21: 0 | AX21: 19 | AY21: 0
A22: =IF(Draw!E22=0,"",Draw!E22) -> 21 | B22: Heather Breidenbach | C22: Osseo-Maple Grove | D22: 47.32894737 | E22: 19 | F22: =IF($A22="","",'Fig 1 Ballet Leg'!H23) -> 9.964912281 | G22: =IF($A22="","",'Fig 2 Barracuda'!H23) -> 13.50877193 | H22: =IF($A22="","",'Fig 3 Neptunus'!H23) -> 11.05263158 | I22: =IF($A22="","",'Fig 4 Walkover'!H23) -> 12.80263158 | J22: =IF($A22="","",'Fig 1 Ballet Leg'!I23+'Fig 2 Barracuda'!I23+'Fig 3 Neptunus'!I23+'Fig 4 Walkover'!I23) -> 0 | K22: 0 | AX22: 20 | AY22: 0
A23: =IF(Draw!E23=0,"",Draw!E23) -> 22 | B23: Elizabeth McBride | C23: Osseo-Maple Grove | D23: 60.85964912 | E23: 1 | F23: =IF($A23="","",'Fig 1 Ballet Leg'!H24) -> 12.9122807 | G23: =IF($A23="","",'Fig 2 Barracuda'!H24) -> 16.31578947 | H23: =IF($A23="","",'Fig 3 Neptunus'!H24) -> 14.68421053 | I23: =IF($A23="","",'Fig 4 Walkover'!H24) -> 16.94736842 | J23: =IF($A23="","",'Fig 1 Ballet Leg'!I24+'Fig 2 Barracuda'!I24+'Fig 3 Neptunus'!I24+'Fig 4 Walkover'!I24) -> 0 | K23: 8 | AX23: 21 | AY23: 0
A24: =IF(Draw!E24=0,"",Draw!E24) -> 23 | B24: Emily Barr | C24: Osseo-Maple Grove | D24: 50.8377193 | E24: 13 | F24: =IF($A24="","",'Fig 1 Ballet Leg'!H25) -> 10.03508772 | G24: =IF($A24="","",'Fig 2 Barracuda'!H25) -> 14.21052632 | H24: =IF($A24="","",'Fig 3 Neptunus'!H25) -> 12.86842105 | I24: =IF($A24="","",'Fig 4 Walkover'!H25) -> 13.72368421 | J24: =IF($A24="","",'Fig 1 Ballet Leg'!I25+'Fig 2 Barracuda'!I25+'Fig 3 Neptunus'!I25+'Fig 4 Walkover'!I25) -> 0 | K24: 0 | AX24: 22 | AY24: 0
A25: =IF(Draw!E25=0,"",Draw!E25) -> 24 | B25: Alexadra Trudeau | C25: Osseo-Maple Grove | D25: 56.60526316 | E25: 4 | F25: =IF($A25="","",'Fig 1 Ballet Leg'!H26) -> 11.85964912 | G25: =IF($A25="","",'Fig 2 Barracuda'!H26) -> 14.8245614 | H25: =IF($A25="","",'Fig 3 Neptunus'!H26) -> 13.34210526 | I25: =IF($A25="","",'Fig 4 Walkover'!H26) -> 16.57894737 | J25: =IF($A25="","",'Fig 1 Ballet Leg'!I26+'Fig 2 Barracuda'!I26+'Fig 3 Neptunus'!I26+'Fig 4 Walkover'!I26) -> 0 | K25: 4 | AX25: 23 | AY25: 0
A26: =IF(Draw!E26=0,"",Draw!E26) ->  | F26: =IF($A26="","",'Fig 1 Ballet Leg'!H27) ->  | G26: =IF($A26="","",'Fig 2 Barracuda'!H27) ->  | H26: =IF($A26="","",'Fig 3 Neptunus'!H27) ->  | I26: =IF($A26="","",'Fig 4 Walkover'!H27) ->  | J26: =IF($A26="","",'Fig 1 Ballet Leg'!I27+'Fig 2 Barracuda'!I27+'Fig 3 Neptunus'!I27+'Fig 4 Walkover'!I27) ->  | AX26: 24 | AY26: 0
A27: =IF(Draw!E27=0,"",Draw!E27) ->  | F27: =IF($A27="","",'Fig 1 Ballet Leg'!H28) ->  | G27: =IF($A27="","",'Fig 2 Barracuda'!H28) ->  | H27: =IF($A27="","",'Fig 3 Neptunus'!H28) ->  | I27: =IF($A27="","",'Fig 4 Walkover'!H28) ->  | J27: =IF($A27="","",'Fig 1 Ballet Leg'!I28+'Fig 2 Barracuda'!I28+'Fig 3 Neptunus'!I28+'Fig 4 Walkover'!I28) ->  | AX27: 25 | AY27: 0
A28: =IF(Draw!E28=0,"",Draw!E28) ->  | F28: =IF($A28="","",'Fig 1 Ballet Leg'!H29) ->  | G28: =IF($A28="","",'Fig 2 Barracuda'!H29) ->  | H28: =IF($A28="","",'Fig 3 Neptunus'!H29) ->  | I28: =IF($A28="","",'Fig 4 Walkover'!H29) ->  | J28: =IF($A28="","",'Fig 1 Ballet Leg'!I29+'Fig 2 Barracuda'!I29+'Fig 3 Neptunus'!I29+'Fig 4 Walkover'!I29) ->  | AX28: 26 | AY28: 0
A29: =IF(Draw!E29=0,"",Draw!E29) ->  | F29: =IF($A29="","",'Fig 1 Ballet Leg'!H30) ->  | G29: =IF($A29="","",'Fig 2 Barracuda'!H30) ->  | H29: =IF($A29="","",'Fig 3 Neptunus'!H30) ->  | I29: =IF($A29="","",'Fig 4 Walkover'!H30) ->  | J29: =IF($A29="","",'Fig 1 Ballet Leg'!I30+'Fig 2 Barracuda'!I30+'Fig 3 Neptunus'!I30+'Fig 4 Walkover'!I30) ->  | AX29: 27 | AY29: 0
A30: =IF(Draw!E30=0,"",Draw!E30) ->  | F30: =IF($A30="","",'Fig 1 Ballet Leg'!H31) ->  | G30: =IF($A30="","",'Fig 2 Barracuda'!H31) ->  | H30: =IF($A30="","",'Fig 3 Neptunus'!H31) ->  | I30: =IF($A30="","",'Fig 4 Walkover'!H31) ->  | J30: =IF($A30="","",'Fig 1 Ballet Leg'!I31+'Fig 2 Barracuda'!I31+'Fig 3 Neptunus'!I31+'Fig 4 Walkover'!I31) ->  | AX30: 28 | AY30: 0
A31: =IF(Draw!E31=0,"",Draw!E31) ->  | F31: =IF($A31="","",'Fig 1 Ballet Leg'!H32) ->  | G31: =IF($A31="","",'Fig 2 Barracuda'!H32) ->  | H31: =IF($A31="","",'Fig 3 Neptunus'!H32) ->  | I31: =IF($A31="","",'Fig 4 Walkover'!H32) ->  | J31: =IF($A31="","",'Fig 1 Ballet Leg'!I32+'Fig 2 Barracuda'!I32+'Fig 3 Neptunus'!I32+'Fig 4 Walkover'!I32) ->  | AX31: 29 | AY31: 0
A32: =IF(Draw!E32=0,"",Draw!E32) ->  | F32: =IF($A32="","",'Fig 1 Ballet Leg'!H33) ->  | G32: =IF($A32="","",'Fig 2 Barracuda'!H33) ->  | H32: =IF($A32="","",'Fig 3 Neptunus'!H33) ->  | I32: =IF($A32="","",'Fig 4 Walkover'!H33) ->  | J32: =IF($A32="","",'Fig 1 Ballet Leg'!I33+'Fig 2 Barracuda'!I33+'Fig 3 Neptunus'!I33+'Fig 4 Walkover'!I33) ->  | AX32: 30 | AY32: 0
A33: =IF(Draw!E33=0,"",Draw!E33) ->  | F33: =IF($A33="","",'Fig 1 Ballet Leg'!H34) ->  | G33: =IF($A33="","",'Fig 2 Barracuda'!H34) ->  | H33: =IF($A33="","",'Fig 3 Neptunus'!H34) ->  | I33: =IF($A33="","",'Fig 4 Walkover'!H34) ->  | J33: =IF($A33="","",'Fig 1 Ballet Leg'!I34+'Fig 2 Barracuda'!I34+'Fig 3 Neptunus'!I34+'Fig 4 Walkover'!I34) ->  | AX33: 31 | AY33: 0
A34: =IF(Draw!E34=0,"",Draw!E34) ->  | F34: =IF($A34="","",'Fig 1 Ballet Leg'!H35) ->  | G34: =IF($A34="","",'Fig 2 Barracuda'!H35) ->  | H34: =IF($A34="","",'Fig 3 Neptunus'!H35) ->  | I34: =IF($A34="","",'Fig 4 Walkover'!H35) ->  | J34: =IF($A34="","",'Fig 1 Ballet Leg'!I35+'Fig 2 Barracuda'!I35+'Fig 3 Neptunus'!I35+'Fig 4 Walkover'!I35) ->  | AX34: 32 | AY34: 0
A35: =IF(Draw!E35=0,"",Draw!E35) ->  | F35: =IF($A35="","",'Fig 1 Ballet Leg'!H36) ->  | G35: =IF($A35="","",'Fig 2 Barracuda'!H36) ->  | H35: =IF($A35="","",'Fig 3 Neptunus'!H36) ->  | I35: =IF($A35="","",'Fig 4 Walkover'!H36) ->  | J35: =IF($A35="","",'Fig 1 Ballet Leg'!I36+'Fig 2 Barracuda'!I36+'Fig 3 Neptunus'!I36+'Fig 4 Walkover'!I36) ->  | AX35: 33 | AY35: 0
A36: =IF(Draw!E36=0,"",Draw!E36) ->  | F36: =IF($A36="","",'Fig 1 Ballet Leg'!H37) ->  | G36: =IF($A36="","",'Fig 2 Barracuda'!H37) ->  | H36: =IF($A36="","",'Fig 3 Neptunus'!H37) ->  | I36: =IF($A36="","",'Fig 4 Walkover'!H37) ->  | J36: =IF($A36="","",'Fig 1 Ballet Leg'!I37+'Fig 2 Barracuda'!I37+'Fig 3 Neptunus'!I37+'Fig 4 Walkover'!I37) ->  | AX36: 34 | AY36: 0
A37: =IF(Draw!E37=0,"",Draw!E37) ->  | F37: =IF($A37="","",'Fig 1 Ballet Leg'!H38) ->  | G37: =IF($A37="","",'Fig 2 Barracuda'!H38) ->  | H37: =IF($A37="","",'Fig 3 Neptunus'!H38) ->  | I37: =IF($A37="","",'Fig 4 Walkover'!H38) ->  | J37: =IF($A37="","",'Fig 1 Ballet Leg'!I38+'Fig 2 Barracuda'!I38+'Fig 3 Neptunus'!I38+'Fig 4 Walkover'!I38) ->  | AX37: 35 | AY37: 0
A38: =IF(Draw!E38=0,"",Draw!E38) ->  | F38: =IF($A38="","",'Fig 1 Ballet Leg'!H39) ->  | G38: =IF($A38="","",'Fig 2 Barracuda'!H39) ->  | H38: =IF($A38="","",'Fig 3 Neptunus'!H39) ->  | I38: =IF($A38="","",'Fig 4 Walkover'!H39) ->  | J38: =IF($A38="","",'Fig 1 Ballet Leg'!I39+'Fig 2 Barracuda'!I39+'Fig 3 Neptunus'!I39+'Fig 4 Walkover'!I39) ->  | AX38: 36 | AY38: 0
A39: =IF(Draw!E39=0,"",Draw!E39) ->  | F39: =IF($A39="","",'Fig 1 Ballet Leg'!H40) ->  | G39: =IF($A39="","",'Fig 2 Barracuda'!H40) ->  | H39: =IF($A39="","",'Fig 3 Neptunus'!H40) ->  | I39: =IF($A39="","",'Fig 4 Walkover'!H40) ->  | J39: =IF($A39="","",'Fig 1 Ballet Leg'!I40+'Fig 2 Barracuda'!I40+'Fig 3 Neptunus'!I40+'Fig 4 Walkover'!I40) ->  | AX39: 37 | AY39: 0
A40: =IF(Draw!E40=0,"",Draw!E40) ->  | F40: =IF($A40="","",'Fig 1 Ballet Leg'!H41) ->  | G40: =IF($A40="","",'Fig 2 Barracuda'!H41) ->  | H40: =IF($A40="","",'Fig 3 Neptunus'!H41) ->  | I40: =IF($A40="","",'Fig 4 Walkover'!H41) ->  | J40: =IF($A40="","",'Fig 1 Ballet Leg'!I41+'Fig 2 Barracuda'!I41+'Fig 3 Neptunus'!I41+'Fig 4 Walkover'!I41) ->  | AX40: 38 | AY40: 0
A41: =IF(Draw!E41=0,"",Draw!E41) ->  | F41: =IF($A41="","",'Fig 1 Ballet Leg'!H42) ->  | G41: =IF($A41="","",'Fig 2 Barracuda'!H42) ->  | H41: =IF($A41="","",'Fig 3 Neptunus'!H42) ->  | I41: =IF($A41="","",'Fig 4 Walkover'!H42) ->  | J41: =IF($A41="","",'Fig 1 Ballet Leg'!I42+'Fig 2 Barracuda'!I42+'Fig 3 Neptunus'!I42+'Fig 4 Walkover'!I42) ->  | AX41: 39 | AY41: 0
A42: =IF(Draw!E42=0,"",Draw!E42) ->  | F42: =IF($A42="","",'Fig 1 Ballet Leg'!H43) ->  | G42: =IF($A42="","",'Fig 2 Barracuda'!H43) ->  | H42: =IF($A42="","",'Fig 3 Neptunus'!H43) ->  | I42: =IF($A42="","",'Fig 4 Walkover'!H43) ->  | J42: =IF($A42="","",'Fig 1 Ballet Leg'!I43+'Fig 2 Barracuda'!I43+'Fig 3 Neptunus'!I43+'Fig 4 Walkover'!I43) ->  | AX42: 40 | AY42: 0
A43: =IF(Draw!E43=0,"",Draw!E43) ->  | F43: =IF($A43="","",'Fig 1 Ballet Leg'!H44) ->  | G43: =IF($A43="","",'Fig 2 Barracuda'!H44) ->  | H43: =IF($A43="","",'Fig 3 Neptunus'!H44) ->  | I43: =IF($A43="","",'Fig 4 Walkover'!H44) ->  | J43: =IF($A43="","",'Fig 1 Ballet Leg'!I44+'Fig 2 Barracuda'!I44+'Fig 3 Neptunus'!I44+'Fig 4 Walkover'!I44) ->  | AX43: 41 | AY43: 0
A44: =IF(Draw!E44=0,"",Draw!E44) ->  | F44: =IF($A44="","",'Fig 1 Ballet Leg'!H45) ->  | G44: =IF($A44="","",'Fig 2 Barracuda'!H45) ->  | H44: =IF($A44="","",'Fig 3 Neptunus'!H45) ->  | I44: =IF($A44="","",'Fig 4 Walkover'!H45) ->  | J44: =IF($A44="","",'Fig 1 Ballet Leg'!I45+'Fig 2 Barracuda'!I45+'Fig 3 Neptunus'!I45+'Fig 4 Walkover'!I45) ->  | AX44: 42 | AY44: 0
A45: =IF(Draw!E45=0,"",Draw!E45) ->  | F45: =IF($A45="","",'Fig 1 Ballet Leg'!H46) ->  | G45: =IF($A45="","",'Fig 2 Barracuda'!H46) ->  | H45: =IF($A45="","",'Fig 3 Neptunus'!H46) ->  | I45: =IF($A45="","",'Fig 4 Walkover'!H46) ->  | J45: =IF($A45="","",'Fig 1 Ballet Leg'!I46+'Fig 2 Barracuda'!I46+'Fig 3 Neptunus'!I46+'Fig 4 Walkover'!I46) ->  | AX45: 43 | AY45: 0
A46: =IF(Draw!E46=0,"",Draw!E46) ->  | F46: =IF($A46="","",'Fig 1 Ballet Leg'!H47) ->  | G46: =IF($A46="","",'Fig 2 Barracuda'!H47) ->  | H46: =IF($A46="","",'Fig 3 Neptunus'!H47) ->  | I46: =IF($A46="","",'Fig 4 Walkover'!H47) ->  | J46: =IF($A46="","",'Fig 1 Ballet Leg'!I47+'Fig 2 Barracuda'!I47+'Fig 3 Neptunus'!I47+'Fig 4 Walkover'!I47) ->  | AX46: 44 | AY46: 0
A47: =IF(Draw!E47=0,"",Draw!E47) ->  | F47: =IF($A47="","",'Fig 1 Ballet Leg'!H48) ->  | G47: =IF($A47="","",'Fig 2 Barracuda'!H48) ->  | H47: =IF($A47="","",'Fig 3 Neptunus'!H48) ->  | I47: =IF($A47="","",'Fig 4 Walkover'!H48) ->  | J47: =IF($A47="","",'Fig 1 Ballet Leg'!I48+'Fig 2 Barracuda'!I48+'Fig 3 Neptunus'!I48+'Fig 4 Walkover'!I48) ->  | AX47: 45 | AY47: 0
A48: =IF(Draw!E48=0,"",Draw!E48) ->  | F48: =IF($A48="","",'Fig 1 Ballet Leg'!H49) ->  | G48: =IF($A48="","",'Fig 2 Barracuda'!H49) ->  | H48: =IF($A48="","",'Fig 3 Neptunus'!H49) ->  | I48: =IF($A48="","",'Fig 4 Walkover'!H49) ->  | J48: =IF($A48="","",'Fig 1 Ballet Leg'!I49+'Fig 2 Barracuda'!I49+'Fig 3 Neptunus'!I49+'Fig 4 Walkover'!I49) ->  | AX48: 46 | AY48: 0
A49: =IF(Draw!E49=0,"",Draw!E49) ->  | F49: =IF($A49="","",'Fig 1 Ballet Leg'!H50) ->  | G49: =IF($A49="","",'Fig 2 Barracuda'!H50) ->  | H49: =IF($A49="","",'Fig 3 Neptunus'!H50) ->  | I49: =IF($A49="","",'Fig 4 Walkover'!H50) ->  | J49: =IF($A49="","",'Fig 1 Ballet Leg'!I50+'Fig 2 Barracuda'!I50+'Fig 3 Neptunus'!I50+'Fig 4 Walkover'!I50) ->  | AX49: 47 | AY49: 0
A50: =IF(Draw!E50=0,"",Draw!E50) ->  | F50: =IF($A50="","",'Fig 1 Ballet Leg'!H51) ->  | G50: =IF($A50="","",'Fig 2 Barracuda'!H51) ->  | H50: =IF($A50="","",'Fig 3 Neptunus'!H51) ->  | I50: =IF($A50="","",'Fig 4 Walkover'!H51) ->  | J50: =IF($A50="","",'Fig 1 Ballet Leg'!I51+'Fig 2 Barracuda'!I51+'Fig 3 Neptunus'!I51+'Fig 4 Walkover'!I51) ->  | AX50: 48 | AY50: 0
A51: =IF(Draw!E51=0,"",Draw!E51) ->  | F51: =IF($A51="","",'Fig 1 Ballet Leg'!H52) ->  | G51: =IF($A51="","",'Fig 2 Barracuda'!H52) ->  | H51: =IF($A51="","",'Fig 3 Neptunus'!H52) ->  | I51: =IF($A51="","",'Fig 4 Walkover'!H52) ->  | J51: =IF($A51="","",'Fig 1 Ballet Leg'!I52+'Fig 2 Barracuda'!I52+'Fig 3 Neptunus'!I52+'Fig 4 Walkover'!I52) ->  | AX51: 49 | AY51: 0
A52: =IF(Draw!E52=0,"",Draw!E52) ->  | F52: =IF($A52="","",'Fig 1 Ballet Leg'!H53) ->  | G52: =IF($A52="","",'Fig 2 Barracuda'!H53) ->  | H52: =IF($A52="","",'Fig 3 Neptunus'!H53) ->  | I52: =IF($A52="","",'Fig 4 Walkover'!H53) ->  | J52: =IF($A52="","",'Fig 1 Ballet Leg'!I53+'Fig 2 Barracuda'!I53+'Fig 3 Neptunus'!I53+'Fig 4 Walkover'!I53) ->  | AX52: 50 | AY52: 0
A53: =IF(Draw!E53=0,"",Draw!E53) ->  | F53: =IF($A53="","",'Fig 1 Ballet Leg'!H54) ->  | G53: =IF($A53="","",'Fig 2 Barracuda'!H54) ->  | H53: =IF($A53="","",'Fig 3 Neptunus'!H54) ->  | I53: =IF($A53="","",'Fig 4 Walkover'!H54) ->  | J53: =IF($A53="","",'Fig 1 Ballet Leg'!I54+'Fig 2 Barracuda'!I54+'Fig 3 Neptunus'!I54+'Fig 4 Walkover'!I54) ->  | AX53: 51 | AY53: 0
A54: =IF(Draw!E54=0,"",Draw!E54) ->  | F54: =IF($A54="","",'Fig 1 Ballet Leg'!H55) ->  | G54: =IF($A54="","",'Fig 2 Barracuda'!H55) ->  | H54: =IF($A54="","",'Fig 3 Neptunus'!H55) ->  | I54: =IF($A54="","",'Fig 4 Walkover'!H55) ->  | J54: =IF($A54="","",'Fig 1 Ballet Leg'!I55+'Fig 2 Barracuda'!I55+'Fig 3 Neptunus'!I55+'Fig 4 Walkover'!I55) ->  | AX54: 52 | AY54: 0
A55: =IF(Draw!E55=0,"",Draw!E55) ->  | F55: =IF($A55="","",'Fig 1 Ballet Leg'!H56) ->  | G55: =IF($A55="","",'Fig 2 Barracuda'!H56) ->  | H55: =IF($A55="","",'Fig 3 Neptunus'!H56) ->  | I55: =IF($A55="","",'Fig 4 Walkover'!H56) ->  | J55: =IF($A55="","",'Fig 1 Ballet Leg'!I56+'Fig 2 Barracuda'!I56+'Fig 3 Neptunus'!I56+'Fig 4 Walkover'!I56) ->  | AX55: 53 | AY55: 0
A56: =IF(Draw!E56=0,"",Draw!E56) ->  | F56: =IF($A56="","",'Fig 1 Ballet Leg'!H57) ->  | G56: =IF($A56="","",'Fig 2 Barracuda'!H57) ->  | H56: =IF($A56="","",'Fig 3 Neptunus'!H57) ->  | I56: =IF($A56="","",'Fig 4 Walkover'!H57) ->  | J56: =IF($A56="","",'Fig 1 Ballet Leg'!I57+'Fig 2 Barracuda'!I57+'Fig 3 Neptunus'!I57+'Fig 4 Walkover'!I57) ->  | AX56: 54 | AY56: 0
A57: =IF(Draw!E57=0,"",Draw!E57) ->  | F57: =IF($A57="","",'Fig 1 Ballet Leg'!H58) ->  | G57: =IF($A57="","",'Fig 2 Barracuda'!H58) ->  | H57: =IF($A57="","",'Fig 3 Neptunus'!H58) ->  | I57: =IF($A57="","",'Fig 4 Walkover'!H58) ->  | J57: =IF($A57="","",'Fig 1 Ballet Leg'!I58+'Fig 2 Barracuda'!I58+'Fig 3 Neptunus'!I58+'Fig 4 Walkover'!I58) ->  | AX57: 55 | AY57: 0
A58: =IF(Draw!E58=0,"",Draw!E58) ->  | F58: =IF($A58="","",'Fig 1 Ballet Leg'!H59) ->  | G58: =IF($A58="","",'Fig 2 Barracuda'!H59) ->  | H58: =IF($A58="","",'Fig 3 Neptunus'!H59) ->  | I58: =IF($A58="","",'Fig 4 Walkover'!H59) ->  | J58: =IF($A58="","",'Fig 1 Ballet Leg'!I59+'Fig 2 Barracuda'!I59+'Fig 3 Neptunus'!I59+'Fig 4 Walkover'!I59) ->  | AX58: 56 | AY58: 0
A59: =IF(Draw!E59=0,"",Draw!E59) ->  | F59: =IF($A59="","",'Fig 1 Ballet Leg'!H60) ->  | G59: =IF($A59="","",'Fig 2 Barracuda'!H60) ->  | H59: =IF($A59="","",'Fig 3 Neptunus'!H60) ->  | I59: =IF($A59="","",'Fig 4 Walkover'!H60) ->  | J59: =IF($A59="","",'Fig 1 Ballet Leg'!I60+'Fig 2 Barracuda'!I60+'Fig 3 Neptunus'!I60+'Fig 4 Walkover'!I60) ->  | AX59: 57 | AY59: 0
A60: =IF(Draw!E60=0,"",Draw!E60) ->  | F60: =IF($A60="","",'Fig 1 Ballet Leg'!H61) ->  | G60: =IF($A60="","",'Fig 2 Barracuda'!H61) ->  | H60: =IF($A60="","",'Fig 3 Neptunus'!H61) ->  | I60: =IF($A60="","",'Fig 4 Walkover'!H61) ->  | J60: =IF($A60="","",'Fig 1 Ballet Leg'!I61+'Fig 2 Barracuda'!I61+'Fig 3 Neptunus'!I61+'Fig 4 Walkover'!I61) ->  | AX60: 58 | AY60: 0
A61: =IF(Draw!E61=0,"",Draw!E61) ->  | F61: =IF($A61="","",'Fig 1 Ballet Leg'!H62) ->  | G61: =IF($A61="","",'Fig 2 Barracuda'!H62) ->  | H61: =IF($A61="","",'Fig 3 Neptunus'!H62) ->  | I61: =IF($A61="","",'Fig 4 Walkover'!H62) ->  | J61: =IF($A61="","",'Fig 1 Ballet Leg'!I62+'Fig 2 Barracuda'!I62+'Fig 3 Neptunus'!I62+'Fig 4 Walkover'!I62) ->  | AX61: 59 | AY61: 0
A62: =IF(Draw!E62=0,"",Draw!E62) ->  | F62: =IF($A62="","",'Fig 1 Ballet Leg'!H63) ->  | G62: =IF($A62="","",'Fig 2 Barracuda'!H63) ->  | H62: =IF($A62="","",'Fig 3 Neptunus'!H63) ->  | I62: =IF($A62="","",'Fig 4 Walkover'!H63) ->  | J62: =IF($A62="","",'Fig 1 Ballet Leg'!I63+'Fig 2 Barracuda'!I63+'Fig 3 Neptunus'!I63+'Fig 4 Walkover'!I63) ->  | AX62: 60 | AY62: 0
A63: =IF(Draw!E63=0,"",Draw!E63) ->  | F63: =IF($A63="","",'Fig 1 Ballet Leg'!H64) ->  | G63: =IF($A63="","",'Fig 2 Barracuda'!H64) ->  | H63: =IF($A63="","",'Fig 3 Neptunus'!H64) ->  | I63: =IF($A63="","",'Fig 4 Walkover'!H64) ->  | J63: =IF($A63="","",'Fig 1 Ballet Leg'!I64+'Fig 2 Barracuda'!I64+'Fig 3 Neptunus'!I64+'Fig 4 Walkover'!I64) ->  | AX63: 61 | AY63: 0
A64: =IF(Draw!E64=0,"",Draw!E64) ->  | F64: =IF($A64="","",'Fig 1 Ballet Leg'!H65) ->  | G64: =IF($A64="","",'Fig 2 Barracuda'!H65) ->  | H64: =IF($A64="","",'Fig 3 Neptunus'!H65) ->  | I64: =IF($A64="","",'Fig 4 Walkover'!H65) ->  | J64: =IF($A64="","",'Fig 1 Ballet Leg'!I65+'Fig 2 Barracuda'!I65+'Fig 3 Neptunus'!I65+'Fig 4 Walkover'!I65) ->  | AX64: 62 | AY64: 0
A65: =IF(Draw!E65=0,"",Draw!E65) ->  | F65: =IF($A65="","",'Fig 1 Ballet Leg'!H66) ->  | G65: =IF($A65="","",'Fig 2 Barracuda'!H66) ->  | H65: =IF($A65="","",'Fig 3 Neptunus'!H66) ->  | I65: =IF($A65="","",'Fig 4 Walkover'!H66) ->  | J65: =IF($A65="","",'Fig 1 Ballet Leg'!I66+'Fig 2 Barracuda'!I66+'Fig 3 Neptunus'!I66+'Fig 4 Walkover'!I66) ->  | AX65: 63 | AY65: 0
A66: =IF(Draw!E66=0,"",Draw!E66) ->  | F66: =IF($A66="","",'Fig 1 Ballet Leg'!H67) ->  | G66: =IF($A66="","",'Fig 2 Barracuda'!H67) ->  | H66: =IF($A66="","",'Fig 3 Neptunus'!H67) ->  | I66: =IF($A66="","",'Fig 4 Walkover'!H67) ->  | J66: =IF($A66="","",'Fig 1 Ballet Leg'!I67+'Fig 2 Barracuda'!I67+'Fig 3 Neptunus'!I67+'Fig 4 Walkover'!I67) ->  | AX66: 64 | AY66: 0
A67: =IF(Draw!E67=0,"",Draw!E67) ->  | F67: =IF($A67="","",'Fig 1 Ballet Leg'!H68) ->  | G67: =IF($A67="","",'Fig 2 Barracuda'!H68) ->  | H67: =IF($A67="","",'Fig 3 Neptunus'!H68) ->  | I67: =IF($A67="","",'Fig 4 Walkover'!H68) ->  | J67: =IF($A67="","",'Fig 1 Ballet Leg'!I68+'Fig 2 Barracuda'!I68+'Fig 3 Neptunus'!I68+'Fig 4 Walkover'!I68) ->  | AX67: 65 | AY67: 0
A68: =IF(Draw!E68=0,"",Draw!E68) ->  | F68: =IF($A68="","",'Fig 1 Ballet Leg'!H69) ->  | G68: =IF($A68="","",'Fig 2 Barracuda'!H69) ->  | H68: =IF($A68="","",'Fig 3 Neptunus'!H69) ->  | I68: =IF($A68="","",'Fig 4 Walkover'!H69) ->  | J68: =IF($A68="","",'Fig 1 Ballet Leg'!I69+'Fig 2 Barracuda'!I69+'Fig 3 Neptunus'!I69+'Fig 4 Walkover'!I69) ->  | AX68: 66 | AY68: 0
A69: =IF(Draw!E69=0,"",Draw!E69) ->  | D69: =IF($A69="","",SUM(F69:I69)-J69) ->  | E69: =IF($A69="","",RANK(D69,D$2:D$150)) ->  | F69: =IF($A69="","",'Fig 1 Ballet Leg'!H70) ->  | G69: =IF($A69="","",'Fig 2 Barracuda'!H70) ->  | H69: =IF($A69="","",'Fig 3 Neptunus'!H70) ->  | I69: =IF($A69="","",'Fig 4 Walkover'!H70) ->  | J69: =IF($A69="","",'Fig 1 Ballet Leg'!I70+'Fig 2 Barracuda'!I70+'Fig 3 Neptunus'!I70+'Fig 4 Walkover'!I70) ->  | K69: =IF($A69="","",IF(A69="","",VLOOKUP(E69,AX$3:AY$102,2,FALSE))) ->  | AX69: 67 | AY69: 0
A70: =IF(Draw!E70=0,"",Draw!E70) ->  | F70: =IF($A70="","",'Fig 1 Ballet Leg'!H71) ->  | G70: =IF($A70="","",'Fig 2 Barracuda'!H71) ->  | H70: =IF($A70="","",'Fig 3 Neptunus'!H71) ->  | I70: =IF($A70="","",'Fig 4 Walkover'!H71) ->  | J70: =IF($A70="","",'Fig 1 Ballet Leg'!I71+'Fig 2 Barracuda'!I71+'Fig 3 Neptunus'!I71+'Fig 4 Walkover'!I71) ->  | AX70: 68 | AY70: 0
A71: =IF(Draw!E71=0,"",Draw!E71) ->  | F71: =IF($A71="","",'Fig 1 Ballet Leg'!H72) ->  | G71: =IF($A71="","",'Fig 2 Barracuda'!H72) ->  | H71: =IF($A71="","",'Fig 3 Neptunus'!H72) ->  | I71: =IF($A71="","",'Fig 4 Walkover'!H72) ->  | J71: =IF($A71="","",'Fig 1 Ballet Leg'!I72+'Fig 2 Barracuda'!I72+'Fig 3 Neptunus'!I72+'Fig 4 Walkover'!I72) ->  | AX71: 69 | AY71: 0
A72: =IF(Draw!E72=0,"",Draw!E72) ->  | F72: =IF($A72="","",'Fig 1 Ballet Leg'!H73) ->  | G72: =IF($A72="","",'Fig 2 Barracuda'!H73) ->  | H72: =IF($A72="","",'Fig 3 Neptunus'!H73) ->  | I72: =IF($A72="","",'Fig 4 Walkover'!H73) ->  | J72: =IF($A72="","",'Fig 1 Ballet Leg'!I73+'Fig 2 Barracuda'!I73+'Fig 3 Neptunus'!I73+'Fig 4 Walkover'!I73) ->  | AX72: 70 | AY72: 0
A73: =IF(Draw!E73=0,"",Draw!E73) ->  | F73: =IF($A73="","",'Fig 1 Ballet Leg'!H74) ->  | G73: =IF($A73="","",'Fig 2 Barracuda'!H74) ->  | H73: =IF($A73="","",'Fig 3 Neptunus'!H74) ->  | I73: =IF($A73="","",'Fig 4 Walkover'!H74) ->  | J73: =IF($A73="","",'Fig 1 Ballet Leg'!I74+'Fig 2 Barracuda'!I74+'Fig 3 Neptunus'!I74+'Fig 4 Walkover'!I74) ->  | AX73: 71 | AY73: 0
A74: =IF(Draw!E74=0,"",Draw!E74) ->  | F74: =IF($A74="","",'Fig 1 Ballet Leg'!H75) ->  | G74: =IF($A74="","",'Fig 2 Barracuda'!H75) ->  | H74: =IF($A74="","",'Fig 3 Neptunus'!H75) ->  | I74: =IF($A74="","",'Fig 4 Walkover'!H75) ->  | J74: =IF($A74="","",'Fig 1 Ballet Leg'!I75+'Fig 2 Barracuda'!I75+'Fig 3 Neptunus'!I75+'Fig 4 Walkover'!I75) ->  | AX74: 72 | AY74: 0
A75: =IF(Draw!E75=0,"",Draw!E75) ->  | F75: =IF($A75="","",'Fig 1 Ballet Leg'!H76) ->  | G75: =IF($A75="","",'Fig 2 Barracuda'!H76) ->  | H75: =IF($A75="","",'Fig 3 Neptunus'!H76) ->  | I75: =IF($A75="","",'Fig 4 Walkover'!H76) ->  | J75: =IF($A75="","",'Fig 1 Ballet Leg'!I76+'Fig 2 Barracuda'!I76+'Fig 3 Neptunus'!I76+'Fig 4 Walkover'!I76) ->  | AX75: 73 | AY75: 0
A76: =IF(Draw!E76=0,"",Draw!E76) ->  | F76: =IF($A76="","",'Fig 1 Ballet Leg'!H77) ->  | G76: =IF($A76="","",'Fig 2 Barracuda'!H77) ->  | H76: =IF($A76="","",'Fig 3 Neptunus'!H77) ->  | I76: =IF($A76="","",'Fig 4 Walkover'!H77) ->  | J76: =IF($A76="","",'Fig 1 Ballet Leg'!I77+'Fig 2 Barracuda'!I77+'Fig 3 Neptunus'!I77+'Fig 4 Walkover'!I77) ->  | AX76: 74 | AY76: 0
A77: =IF(Draw!E77=0,"",Draw!E77) ->  | F77: =IF($A77="","",'Fig 1 Ballet Leg'!H78) ->  | G77: =IF($A77="","",'Fig 2 Barracuda'!H78) ->  | H77: =IF($A77="","",'Fig 3 Neptunus'!H78) ->  | I77: =IF($A77="","",'Fig 4 Walkover'!H78) ->  | J77: =IF($A77="","",'Fig 1 Ballet Leg'!I78+'Fig 2 Barracuda'!I78+'Fig 3 Neptunus'!I78+'Fig 4 Walkover'!I78) ->  | AX77: 75 | AY77: 0
A78: =IF(Draw!E78=0,"",Draw!E78) ->  | F78: =IF($A78="","",'Fig 1 Ballet Leg'!H79) ->  | G78: =IF($A78="","",'Fig 2 Barracuda'!H79) ->  | H78: =IF($A78="","",'Fig 3 Neptunus'!H79) ->  | I78: =IF($A78="","",'Fig 4 Walkover'!H79) ->  | J78: =IF($A78="","",'Fig 1 Ballet Leg'!I79+'Fig 2 Barracuda'!I79+'Fig 3 Neptunus'!I79+'Fig 4 Walkover'!I79) ->  | AX78: 76 | AY78: 0
A79: =IF(Draw!E79=0,"",Draw!E79) ->  | F79: =IF($A79="","",'Fig 1 Ballet Leg'!H80) ->  | G79: =IF($A79="","",'Fig 2 Barracuda'!H80) ->  | H79: =IF($A79="","",'Fig 3 Neptunus'!H80) ->  | I79: =IF($A79="","",'Fig 4 Walkover'!H80) ->  | J79: =IF($A79="","",'Fig 1 Ballet Leg'!I80+'Fig 2 Barracuda'!I80+'Fig 3 Neptunus'!I80+'Fig 4 Walkover'!I80) ->  | AX79: 77 | AY79: 0
A80: =IF(Draw!E80=0,"",Draw!E80) ->  | F80: =IF($A80="","",'Fig 1 Ballet Leg'!H81) ->  | G80: =IF($A80="","",'Fig 2 Barracuda'!H81) ->  | H80: =IF($A80="","",'Fig 3 Neptunus'!H81) ->  | I80: =IF($A80="","",'Fig 4 Walkover'!H81) ->  | J80: =IF($A80="","",'Fig 1 Ballet Leg'!I81+'Fig 2 Barracuda'!I81+'Fig 3 Neptunus'!I81+'Fig 4 Walkover'!I81) ->  | AX80: 78 | AY80: 0
A81: =IF(Draw!E81=0,"",Draw!E81) ->  | F81: =IF($A81="","",'Fig 1 Ballet Leg'!H82) ->  | G81: =IF($A81="","",'Fig 2 Barracuda'!H82) ->  | H81: =IF($A81="","",'Fig 3 Neptunus'!H82) ->  | I81: =IF($A81="","",'Fig 4 Walkover'!H82) ->  | J81: =IF($A81="","",'Fig 1 Ballet Leg'!I82+'Fig 2 Barracuda'!I82+'Fig 3 Neptunus'!I82+'Fig 4 Walkover'!I82) ->  | AX81: 79 | AY81: 0
A82: =IF(Draw!E82=0,"",Draw!E82) ->  | F82: =IF($A82="","",'Fig 1 Ballet Leg'!H83) ->  | G82: =IF($A82="","",'Fig 2 Barracuda'!H83) ->  | H82: =IF($A82="","",'Fig 3 Neptunus'!H83) ->  | I82: =IF($A82="","",'Fig 4 Walkover'!H83) ->  | J82: =IF($A82="","",'Fig 1 Ballet Leg'!I83+'Fig 2 Barracuda'!I83+'Fig 3 Neptunus'!I83+'Fig 4 Walkover'!I83) ->  | AX82: 80 | AY82: 0
A83: =IF(Draw!E83=0,"",Draw!E83) ->  | F83: =IF($A83="","",'Fig 1 Ballet Leg'!H84) ->  | G83: =IF($A83="","",'Fig 2 Barracuda'!H84) ->  | H83: =IF($A83="","",'Fig 3 Neptunus'!H84) ->  | I83: =IF($A83="","",'Fig 4 Walkover'!H84) ->  | J83: =IF($A83="","",'Fig 1 Ballet Leg'!I84+'Fig 2 Barracuda'!I84+'Fig 3 Neptunus'!I84+'Fig 4 Walkover'!I84) ->  | AX83: 81 | AY83: 0
A84: =IF(Draw!E84=0,"",Draw!E84) ->  | F84: =IF($A84="","",'Fig 1 Ballet Leg'!H85) ->  | G84: =IF($A84="","",'Fig 2 Barracuda'!H85) ->  | H84: =IF($A84="","",'Fig 3 Neptunus'!H85) ->  | I84: =IF($A84="","",'Fig 4 Walkover'!H85) ->  | J84: =IF($A84="","",'Fig 1 Ballet Leg'!I85+'Fig 2 Barracuda'!I85+'Fig 3 Neptunus'!I85+'Fig 4 Walkover'!I85) ->  | AX84: 82 | AY84: 0
A85: =IF(Draw!E85=0,"",Draw!E85) ->  | F85: =IF($A85="","",'Fig 1 Ballet Leg'!H86) ->  | G85: =IF($A85="","",'Fig 2 Barracuda'!H86) ->  | H85: =IF($A85="","",'Fig 3 Neptunus'!H86) ->  | I85: =IF($A85="","",'Fig 4 Walkover'!H86) ->  | J85: =IF($A85="","",'Fig 1 Ballet Leg'!I86+'Fig 2 Barracuda'!I86+'Fig 3 Neptunus'!I86+'Fig 4 Walkover'!I86) ->  | AX85: 83 | AY85: 0
A86: =IF(Draw!E86=0,"",Draw!E86) ->  | F86: =IF($A86="","",'Fig 1 Ballet Leg'!H87) ->  | G86: =IF($A86="","",'Fig 2 Barracuda'!H87) ->  | H86: =IF($A86="","",'Fig 3 Neptunus'!H87) ->  | I86: =IF($A86="","",'Fig 4 Walkover'!H87) ->  | J86: =IF($A86="","",'Fig 1 Ballet Leg'!I87+'Fig 2 Barracuda'!I87+'Fig 3 Neptunus'!I87+'Fig 4 Walkover'!I87) ->  | AX86: 84 | AY86: 0
A87: =IF(Draw!E87=0,"",Draw!E87) ->  | F87: =IF($A87="","",'Fig 1 Ballet Leg'!H88) ->  | G87: =IF($A87="","",'Fig 2 Barracuda'!H88) ->  | H87: =IF($A87="","",'Fig 3 Neptunus'!H88) ->  | I87: =IF($A87="","",'Fig 4 Walkover'!H88) ->  | J87: =IF($A87="","",'Fig 1 Ballet Leg'!I88+'Fig 2 Barracuda'!I88+'Fig 3 Neptunus'!I88+'Fig 4 Walkover'!I88) ->  | AX87: 85 | AY87: 0
A88: =IF(Draw!E88=0,"",Draw!E88) ->  | F88: =IF($A88="","",'Fig 1 Ballet Leg'!H89) ->  | G88: =IF($A88="","",'Fig 2 Barracuda'!H89) ->  | H88: =IF($A88="","",'Fig 3 Neptunus'!H89) ->  | I88: =IF($A88="","",'Fig 4 Walkover'!H89) ->  | J88: =IF($A88="","",'Fig 1 Ballet Leg'!I89+'Fig 2 Barracuda'!I89+'Fig 3 Neptunus'!I89+'Fig 4 Walkover'!I89) ->  | AX88: 86 | AY88: 0
A89: =IF(Draw!E89=0,"",Draw!E89) ->  | F89: =IF($A89="","",'Fig 1 Ballet Leg'!H90) ->  | G89: =IF($A89="","",'Fig 2 Barracuda'!H90) ->  | H89: =IF($A89="","",'Fig 3 Neptunus'!H90) ->  | I89: =IF($A89="","",'Fig 4 Walkover'!H90) ->  | J89: =IF($A89="","",'Fig 1 Ballet Leg'!I90+'Fig 2 Barracuda'!I90+'Fig 3 Neptunus'!I90+'Fig 4 Walkover'!I90) ->  | AX89: 87 | AY89: 0
A90: =IF(Draw!E90=0,"",Draw!E90) ->  | F90: =IF($A90="","",'Fig 1 Ballet Leg'!H91) ->  | G90: =IF($A90="","",'Fig 2 Barracuda'!H91) ->  | H90: =IF($A90="","",'Fig 3 Neptunus'!H91) ->  | I90: =IF($A90="","",'Fig 4 Walkover'!H91) ->  | J90: =IF($A90="","",'Fig 1 Ballet Leg'!I91+'Fig 2 Barracuda'!I91+'Fig 3 Neptunus'!I91+'Fig 4 Walkover'!I91) ->  | AX90: 88 | AY90: 0
A91: =IF(Draw!E91=0,"",Draw!E91) ->  | F91: =IF($A91="","",'Fig 1 Ballet Leg'!H92) ->  | G91: =IF($A91="","",'Fig 2 Barracuda'!H92) ->  | H91: =IF($A91="","",'Fig 3 Neptunus'!H92) ->  | I91: =IF($A91="","",'Fig 4 Walkover'!H92) ->  | J91: =IF($A91="","",'Fig 1 Ballet Leg'!I92+'Fig 2 Barracuda'!I92+'Fig 3 Neptunus'!I92+'Fig 4 Walkover'!I92) ->  | AX91: 89 | AY91: 0
A92: =IF(Draw!E92=0,"",Draw!E92) ->  | F92: =IF($A92="","",'Fig 1 Ballet Leg'!H93) ->  | G92: =IF($A92="","",'Fig 2 Barracuda'!H93) ->  | H92: =IF($A92="","",'Fig 3 Neptunus'!H93) ->  | I92: =IF($A92="","",'Fig 4 Walkover'!H93) ->  | J92: =IF($A92="","",'Fig 1 Ballet Leg'!I93+'Fig 2 Barracuda'!I93+'Fig 3 Neptunus'!I93+'Fig 4 Walkover'!I93) ->  | AX92: 90 | AY92: 0
A93: =IF(Draw!E93=0,"",Draw!E93) ->  | F93: =IF($A93="","",'Fig 1 Ballet Leg'!H94) ->  | G93: =IF($A93="","",'Fig 2 Barracuda'!H94) ->  | H93: =IF($A93="","",'Fig 3 Neptunus'!H94) ->  | I93: =IF($A93="","",'Fig 4 Walkover'!H94) ->  | J93: =IF($A93="","",'Fig 1 Ballet Leg'!I94+'Fig 2 Barracuda'!I94+'Fig 3 Neptunus'!I94+'Fig 4 Walkover'!I94) ->  | AX93: 91 | AY93: 0
A94: =IF(Draw!E94=0,"",Draw!E94) ->  | F94: =IF($A94="","",'Fig 1 Ballet Leg'!H95) ->  | G94: =IF($A94="","",'Fig 2 Barracuda'!H95) ->  | H94: =IF($A94="","",'Fig 3 Neptunus'!H95) ->  | I94: =IF($A94="","",'Fig 4 Walkover'!H95) ->  | J94: =IF($A94="","",'Fig 1 Ballet Leg'!I95+'Fig 2 Barracuda'!I95+'Fig 3 Neptunus'!I95+'Fig 4 Walkover'!I95) ->  | AX94: 92 | AY94: 0
A95: =IF(Draw!E95=0,"",Draw!E95) ->  | F95: =IF($A95="","",'Fig 1 Ballet Leg'!H96) ->  | G95: =IF($A95="","",'Fig 2 Barracuda'!H96) ->  | H95: =IF($A95="","",'Fig 3 Neptunus'!H96) ->  | I95: =IF($A95="","",'Fig 4 Walkover'!H96) ->  | J95: =IF($A95="","",'Fig 1 Ballet Leg'!I96+'Fig 2 Barracuda'!I96+'Fig 3 Neptunus'!I96+'Fig 4 Walkover'!I96) ->  | AX95: 93 | AY95: 0
A96: =IF(Draw!E96=0,"",Draw!E96) ->  | F96: =IF($A96="","",'Fig 1 Ballet Leg'!H97) ->  | G96: =IF($A96="","",'Fig 2 Barracuda'!H97) ->  | H96: =IF($A96="","",'Fig 3 Neptunus'!H97) ->  | I96: =IF($A96="","",'Fig 4 Walkover'!H97) ->  | J96: =IF($A96="","",'Fig 1 Ballet Leg'!I97+'Fig 2 Barracuda'!I97+'Fig 3 Neptunus'!I97+'Fig 4 Walkover'!I97) ->  | AX96: 94 | AY96: 0
A97: =IF(Draw!E97=0,"",Draw!E97) ->  | F97: =IF($A97="","",'Fig 1 Ballet Leg'!H98) ->  | G97: =IF($A97="","",'Fig 2 Barracuda'!H98) ->  | H97: =IF($A97="","",'Fig 3 Neptunus'!H98) ->  | I97: =IF($A97="","",'Fig 4 Walkover'!H98) ->  | J97: =IF($A97="","",'Fig 1 Ballet Leg'!I98+'Fig 2 Barracuda'!I98+'Fig 3 Neptunus'!I98+'Fig 4 Walkover'!I98) ->  | AX97: 95 | AY97: 0
A98: =IF(Draw!E98=0,"",Draw!E98) ->  | F98: =IF($A98="","",'Fig 1 Ballet Leg'!H99) ->  | G98: =IF($A98="","",'Fig 2 Barracuda'!H99) ->  | H98: =IF($A98="","",'Fig 3 Neptunus'!H99) ->  | I98: =IF($A98="","",'Fig 4 Walkover'!H99) ->  | J98: =IF($A98="","",'Fig 1 Ballet Leg'!I99+'Fig 2 Barracuda'!I99+'Fig 3 Neptunus'!I99+'Fig 4 Walkover'!I99) ->  | AX98: 96 | AY98: 0
A99: =IF(Draw!E99=0,"",Draw!E99) ->  | F99: =IF($A99="","",'Fig 1 Ballet Leg'!H100) ->  | G99: =IF($A99="","",'Fig 2 Barracuda'!H100) ->  | H99: =IF($A99="","",'Fig 3 Neptunus'!H100) ->  | I99: =IF($A99="","",'Fig 4 Walkover'!H100) ->  | J99: =IF($A99="","",'Fig 1 Ballet Leg'!I100+'Fig 2 Barracuda'!I100+'Fig 3 Neptunus'!I100+'Fig 4 Walkover'!I100) ->  | AX99: 97 | AY99: 0
A100: =IF(Draw!E100=0,"",Draw!E100) ->  | F100: =IF($A100="","",'Fig 1 Ballet Leg'!H101) ->  | G100: =IF($A100="","",'Fig 2 Barracuda'!H101) ->  | H100: =IF($A100="","",'Fig 3 Neptunus'!H101) ->  | I100: =IF($A100="","",'Fig 4 Walkover'!H101) ->  | J100: =IF($A100="","",'Fig 1 Ballet Leg'!I101+'Fig 2 Barracuda'!I101+'Fig 3 Neptunus'!I101+'Fig 4 Walkover'!I101) ->  | AX100: 98 | AY100: 0
A101: =IF(Draw!E101=0,"",Draw!E101) ->  | F101: =IF($A101="","",'Fig 1 Ballet Leg'!H102) ->  | G101: =IF($A101="","",'Fig 2 Barracuda'!H102) ->  | H101: =IF($A101="","",'Fig 3 Neptunus'!H102) ->  | I101: =IF($A101="","",'Fig 4 Walkover'!H102) ->  | J101: =IF($A101="","",'Fig 1 Ballet Leg'!I102+'Fig 2 Barracuda'!I102+'Fig 3 Neptunus'!I102+'Fig 4 Walkover'!I102) ->  | AX101: 99 | AY101: 0
A102: =IF(Draw!E102=0,"",Draw!E102) ->  | F102: =IF($A102="","",'Fig 1 Ballet Leg'!H103) ->  | G102: =IF($A102="","",'Fig 2 Barracuda'!H103) ->  | H102: =IF($A102="","",'Fig 3 Neptunus'!H103) ->  | I102: =IF($A102="","",'Fig 4 Walkover'!H103) ->  | J102: =IF($A102="","",'Fig 1 Ballet Leg'!I103+'Fig 2 Barracuda'!I103+'Fig 3 Neptunus'!I103+'Fig 4 Walkover'!I103) ->  | AX102: 100 | AY102: 0
A103: =IF(Draw!E103=0,"",Draw!E103) ->  | F103: =IF($A103="","",'Fig 1 Ballet Leg'!H104) ->  | G103: =IF($A103="","",'Fig 2 Barracuda'!H104) ->  | H103: =IF($A103="","",'Fig 3 Neptunus'!H104) ->  | I103: =IF($A103="","",'Fig 4 Walkover'!H104) ->  | J103: =IF($A103="","",'Fig 1 Ballet Leg'!I104+'Fig 2 Barracuda'!I104+'Fig 3 Neptunus'!I104+'Fig 4 Walkover'!I104) -> 
A104: =IF(Draw!E104=0,"",Draw!E104) ->  | F104: =IF($A104="","",'Fig 1 Ballet Leg'!H105) ->  | G104: =IF($A104="","",'Fig 2 Barracuda'!H105) ->  | H104: =IF($A104="","",'Fig 3 Neptunus'!H105) ->  | I104: =IF($A104="","",'Fig 4 Walkover'!H105) ->  | J104: =IF($A104="","",'Fig 1 Ballet Leg'!I105+'Fig 2 Barracuda'!I105+'Fig 3 Neptunus'!I105+'Fig 4 Walkover'!I105) -> 
A105: =IF(Draw!E105=0,"",Draw!E105) ->  | F105: =IF($A105="","",'Fig 1 Ballet Leg'!H106) ->  | G105: =IF($A105="","",'Fig 2 Barracuda'!H106) ->  | H105: =IF($A105="","",'Fig 3 Neptunus'!H106) ->  | I105: =IF($A105="","",'Fig 4 Walkover'!H106) ->  | J105: =IF($A105="","",'Fig 1 Ballet Leg'!I106+'Fig 2 Barracuda'!I106+'Fig 3 Neptunus'!I106+'Fig 4 Walkover'!I106) -> 
A106: =IF(Draw!E106=0,"",Draw!E106) ->  | F106: =IF($A106="","",'Fig 1 Ballet Leg'!H107) ->  | G106: =IF($A106="","",'Fig 2 Barracuda'!H107) ->  | H106: =IF($A106="","",'Fig 3 Neptunus'!H107) ->  | I106: =IF($A106="","",'Fig 4 Walkover'!H107) ->  | J106: =IF($A106="","",'Fig 1 Ballet Leg'!I107+'Fig 2 Barracuda'!I107+'Fig 3 Neptunus'!I107+'Fig 4 Walkover'!I107) -> 
A107: =IF(Draw!E107=0,"",Draw!E107) ->  | F107: =IF($A107="","",'Fig 1 Ballet Leg'!H108) ->  | G107: =IF($A107="","",'Fig 2 Barracuda'!H108) ->  | H107: =IF($A107="","",'Fig 3 Neptunus'!H108) ->  | I107: =IF($A107="","",'Fig 4 Walkover'!H108) ->  | J107: =IF($A107="","",'Fig 1 Ballet Leg'!I108+'Fig 2 Barracuda'!I108+'Fig 3 Neptunus'!I108+'Fig 4 Walkover'!I108) -> 
A108: =IF(Draw!E108=0,"",Draw!E108) ->  | F108: =IF($A108="","",'Fig 1 Ballet Leg'!H109) ->  | G108: =IF($A108="","",'Fig 2 Barracuda'!H109) ->  | H108: =IF($A108="","",'Fig 3 Neptunus'!H109) ->  | I108: =IF($A108="","",'Fig 4 Walkover'!H109) ->  | J108: =IF($A108="","",'Fig 1 Ballet Leg'!I109+'Fig 2 Barracuda'!I109+'Fig 3 Neptunus'!I109+'Fig 4 Walkover'!I109) -> 
A109: =IF(Draw!E109=0,"",Draw!E109) ->  | F109: =IF($A109="","",'Fig 1 Ballet Leg'!H110) ->  | G109: =IF($A109="","",'Fig 2 Barracuda'!H110) ->  | H109: =IF($A109="","",'Fig 3 Neptunus'!H110) ->  | I109: =IF($A109="","",'Fig 4 Walkover'!H110) ->  | J109: =IF($A109="","",'Fig 1 Ballet Leg'!I110+'Fig 2 Barracuda'!I110+'Fig 3 Neptunus'!I110+'Fig 4 Walkover'!I110) -> 
A110: =IF(Draw!E110=0,"",Draw!E110) ->  | F110: =IF($A110="","",'Fig 1 Ballet Leg'!H111) ->  | G110: =IF($A110="","",'Fig 2 Barracuda'!H111) ->  | H110: =IF($A110="","",'Fig 3 Neptunus'!H111) ->  | I110: =IF($A110="","",'Fig 4 Walkover'!H111) ->  | J110: =IF($A110="","",'Fig 1 Ballet Leg'!I111+'Fig 2 Barracuda'!I111+'Fig 3 Neptunus'!I111+'Fig 4 Walkover'!I111) -> 
A111: =IF(Draw!E111=0,"",Draw!E111) ->  | F111: =IF($A111="","",'Fig 1 Ballet Leg'!H112) ->  | G111: =IF($A111="","",'Fig 2 Barracuda'!H112) ->  | H111: =IF($A111="","",'Fig 3 Neptunus'!H112) ->  | I111: =IF($A111="","",'Fig 4 Walkover'!H112) ->  | J111: =IF($A111="","",'Fig 1 Ballet Leg'!I112+'Fig 2 Barracuda'!I112+'Fig 3 Neptunus'!I112+'Fig 4 Walkover'!I112) -> 
A112: =IF(Draw!E112=0,"",Draw!E112) ->  | F112: =IF($A112="","",'Fig 1 Ballet Leg'!H113) ->  | G112: =IF($A112="","",'Fig 2 Barracuda'!H113) ->  | H112: =IF($A112="","",'Fig 3 Neptunus'!H113) ->  | I112: =IF($A112="","",'Fig 4 Walkover'!H113) ->  | J112: =IF($A112="","",'Fig 1 Ballet Leg'!I113+'Fig 2 Barracuda'!I113+'Fig 3 Neptunus'!I113+'Fig 4 Walkover'!I113) -> 
A113: =IF(Draw!E113=0,"",Draw!E113) ->  | F113: =IF($A113="","",'Fig 1 Ballet Leg'!H114) ->  | G113: =IF($A113="","",'Fig 2 Barracuda'!H114) ->  | H113: =IF($A113="","",'Fig 3 Neptunus'!H114) ->  | I113: =IF($A113="","",'Fig 4 Walkover'!H114) ->  | J113: =IF($A113="","",'Fig 1 Ballet Leg'!I114+'Fig 2 Barracuda'!I114+'Fig 3 Neptunus'!I114+'Fig 4 Walkover'!I114) -> 
A114: =IF(Draw!E114=0,"",Draw!E114) ->  | F114: =IF($A114="","",'Fig 1 Ballet Leg'!H115) ->  | G114: =IF($A114="","",'Fig 2 Barracuda'!H115) ->  | H114: =IF($A114="","",'Fig 3 Neptunus'!H115) ->  | I114: =IF($A114="","",'Fig 4 Walkover'!H115) ->  | J114: =IF($A114="","",'Fig 1 Ballet Leg'!I115+'Fig 2 Barracuda'!I115+'Fig 3 Neptunus'!I115+'Fig 4 Walkover'!I115) -> 
A115: =IF(Draw!E115=0,"",Draw!E115) ->  | F115: =IF($A115="","",'Fig 1 Ballet Leg'!H116) ->  | G115: =IF($A115="","",'Fig 2 Barracuda'!H116) ->  | H115: =IF($A115="","",'Fig 3 Neptunus'!H116) ->  | I115: =IF($A115="","",'Fig 4 Walkover'!H116) ->  | J115: =IF($A115="","",'Fig 1 Ballet Leg'!I116+'Fig 2 Barracuda'!I116+'Fig 3 Neptunus'!I116+'Fig 4 Walkover'!I116) -> 
A116: =IF(Draw!E116=0,"",Draw!E116) ->  | F116: =IF($A116="","",'Fig 1 Ballet Leg'!H117) ->  | G116: =IF($A116="","",'Fig 2 Barracuda'!H117) ->  | H116: =IF($A116="","",'Fig 3 Neptunus'!H117) ->  | I116: =IF($A116="","",'Fig 4 Walkover'!H117) ->  | J116: =IF($A116="","",'Fig 1 Ballet Leg'!I117+'Fig 2 Barracuda'!I117+'Fig 3 Neptunus'!I117+'Fig 4 Walkover'!I117) -> 
A117: =IF(Draw!E117=0,"",Draw!E117) ->  | F117: =IF($A117="","",'Fig 1 Ballet Leg'!H118) ->  | G117: =IF($A117="","",'Fig 2 Barracuda'!H118) ->  | H117: =IF($A117="","",'Fig 3 Neptunus'!H118) ->  | I117: =IF($A117="","",'Fig 4 Walkover'!H118) ->  | J117: =IF($A117="","",'Fig 1 Ballet Leg'!I118+'Fig 2 Barracuda'!I118+'Fig 3 Neptunus'!I118+'Fig 4 Walkover'!I118) -> 
A118: =IF(Draw!E118=0,"",Draw!E118) ->  | F118: =IF($A118="","",'Fig 1 Ballet Leg'!H119) ->  | G118: =IF($A118="","",'Fig 2 Barracuda'!H119) ->  | H118: =IF($A118="","",'Fig 3 Neptunus'!H119) ->  | I118: =IF($A118="","",'Fig 4 Walkover'!H119) ->  | J118: =IF($A118="","",'Fig 1 Ballet Leg'!I119+'Fig 2 Barracuda'!I119+'Fig 3 Neptunus'!I119+'Fig 4 Walkover'!I119) -> 
A119: =IF(Draw!E119=0,"",Draw!E119) ->  | F119: =IF($A119="","",'Fig 1 Ballet Leg'!H120) ->  | G119: =IF($A119="","",'Fig 2 Barracuda'!H120) ->  | H119: =IF($A119="","",'Fig 3 Neptunus'!H120) ->  | I119: =IF($A119="","",'Fig 4 Walkover'!H120) ->  | J119: =IF($A119="","",'Fig 1 Ballet Leg'!I120+'Fig 2 Barracuda'!I120+'Fig 3 Neptunus'!I120+'Fig 4 Walkover'!I120) -> 
A120: =IF(Draw!E120=0,"",Draw!E120) ->  | F120: =IF($A120="","",'Fig 1 Ballet Leg'!H121) ->  | G120: =IF($A120="","",'Fig 2 Barracuda'!H121) ->  | H120: =IF($A120="","",'Fig 3 Neptunus'!H121) ->  | I120: =IF($A120="","",'Fig 4 Walkover'!H121) ->  | J120: =IF($A120="","",'Fig 1 Ballet Leg'!I121+'Fig 2 Barracuda'!I121+'Fig 3 Neptunus'!I121+'Fig 4 Walkover'!I121) -> 
A121: =IF(Draw!E121=0,"",Draw!E121) ->  | F121: =IF($A121="","",'Fig 1 Ballet Leg'!H122) ->  | G121: =IF($A121="","",'Fig 2 Barracuda'!H122) ->  | H121: =IF($A121="","",'Fig 3 Neptunus'!H122) ->  | I121: =IF($A121="","",'Fig 4 Walkover'!H122) ->  | J121: =IF($A121="","",'Fig 1 Ballet Leg'!I122+'Fig 2 Barracuda'!I122+'Fig 3 Neptunus'!I122+'Fig 4 Walkover'!I122) -> 
A122: =IF(Draw!E122=0,"",Draw!E122) ->  | F122: =IF($A122="","",'Fig 1 Ballet Leg'!H123) ->  | G122: =IF($A122="","",'Fig 2 Barracuda'!H123) ->  | H122: =IF($A122="","",'Fig 3 Neptunus'!H123) ->  | I122: =IF($A122="","",'Fig 4 Walkover'!H123) ->  | J122: =IF($A122="","",'Fig 1 Ballet Leg'!I123+'Fig 2 Barracuda'!I123+'Fig 3 Neptunus'!I123+'Fig 4 Walkover'!I123) -> 
A123: =IF(Draw!E123=0,"",Draw!E123) ->  | F123: =IF($A123="","",'Fig 1 Ballet Leg'!H124) ->  | G123: =IF($A123="","",'Fig 2 Barracuda'!H124) ->  | H123: =IF($A123="","",'Fig 3 Neptunus'!H124) ->  | I123: =IF($A123="","",'Fig 4 Walkover'!H124) ->  | J123: =IF($A123="","",'Fig 1 Ballet Leg'!I124+'Fig 2 Barracuda'!I124+'Fig 3 Neptunus'!I124+'Fig 4 Walkover'!I124) -> 
A124: =IF(Draw!E124=0,"",Draw!E124) ->  | F124: =IF($A124="","",'Fig 1 Ballet Leg'!H125) ->  | G124: =IF($A124="","",'Fig 2 Barracuda'!H125) ->  | H124: =IF($A124="","",'Fig 3 Neptunus'!H125) ->  | I124: =IF($A124="","",'Fig 4 Walkover'!H125) ->  | J124: =IF($A124="","",'Fig 1 Ballet Leg'!I125+'Fig 2 Barracuda'!I125+'Fig 3 Neptunus'!I125+'Fig 4 Walkover'!I125) -> 
A125: =IF(Draw!E125=0,"",Draw!E125) ->  | F125: =IF($A125="","",'Fig 1 Ballet Leg'!H126) ->  | G125: =IF($A125="","",'Fig 2 Barracuda'!H126) ->  | H125: =IF($A125="","",'Fig 3 Neptunus'!H126) ->  | I125: =IF($A125="","",'Fig 4 Walkover'!H126) ->  | J125: =IF($A125="","",'Fig 1 Ballet Leg'!I126+'Fig 2 Barracuda'!I126+'Fig 3 Neptunus'!I126+'Fig 4 Walkover'!I126) -> 
A126: =IF(Draw!E126=0,"",Draw!E126) ->  | F126: =IF($A126="","",'Fig 1 Ballet Leg'!H127) ->  | G126: =IF($A126="","",'Fig 2 Barracuda'!H127) ->  | H126: =IF($A126="","",'Fig 3 Neptunus'!H127) ->  | I126: =IF($A126="","",'Fig 4 Walkover'!H127) ->  | J126: =IF($A126="","",'Fig 1 Ballet Leg'!I127+'Fig 2 Barracuda'!I127+'Fig 3 Neptunus'!I127+'Fig 4 Walkover'!I127) -> 
A127: =IF(Draw!E127=0,"",Draw!E127) ->  | F127: =IF($A127="","",'Fig 1 Ballet Leg'!H128) ->  | G127: =IF($A127="","",'Fig 2 Barracuda'!H128) ->  | H127: =IF($A127="","",'Fig 3 Neptunus'!H128) ->  | I127: =IF($A127="","",'Fig 4 Walkover'!H128) ->  | J127: =IF($A127="","",'Fig 1 Ballet Leg'!I128+'Fig 2 Barracuda'!I128+'Fig 3 Neptunus'!I128+'Fig 4 Walkover'!I128) -> 
A128: =IF(Draw!E128=0,"",Draw!E128) ->  | F128: =IF($A128="","",'Fig 1 Ballet Leg'!H129) ->  | G128: =IF($A128="","",'Fig 2 Barracuda'!H129) ->  | H128: =IF($A128="","",'Fig 3 Neptunus'!H129) ->  | I128: =IF($A128="","",'Fig 4 Walkover'!H129) ->  | J128: =IF($A128="","",'Fig 1 Ballet Leg'!I129+'Fig 2 Barracuda'!I129+'Fig 3 Neptunus'!I129+'Fig 4 Walkover'!I129) -> 
A129: =IF(Draw!E129=0,"",Draw!E129) ->  | F129: =IF($A129="","",'Fig 1 Ballet Leg'!H130) ->  | G129: =IF($A129="","",'Fig 2 Barracuda'!H130) ->  | H129: =IF($A129="","",'Fig 3 Neptunus'!H130) ->  | I129: =IF($A129="","",'Fig 4 Walkover'!H130) ->  | J129: =IF($A129="","",'Fig 1 Ballet Leg'!I130+'Fig 2 Barracuda'!I130+'Fig 3 Neptunus'!I130+'Fig 4 Walkover'!I130) -> 
A130: =IF(Draw!E130=0,"",Draw!E130) ->  | F130: =IF($A130="","",'Fig 1 Ballet Leg'!H131) ->  | G130: =IF($A130="","",'Fig 2 Barracuda'!H131) ->  | H130: =IF($A130="","",'Fig 3 Neptunus'!H131) ->  | I130: =IF($A130="","",'Fig 4 Walkover'!H131) ->  | J130: =IF($A130="","",'Fig 1 Ballet Leg'!I131+'Fig 2 Barracuda'!I131+'Fig 3 Neptunus'!I131+'Fig 4 Walkover'!I131) -> 
A131: =IF(Draw!E131=0,"",Draw!E131) ->  | F131: =IF($A131="","",'Fig 1 Ballet Leg'!H132) ->  | G131: =IF($A131="","",'Fig 2 Barracuda'!H132) ->  | H131: =IF($A131="","",'Fig 3 Neptunus'!H132) ->  | I131: =IF($A131="","",'Fig 4 Walkover'!H132) ->  | J131: =IF($A131="","",'Fig 1 Ballet Leg'!I132+'Fig 2 Barracuda'!I132+'Fig 3 Neptunus'!I132+'Fig 4 Walkover'!I132) -> 
A132: =IF(Draw!E132=0,"",Draw!E132) ->  | F132: =IF($A132="","",'Fig 1 Ballet Leg'!H133) ->  | G132: =IF($A132="","",'Fig 2 Barracuda'!H133) ->  | H132: =IF($A132="","",'Fig 3 Neptunus'!H133) ->  | I132: =IF($A132="","",'Fig 4 Walkover'!H133) ->  | J132: =IF($A132="","",'Fig 1 Ballet Leg'!I133+'Fig 2 Barracuda'!I133+'Fig 3 Neptunus'!I133+'Fig 4 Walkover'!I133) -> 
A133: =IF(Draw!E133=0,"",Draw!E133) ->  | D133: =IF($A133="","",SUM(F133:I133)-J133) ->  | E133: =IF($A133="","",RANK(D133,D$2:D$150)) ->  | F133: =IF($A133="","",'Fig 1 Ballet Leg'!H134) ->  | G133: =IF($A133="","",'Fig 2 Barracuda'!H134) ->  | H133: =IF($A133="","",'Fig 3 Neptunus'!H134) ->  | I133: =IF($A133="","",'Fig 4 Walkover'!H134) ->  | J133: =IF($A133="","",'Fig 1 Ballet Leg'!I134+'Fig 2 Barracuda'!I134+'Fig 3 Neptunus'!I134+'Fig 4 Walkover'!I134) ->  | K133: =IF($A133="","",IF(A133="","",VLOOKUP(E133,AX$3:AY$102,2,FALSE))) -> 
A134: =IF(Draw!E134=0,"",Draw!E134) ->  | F134: =IF($A134="","",'Fig 1 Ballet Leg'!H135) ->  | G134: =IF($A134="","",'Fig 2 Barracuda'!H135) ->  | H134: =IF($A134="","",'Fig 3 Neptunus'!H135) ->  | I134: =IF($A134="","",'Fig 4 Walkover'!H135) ->  | J134: =IF($A134="","",'Fig 1 Ballet Leg'!I135+'Fig 2 Barracuda'!I135+'Fig 3 Neptunus'!I135+'Fig 4 Walkover'!I135) -> 
A135: =IF(Draw!E135=0,"",Draw!E135) ->  | F135: =IF($A135="","",'Fig 1 Ballet Leg'!H136) ->  | G135: =IF($A135="","",'Fig 2 Barracuda'!H136) ->  | H135: =IF($A135="","",'Fig 3 Neptunus'!H136) ->  | I135: =IF($A135="","",'Fig 4 Walkover'!H136) ->  | J135: =IF($A135="","",'Fig 1 Ballet Leg'!I136+'Fig 2 Barracuda'!I136+'Fig 3 Neptunus'!I136+'Fig 4 Walkover'!I136) -> 
A136: =IF(Draw!E136=0,"",Draw!E136) ->  | F136: =IF($A136="","",'Fig 1 Ballet Leg'!H137) ->  | G136: =IF($A136="","",'Fig 2 Barracuda'!H137) ->  | H136: =IF($A136="","",'Fig 3 Neptunus'!H137) ->  | I136: =IF($A136="","",'Fig 4 Walkover'!H137) ->  | J136: =IF($A136="","",'Fig 1 Ballet Leg'!I137+'Fig 2 Barracuda'!I137+'Fig 3 Neptunus'!I137+'Fig 4 Walkover'!I137) -> 
A137: =IF(Draw!E137=0,"",Draw!E137) ->  | F137: =IF($A137="","",'Fig 1 Ballet Leg'!H138) ->  | G137: =IF($A137="","",'Fig 2 Barracuda'!H138) ->  | H137: =IF($A137="","",'Fig 3 Neptunus'!H138) ->  | I137: =IF($A137="","",'Fig 4 Walkover'!H138) ->  | J137: =IF($A137="","",'Fig 1 Ballet Leg'!I138+'Fig 2 Barracuda'!I138+'Fig 3 Neptunus'!I138+'Fig 4 Walkover'!I138) -> 
A138: =IF(Draw!E138=0,"",Draw!E138) ->  | F138: =IF($A138="","",'Fig 1 Ballet Leg'!H139) ->  | G138: =IF($A138="","",'Fig 2 Barracuda'!H139) ->  | H138: =IF($A138="","",'Fig 3 Neptunus'!H139) ->  | I138: =IF($A138="","",'Fig 4 Walkover'!H139) ->  | J138: =IF($A138="","",'Fig 1 Ballet Leg'!I139+'Fig 2 Barracuda'!I139+'Fig 3 Neptunus'!I139+'Fig 4 Walkover'!I139) -> 
A139: =IF(Draw!E139=0,"",Draw!E139) ->  | F139: =IF($A139="","",'Fig 1 Ballet Leg'!H140) ->  | G139: =IF($A139="","",'Fig 2 Barracuda'!H140) ->  | H139: =IF($A139="","",'Fig 3 Neptunus'!H140) ->  | I139: =IF($A139="","",'Fig 4 Walkover'!H140) ->  | J139: =IF($A139="","",'Fig 1 Ballet Leg'!I140+'Fig 2 Barracuda'!I140+'Fig 3 Neptunus'!I140+'Fig 4 Walkover'!I140) -> 
A140: =IF(Draw!E140=0,"",Draw!E140) ->  | F140: =IF($A140="","",'Fig 1 Ballet Leg'!H141) ->  | G140: =IF($A140="","",'Fig 2 Barracuda'!H141) ->  | H140: =IF($A140="","",'Fig 3 Neptunus'!H141) ->  | I140: =IF($A140="","",'Fig 4 Walkover'!H141) ->  | J140: =IF($A140="","",'Fig 1 Ballet Leg'!I141+'Fig 2 Barracuda'!I141+'Fig 3 Neptunus'!I141+'Fig 4 Walkover'!I141) -> 
A141: =IF(Draw!E141=0,"",Draw!E141) ->  | F141: =IF($A141="","",'Fig 1 Ballet Leg'!H142) ->  | G141: =IF($A141="","",'Fig 2 Barracuda'!H142) ->  | H141: =IF($A141="","",'Fig 3 Neptunus'!H142) ->  | I141: =IF($A141="","",'Fig 4 Walkover'!H142) ->  | J141: =IF($A141="","",'Fig 1 Ballet Leg'!I142+'Fig 2 Barracuda'!I142+'Fig 3 Neptunus'!I142+'Fig 4 Walkover'!I142) -> 
A142: =IF(Draw!E142=0,"",Draw!E142) ->  | F142: =IF($A142="","",'Fig 1 Ballet Leg'!H143) ->  | G142: =IF($A142="","",'Fig 2 Barracuda'!H143) ->  | H142: =IF($A142="","",'Fig 3 Neptunus'!H143) ->  | I142: =IF($A142="","",'Fig 4 Walkover'!H143) ->  | J142: =IF($A142="","",'Fig 1 Ballet Leg'!I143+'Fig 2 Barracuda'!I143+'Fig 3 Neptunus'!I143+'Fig 4 Walkover'!I143) -> 
A143: =IF(Draw!E143=0,"",Draw!E143) ->  | F143: =IF($A143="","",'Fig 1 Ballet Leg'!H144) ->  | G143: =IF($A143="","",'Fig 2 Barracuda'!H144) ->  | H143: =IF($A143="","",'Fig 3 Neptunus'!H144) ->  | I143: =IF($A143="","",'Fig 4 Walkover'!H144) ->  | J143: =IF($A143="","",'Fig 1 Ballet Leg'!I144+'Fig 2 Barracuda'!I144+'Fig 3 Neptunus'!I144+'Fig 4 Walkover'!I144) -> 
A144: =IF(Draw!E144=0,"",Draw!E144) ->  | F144: =IF($A144="","",'Fig 1 Ballet Leg'!H145) ->  | G144: =IF($A144="","",'Fig 2 Barracuda'!H145) ->  | H144: =IF($A144="","",'Fig 3 Neptunus'!H145) ->  | I144: =IF($A144="","",'Fig 4 Walkover'!H145) ->  | J144: =IF($A144="","",'Fig 1 Ballet Leg'!I145+'Fig 2 Barracuda'!I145+'Fig 3 Neptunus'!I145+'Fig 4 Walkover'!I145) -> 
A145: =IF(Draw!E145=0,"",Draw!E145) ->  | F145: =IF($A145="","",'Fig 1 Ballet Leg'!H146) ->  | G145: =IF($A145="","",'Fig 2 Barracuda'!H146) ->  | H145: =IF($A145="","",'Fig 3 Neptunus'!H146) ->  | I145: =IF($A145="","",'Fig 4 Walkover'!H146) ->  | J145: =IF($A145="","",'Fig 1 Ballet Leg'!I146+'Fig 2 Barracuda'!I146+'Fig 3 Neptunus'!I146+'Fig 4 Walkover'!I146) -> 
A146: =IF(Draw!E146=0,"",Draw!E146) ->  | F146: =IF($A146="","",'Fig 1 Ballet Leg'!H147) ->  | G146: =IF($A146="","",'Fig 2 Barracuda'!H147) ->  | H146: =IF($A146="","",'Fig 3 Neptunus'!H147) ->  | I146: =IF($A146="","",'Fig 4 Walkover'!H147) ->  | J146: =IF($A146="","",'Fig 1 Ballet Leg'!I147+'Fig 2 Barracuda'!I147+'Fig 3 Neptunus'!I147+'Fig 4 Walkover'!I147) -> 
A147: =IF(Draw!E147=0,"",Draw!E147) ->  | F147: =IF($A147="","",'Fig 1 Ballet Leg'!H148) ->  | G147: =IF($A147="","",'Fig 2 Barracuda'!H148) ->  | H147: =IF($A147="","",'Fig 3 Neptunus'!H148) ->  | I147: =IF($A147="","",'Fig 4 Walkover'!H148) ->  | J147: =IF($A147="","",'Fig 1 Ballet Leg'!I148+'Fig 2 Barracuda'!I148+'Fig 3 Neptunus'!I148+'Fig 4 Walkover'!I148) -> 
A148: =IF(Draw!E148=0,"",Draw!E148) ->  | F148: =IF($A148="","",'Fig 1 Ballet Leg'!H149) ->  | G148: =IF($A148="","",'Fig 2 Barracuda'!H149) ->  | H148: =IF($A148="","",'Fig 3 Neptunus'!H149) ->  | I148: =IF($A148="","",'Fig 4 Walkover'!H149) ->  | J148: =IF($A148="","",'Fig 1 Ballet Leg'!I149+'Fig 2 Barracuda'!I149+'Fig 3 Neptunus'!I149+'Fig 4 Walkover'!I149) -> 
A149: =IF(Draw!E149=0,"",Draw!E149) ->  | F149: =IF($A149="","",'Fig 1 Ballet Leg'!H150) ->  | G149: =IF($A149="","",'Fig 2 Barracuda'!H150) ->  | H149: =IF($A149="","",'Fig 3 Neptunus'!H150) ->  | I149: =IF($A149="","",'Fig 4 Walkover'!H150) ->  | J149: =IF($A149="","",'Fig 1 Ballet Leg'!I150+'Fig 2 Barracuda'!I150+'Fig 3 Neptunus'!I150+'Fig 4 Walkover'!I150) -> 
A150: =IF(Draw!E150=0,"",Draw!E150) ->  | F150: =IF($A150="","",'Fig 1 Ballet Leg'!H151) ->  | G150: =IF($A150="","",'Fig 2 Barracuda'!H151) ->  | H150: =IF($A150="","",'Fig 3 Neptunus'!H151) ->  | I150: =IF($A150="","",'Fig 4 Walkover'!H151) ->  | J150: =IF($A150="","",'Fig 1 Ballet Leg'!I151+'Fig 2 Barracuda'!I151+'Fig 3 Neptunus'!I151+'Fig 4 Walkover'!I151) -> 
K151: =IF($A151="","",IF(A151="","",VLOOKUP(E151,AX$3:AY$102,2,FALSE))) -> 

Sheet Draw (hidden)
A1: 1 | B1: Bloomington | C1: =RAND() -> 0.7113512479 | G1: School | H1: Name | I1: Draw # | J1: Name | K1: School
A2: Anna Ganser | B2: Osseo-Maple Grove | C2: =RAND() -> 0.7770378715 | D2: =IF(ISNA(RANK(C2,C$2:C$150,1)),"",RANK(C2,C$2:C$150,1)) -> 15 | E2: =IF(B2<>"",F2,"") -> 1 | F2: 1 | G2: =B2 -> Osseo-Maple Grove | H2: =A2 -> Anna Ganser | I2: =E2 -> 1 | J2: =IF(ISNA(VLOOKUP(I2,D$2:H$150,5,FALSE)),"",VLOOKUP(I2,D$2:H$150,5,FALSE)) -> Jessica Ruohoniemi | K2: =IF(ISNA(VLOOKUP(I2,D$2:G$150,4,FALSE)),"",VLOOKUP(I2,D$2:G$150,4,FALSE)) -> Osseo-Maple Grove | N2: 1 | O2: Anna Ganser | P2: Osseo-Maple Grove
A3: Abigail Tollas | B3: Osseo-Maple Grove | C3: 0.8777472802 | D3: =IF(ISNA(RANK(C3,C$2:C$150,1)),"",RANK(C3,C$2:C$150,1)) -> 18 | E3: =IF(B3<>"",F3,"") -> 2 | F3: 2 | G3: =B3 -> Osseo-Maple Grove | H3: =A3 -> Abigail Tollas | I3: =E3 -> 2 | J3: =IF(ISNA(VLOOKUP(I3,D$2:H$150,5,FALSE)),"",VLOOKUP(I3,D$2:H$150,5,FALSE)) -> Holly Drazenovich | K3: =IF(ISNA(VLOOKUP(I3,D$2:G$150,4,FALSE)),"",VLOOKUP(I3,D$2:G$150,4,FALSE)) -> Osseo-Maple Grove | N3: 2 | O3: Abigail Tollas | P3: Osseo-Maple Grove
A4: Shakila Hoke | B4: Columbia Heights | C4: 0.6869139782 | D4: 14 | E4: 3 | F4: 3 | G4: Columbia Heights | H4: Shakila Hoke | I4: 3 | J4: Emily Barr | K4: Osseo-Maple Grove | N4: 3 | O4: Shakila Hoke | P4: Columbia Heights
A5: Kelly McNamee | B5: Osseo-Maple Grove | C5: 0.7930209259 | D5: 16 | E5: 4 | F5: 4 | G5: Osseo-Maple Grove | H5: Kelly McNamee | I5: 4 | J5: Marie Vanderwarn | K5: Osseo-Maple Grove | N5: 4 | O5: Kelly McNamee | P5: Osseo-Maple Grove
A6: Jessica Ruohoniemi | B6: Osseo-Maple Grove | C6: 0.001495685046 | D6: 1 | E6: 5 | F6: 5 | G6: Osseo-Maple Grove | H6: Jessica Ruohoniemi | I6: 5 | J6: Heather Breidenbach | K6: Osseo-Maple Grove | N6: 5 | O6: Jessica Ruohoniemi | P6: Osseo-Maple Grove
A7: Katherine Olsen | B7: Osseo-Maple Grove | C7: 0.3879369463 | D7: 7 | E7: 6 | F7: 6 | G7: Osseo-Maple Grove | H7: Katherine Olsen | I7: 6 | J7: Danielle Hawes | K7: Osseo-Maple Grove | N7: 6 | O7: Katherine Olsen | P7: Osseo-Maple Grove
A8: Holly Drazenovich | B8: Osseo-Maple Grove | C8: 0.01057302161 | D8: 2 | E8: 7 | F8: 7 | G8: Osseo-Maple Grove | H8: Holly Drazenovich | I8: 7 | J8: Katherine Olsen | K8: Osseo-Maple Grove | N8: 7 | O8: Holly Drazenovich | P8: Osseo-Maple Grove
A9: Gabriela Marick | B9: Osseo-Maple Grove | C9: 0.4298043218 | D9: 9 | E9: 8 | F9: 8 | G9: Osseo-Maple Grove | H9: Gabriela Marick | I9: 8 | J9: Alexadra Trudeau | K9: Osseo-Maple Grove | N9: 8 | O9: Gabriela Marick | P9: Osseo-Maple Grove
A10: Danielle Hawes | B10: Osseo-Maple Grove | C10: 0.3656146517 | D10: 6 | E10: 9 | F10: 9 | G10: Osseo-Maple Grove | H10: Danielle Hawes | I10: 9 | J10: Gabriela Marick | K10: Osseo-Maple Grove | N10: 9 | O10: Danielle Hawes | P10: Osseo-Maple Grove
A11: Hannah Littel | B11: Osseo-Maple Grove | C11: 0.8925265993 | D11: 20 | E11: 10 | F11: 10 | G11: Osseo-Maple Grove | H11: Hannah Littel | I11: 10 | J11: Caroline LaBord | K11: Osseo-Maple Grove | N11: 10 | O11: Hannah Littel | P11: Osseo-Maple Grove
A12: Katelyn Moline | B12: Osseo-Maple Grove | C12: 0.9492840705 | D12: 22 | E12: 11 | F12: 11 | G12: Osseo-Maple Grove | H12: Katelyn Moline | I12: 11 | J12: Elena Vrba | K12: Osseo-Maple Grove | N12: 11 | O12: Katelyn Moline | P12: Osseo-Maple Grove
A13: Hannah Thalhuber | B13: Columbia Heights | C13: 0.9687950447 | D13: 23 | E13: 12 | F13: 12 | G13: Columbia Heights | H13: Hannah Thalhuber | I13: 12 | J13: Ava Rosengren | K13: Columbia Heights | N13: 12 | O13: Hannah Thalhuber | P13: Columbia Heights
A14: Marie Vanderwarn | B14: Osseo-Maple Grove | C14: 0.1445476546 | D14: 4 | E14: 13 | F14: 13 | G14: Osseo-Maple Grove | H14: Marie Vanderwarn | I14: 13 | J14: Samantha Alexon | K14: Columbia Heights | N14: 13 | O14: Marie Vanderwarn | P14: Osseo-Maple Grove
A15: Issy Rardin | B15: Columbia Heights | C15: 0.9114535359 | D15: 21 | E15: 14 | F15: 14 | G15: Columbia Heights | H15: Issy Rardin | I15: 14 | J15: Shakila Hoke | K15: Columbia Heights | N15: 14 | O15: Issy Rardin | P15: Columbia Heights
A16: Samantha Alexon | B16: Columbia Heights | C16: 0.604561038 | D16: 13 | E16: 15 | F16: 15 | G16: Columbia Heights | H16: Samantha Alexon | I16: 15 | J16: Anna Ganser | K16: Osseo-Maple Grove | N16: 15 | O16: Samantha Alexon | P16: Columbia Heights
A17: Elisabeth Heitzig | B17: Osseo-Maple Grove | C17: 0.8584780773 | D17: 17 | E17: 16 | F17: 16 | G17: Osseo-Maple Grove | H17: Elisabeth Heitzig | I17: 16 | J17: Kelly McNamee | K17: Osseo-Maple Grove | N17: 16 | O17: Elisabeth Heitzig | P17: Osseo-Maple Grove
A18: Elena Vrba | B18: Osseo-Maple Grove | C18: 0.5712202576 | D18: 11 | E18: 17 | F18: 17 | G18: Osseo-Maple Grove | H18: Elena Vrba | I18: 17 | J18: Elisabeth Heitzig | K18: Osseo-Maple Grove | N18: 17 | O18: Elena Vrba | P18: Osseo-Maple Grove
A19: Caroline LaBord | B19: Osseo-Maple Grove | C19: 0.5106808196 | D19: 10 | E19: 18 | F19: 18 | G19: Osseo-Maple Grove | H19: Caroline LaBord | I19: 18 | J19: Abigail Tollas | K19: Osseo-Maple Grove | N19: 18 | O19: Caroline LaBord | P19: Osseo-Maple Grove
A20: Lily Dickson | B20: Columbia Heights | C20: 0.8805527912 | D20: 19 | E20: 19 | F20: 19 | G20: Columbia Heights | H20: Lily Dickson | I20: 19 | J20: Lily Dickson | K20: Columbia Heights | N20: 19 | O20: Lily Dickson | P20: Columbia Heights
A21: Ava Rosengren | B21: Columbia Heights | C21: 0.5959283142 | D21: 12 | E21: 20 | F21: 20 | G21: Columbia Heights | H21: Ava Rosengren | I21: 20 | J21: Hannah Littel | K21: Osseo-Maple Grove | N21: 20 | O21: Ava Rosengren | P21: Columbia Heights
A22: Heather Breidenbach | B22: Osseo-Maple Grove | C22: 0.3291090651 | D22: 5 | E22: 21 | F22: 21 | G22: Osseo-Maple Grove | H22: Heather Breidenbach | I22: 21 | J22: Issy Rardin | K22: Columbia Heights | N22: 21 | O22: Heather Breidenbach | P22: Osseo-Maple Grove
A23: Elizabeth McBride | B23: Osseo-Maple Grove | C23: 0.9953379271 | D23: 24 | E23: 22 | F23: 22 | G23: Osseo-Maple Grove | H23: Elizabeth McBride | I23: 22 | J23: Katelyn Moline | K23: Osseo-Maple Grove | N23: 22 | O23: Elizabeth McBride | P23: Osseo-Maple Grove
A24: Emily Barr | B24: Osseo-Maple Grove | C24: 0.0976034391 | D24: 3 | E24: 23 | F24: 23 | G24: Osseo-Maple Grove | H24: Emily Barr | I24: 23 | J24: Hannah Thalhuber | K24: Columbia Heights | N24: 23 | O24: Emily Barr | P24: Osseo-Maple Grove
A25: Alexadra Trudeau | B25: Osseo-Maple Grove | C25: 0.4088469443 | D25: 8 | E25: 24 | F25: 24 | G25: Osseo-Maple Grove | H25: Alexadra Trudeau | I25: 24 | J25: Elizabeth McBride | K25: Osseo-Maple Grove | N25: 24 | O25: Alexadra Trudeau | P25: Osseo-Maple Grove
F26: 25 | G26: 0 | H26: 0 | J26: 0 | K26: 0
F27: 26 | G27: 0 | H27: 0 | J27: 0 | K27: 0
F28: 27 | G28: 0 | H28: 0 | J28: 0 | K28: 0
F29: 28 | G29: 0 | H29: 0 | J29: 0 | K29: 0
F30: 29 | G30: 0 | H30: 0 | J30: 0 | K30: 0
F31: 30 | G31: 0 | H31: 0 | J31: 0 | K31: 0
E32: =IF(B32<>"",F32,"") ->  | F32: 31 | G32: 0 | H32: 0 | J32: 0 | K32: 0
F33: 32 | G33: 0 | H33: 0 | J33: 0 | K33: 0
F34: 33 | G34: 0 | H34: 0 | J34: 0 | K34: 0
F35: 34 | G35: 0 | H35: 0 | J35: 0 | K35: 0
F36: 35 | G36: 0 | H36: 0 | J36: 0 | K36: 0
F37: 36 | G37: 0 | H37: 0 | J37: 0 | K37: 0
F38: 37 | G38: 0 | H38: 0 | J38: 0 | K38: 0
F39: 38 | G39: 0 | H39: 0 | J39: 0 | K39: 0
F40: 39 | G40: 0 | H40: 0 | J40: 0 | K40: 0
F41: 40 | G41: 0 | H41: 0 | J41: 0 | K41: 0
F42: 41 | G42: 0 | H42: 0 | J42: 0 | K42: 0
F43: 42 | G43: 0 | H43: 0 | J43: 0 | K43: 0
F44: 43 | G44: 0 | H44: 0 | J44: 0 | K44: 0
F45: 44 | G45: 0 | H45: 0 | J45: 0 | K45: 0
F46: 45 | G46: 0 | H46: 0 | J46: 0 | K46: 0
F47: 46 | G47: 0 | H47: 0 | J47: 0 | K47: 0
F48: 47 | G48: 0 | H48: 0 | J48: 0 | K48: 0
F49: 48 | G49: 0 | H49: 0 | J49: 0 | K49: 0
F50: 49 | G50: 0 | H50: 0 | J50: 0 | K50: 0
F51: 50 | G51: 0 | H51: 0 | J51: 0 | K51: 0
F52: 51 | G52: 0 | H52: 0 | J52: 0 | K52: 0
F53: 52 | G53: 0 | H53: 0 | J53: 0 | K53: 0
F54: 53 | G54: 0 | H54: 0 | J54: 0 | K54: 0
F55: 54 | G55: 0 | H55: 0 | J55: 0 | K55: 0
F56: 55 | G56: 0 | H56: 0 | J56: 0 | K56: 0
F57: 56 | G57: 0 | H57: 0 | J57: 0 | K57: 0
F58: 57 | G58: 0 | H58: 0 | J58: 0 | K58: 0
F59: 58 | G59: 0 | H59: 0 | J59: 0 | K59: 0
F60: 59 | G60: 0 | H60: 0 | J60: 0 | K60: 0
F61: 60 | G61: 0 | H61: 0 | J61: 0 | K61: 0
F62: 61 | G62: 0 | H62: 0 | J62: 0 | K62: 0
F63: 62 | G63: 0 | H63: 0 | J63: 0 | K63: 0
F64: 63 | G64: 0 | H64: 0 | J64: 0 | K64: 0
F65: 64 | G65: 0 | H65: 0 | J65: 0 | K65: 0
F66: 65 | G66: 0 | H66: 0 | J66: 0 | K66: 0
F67: 66 | G67: =B67 -> 0 | H67: =A67 -> 0 | I67: =E67 ->  | J67: =IF(ISNA(VLOOKUP(I67,D$2:H$150,5,FALSE)),"",VLOOKUP(I67,D$2:H$150,5,FALSE)) -> 0 | K67: =IF(ISNA(VLOOKUP(I67,D$2:G$150,4,FALSE)),"",VLOOKUP(I67,D$2:G$150,4,FALSE)) -> 0
F68: 67 | G68: 0 | H68: 0 | J68: 0 | K68: 0
F69: 68 | G69: 0 | H69: 0 | J69: 0 | K69: 0
F70: 69 | G70: 0 | H70: 0 | J70: 0 | K70: 0
F71: 70 | G71: 0 | H71: 0 | J71: 0 | K71: 0
F72: 71 | G72: 0 | H72: 0 | J72: 0 | K72: 0
F73: 72 | G73: 0 | H73: 0 | J73: 0 | K73: 0
F74: 73 | G74: 0 | H74: 0 | J74: 0 | K74: 0
F75: 74 | G75: 0 | H75: 0 | J75: 0 | K75: 0
F76: 75 | G76: 0 | H76: 0 | J76: 0 | K76: 0
F77: 76 | G77: 0 | H77: 0 | J77: 0 | K77: 0
F78: 77 | G78: 0 | H78: 0 | J78: 0 | K78: 0
F79: 78 | G79: 0 | H79: 0 | J79: 0 | K79: 0
F80: 79 | G80: 0 | H80: 0 | J80: 0 | K80: 0
F81: 80 | G81: 0 | H81: 0 | J81: 0 | K81: 0
F82: 81 | G82: 0 | H82: 0 | J82: 0 | K82: 0
F83: 82 | G83: 0 | H83: 0 | J83: 0 | K83: 0
F84: 83 | G84: 0 | H84: 0 | J84: 0 | K84: 0
F85: 84 | G85: 0 | H85: 0 | J85: 0 | K85: 0
F86: 85 | G86: 0 | H86: 0 | J86: 0 | K86: 0
F87: 86 | G87: 0 | H87: 0 | J87: 0 | K87: 0
F88: 87 | G88: 0 | H88: 0 | J88: 0 | K88: 0
F89: 88 | G89: 0 | H89: 0 | J89: 0 | K89: 0
F90: 89 | G90: 0 | H90: 0 | J90: 0 | K90: 0
F91: 90 | G91: 0 | H91: 0 | J91: 0 | K91: 0
F92: 91 | G92: 0 | H92: 0 | J92: 0 | K92: 0
F93: 92 | G93: 0 | H93: 0 | J93: 0 | K93: 0
F94: 93 | G94: 0 | H94: 0 | J94: 0 | K94: 0
F95: 94 | G95: =B95 -> 0 | H95: =A95 -> 0 | I95: =E95 ->  | J95: 0 | K95: 0
E96: =IF(B96<>"",F96,"") ->  | F96: 95 | G96: 0 | H96: 0 | J96: 0 | K96: 0
F97: 96 | G97: 0 | H97: 0 | J97: 0 | K97: 0
F98: 97 | G98: 0 | H98: 0 | J98: 0 | K98: 0
F99: 98 | G99: 0 | H99: 0 | J99: 0 | K99: 0
F100: 99 | G100: 0 | H100: 0 | J100: 0 | K100: 0
F101: 100 | G101: 0 | H101: 0 | J101: 0 | K101: 0
F102: 101 | G102: 0 | H102: 0 | J102: 0 | K102: 0
F103: 102 | G103: 0 | H103: 0 | J103: 0 | K103: 0
F104: 103 | G104: 0 | H104: 0 | J104: 0 | K104: 0
F105: 104 | G105: 0 | H105: 0 | J105: 0 | K105: 0
F106: 105 | G106: 0 | H106: 0 | J106: 0 | K106: 0
F107: 106 | G107: 0 | H107: 0 | J107: 0 | K107: 0
F108: 107 | G108: 0 | H108: 0 | J108: 0 | K108: 0
F109: 108 | G109: 0 | H109: 0 | J109: 0 | K109: 0
F110: 109 | G110: 0 | H110: 0 | J110: 0 | K110: 0
F111: 110 | G111: 0 | H111: 0 | J111: 0 | K111: 0
F112: 111 | G112: 0 | H112: 0 | J112: 0 | K112: 0
F113: 112 | G113: 0 | H113: 0 | J113: 0 | K113: 0
F114: 113 | G114: 0 | H114: 0 | J114: 0 | K114: 0
F115: 114 | G115: 0 | H115: 0 | J115: 0 | K115: 0
F116: 115 | G116: 0 | H116: 0 | J116: 0 | K116: 0
F117: 116 | G117: 0 | H117: 0 | J117: 0 | K117: 0
F118: 117 | G118: 0 | H118: 0 | J118: 0 | K118: 0
F119: 118 | G119: 0 | H119: 0 | J119: 0 | K119: 0
F120: 119 | G120: 0 | H120: 0 | J120: 0 | K120: 0
F121: 120 | G121: 0 | H121: 0 | J121: 0 | K121: 0
F122: 121 | G122: 0 | H122: 0 | J122: 0 | K122: 0
F123: 122 | G123: 0 | H123: 0 | J123: 0 | K123: 0
F124: 123 | G124: 0 | H124: 0 | J124: 0 | K124: 0
F125: 124 | G125: 0 | H125: 0 | J125: 0 | K125: 0
F126: 125 | G126: 0 | H126: 0 | J126: 0 | K126: 0
F127: 126 | G127: 0 | H127: 0 | J127: 0 | K127: 0
F128: 127 | G128: 0 | H128: 0 | J128: 0 | K128: 0
F129: 128 | G129: 0 | H129: 0 | J129: 0 | K129: 0
F130: 129 | G130: 0 | H130: 0 | J130: 0 | K130: 0
F131: 130 | G131: 0 | H131: 0 | J131: =IF(ISNA(VLOOKUP(I131,D$2:H$150,5,FALSE)),"",VLOOKUP(I131,D$2:H$150,5,FALSE)) -> 0 | K131: =IF(ISNA(VLOOKUP(I131,D$2:G$150,4,FALSE)),"",VLOOKUP(I131,D$2:G$150,4,FALSE)) -> 0
F132: 131 | G132: 0 | H132: 0 | J132: 0 | K132: 0
F133: 132 | G133: 0 | H133: 0 | J133: 0 | K133: 0
F134: 133 | G134: 0 | H134: 0 | J134: 0 | K134: 0
F135: 134 | G135: 0 | H135: 0 | J135: 0 | K135: 0
F136: 135 | G136: 0 | H136: 0 | J136: 0 | K136: 0
F137: 136 | G137: 0 | H137: 0 | J137: 0 | K137: 0
F138: 137 | G138: 0 | H138: 0 | J138: 0 | K138: 0
F139: 138 | G139: 0 | H139: 0 | J139: 0 | K139: 0
F140: 139 | G140: 0 | H140: 0 | J140: 0 | K140: 0
F141: 140 | G141: 0 | H141: 0 | J141: 0 | K141: 0
F142: 141 | G142: 0 | H142: 0 | J142: 0 | K142: 0
F143: 142 | G143: 0 | H143: 0 | J143: 0 | K143: 0
F144: 143 | G144: 0 | H144: 0 | J144: 0 | K144: 0
F145: 144 | G145: 0 | H145: 0 | J145: 0 | K145: 0
F146: 145 | G146: 0 | H146: 0 | J146: 0 | K146: 0
F147: 146 | G147: 0 | H147: 0 | J147: 0 | K147: 0
F148: 147 | G148: 0 | H148: 0 | J148: 0 | K148: 0
F149: 148 | G149: 0 | H149: 0 | J149: 0 | K149: 0
F150: 149 | G150: 0 | H150: 0 | J150: 0 | K150: 0

Sheet Schools (hidden)
A1: List of Schools:
A2: Bloomington
A3: Columbia Heights
A4: Eden Prairie
A5: Edina
A6: Forest Lake
A7: Hopkins
A8: Itasca
A9: Osseo-Maple Grove
A10: Prior Lake
A11: Richfield
A12: St. Louis Park
A13: Stillwater
A14: Wayzata

Sheet Official Draw
B2: =Draw!I1 -> Draw # | C2: =Draw!J1 -> Name | D2: =Draw!K1 -> School
B3: =Draw!N2 -> 1 | C3: =Draw!O2 -> Anna Ganser | D3: =Draw!P2 -> Osseo-Maple Grove
B4: =Draw!N3 -> 2 | C4: =Draw!O3 -> Abigail Tollas | D4: =Draw!P3 -> Osseo-Maple Grove
B5: =Draw!N4 -> 3 | C5: =Draw!O4 -> Shakila Hoke | D5: =Draw!P4 -> Columbia Heights
B6: =Draw!N5 -> 4 | C6: =Draw!O5 -> Kelly McNamee | D6: =Draw!P5 -> Osseo-Maple Grove
B7: =Draw!N6 -> 5 | C7: =Draw!O6 -> Jessica Ruohoniemi | D7: =Draw!P6 -> Osseo-Maple Grove
B8: =Draw!N7 -> 6 | C8: =Draw!O7 -> Katherine Olsen | D8: =Draw!P7 -> Osseo-Maple Grove
B9: =Draw!N8 -> 7 | C9: =Draw!O8 -> Holly Drazenovich | D9: =Draw!P8 -> Osseo-Maple Grove
B10: =Draw!N9 -> 8 | C10: =Draw!O9 -> Gabriela Marick | D10: =Draw!P9 -> Osseo-Maple Grove
B11: =Draw!N10 -> 9 | C11: Lilly Dickson | D11: Columbia Heights
B12: =Draw!N11 -> 10 | C12: =Draw!O11 -> Hannah Littel | D12: =Draw!P11 -> Osseo-Maple Grove
B13: =Draw!N12 -> 11 | C13: =Draw!O12 -> Katelyn Moline | D13: =Draw!P12 -> Osseo-Maple Grove
B14: =Draw!N13 -> 12 | C14: =Draw!O13 -> Hannah Thalhuber | D14: =Draw!P13 -> Columbia Heights
B15: =Draw!N14 -> 13 | C15: =Draw!O14 -> Marie Vanderwarn | D15: =Draw!P14 -> Osseo-Maple Grove
B16: =Draw!N15 -> 14 | C16: =Draw!O15 -> Issy Rardin | D16: =Draw!P15 -> Columbia Heights
B17: =Draw!N16 -> 15 | C17: =Draw!O16 -> Samantha Alexon | D17: =Draw!P16 -> Columbia Heights
B18: =Draw!N17 -> 16 | C18: =Draw!O17 -> Elisabeth Heitzig | D18: =Draw!P17 -> Osseo-Maple Grove
B19: =Draw!N18 -> 17 | C19: =Draw!O18 -> Elena Vrba | D19: =Draw!P18 -> Osseo-Maple Grove
B20: =Draw!N19 -> 18 | C20: =Draw!O19 -> Caroline LaBord | D20: =Draw!P19 -> Osseo-Maple Grove
B21: =Draw!N20 -> 19 | C21: =Draw!O20 -> Lily Dickson | D21: =Draw!P20 -> Columbia Heights
B22: =Draw!N21 -> 20 | C22: =Draw!O21 -> Ava Rosengren | D22: =Draw!P21 -> Columbia Heights
B23: =Draw!N22 -> 21 | C23: =Draw!O22 -> Heather Breidenbach | D23: =Draw!P22 -> Osseo-Maple Grove
B24: =Draw!N23 -> 22 | C24: =Draw!O23 -> Elizabeth McBride | D24: =Draw!P23 -> Osseo-Maple Grove
B25: =Draw!N24 -> 23 | C25: =Draw!O24 -> Emily Barr | D25: =Draw!P24 -> Osseo-Maple Grove
B26: =Draw!N25 -> 24 | C26: =Draw!O25 -> Alexadra Trudeau | D26: =Draw!P25 -> Osseo-Maple Grove
B27: =Draw!N26 ->  | C27: =Draw!O26 -> 0 | D27: =Draw!P26 -> 0
B28: =Draw!N27 ->  | C28: =Draw!O27 -> 0 | D28: =Draw!P27 -> 0
B29: =Draw!N28 ->  | C29: =Draw!O28 -> 0 | D29: =Draw!P28 -> 0
B30: =Draw!N29 ->  | C30: =Draw!O29 -> 0 | D30: =Draw!P29 -> 0
B31: =Draw!N30 ->  | C31: =Draw!O30 -> 0 | D31: =Draw!P30 -> 0
B32: =Draw!N31 ->  | C32: =Draw!O31 -> 0 | D32: =Draw!P31 -> 0
B33: =Draw!N32 ->  | C33: =Draw!O32 -> 0 | D33: =Draw!P32 -> 0
B34: =Draw!N33 ->  | C34: =Draw!O33 -> 0 | D34: =Draw!P33 -> 0
B35: =Draw!N34 ->  | C35: =Draw!O34 -> 0 | D35: =Draw!P34 -> 0
B36: =Draw!N35 ->  | C36: =Draw!O35 -> 0 | D36: =Draw!P35 -> 0
B37: =Draw!N36 ->  | C37: =Draw!O36 -> 0 | D37: =Draw!P36 -> 0
B38: =Draw!N37 ->  | C38: =Draw!O37 -> 0 | D38: =Draw!P37 -> 0
B39: =Draw!N38 ->  | C39: =Draw!O38 -> 0 | D39: =Draw!P38 -> 0
B40: =Draw!N39 ->  | C40: =Draw!O39 -> 0 | D40: =Draw!P39 -> 0
B41: =Draw!N40 ->  | C41: =Draw!O40 -> 0 | D41: =Draw!P40 -> 0
B42: =Draw!N41 ->  | C42: =Draw!O41 -> 0 | D42: =Draw!P41 -> 0
B43: =Draw!N42 ->  | C43: =Draw!O42 -> 0 | D43: =Draw!P42 -> 0
B44: =Draw!N43 ->  | C44: =Draw!O43 -> 0 | D44: =Draw!P43 -> 0
B45: =Draw!N44 ->  | C45: =Draw!O44 -> 0 | D45: =Draw!P44 -> 0
B46: =Draw!N45 ->  | C46: =Draw!O45 -> 0 | D46: =Draw!P45 -> 0
B47: =Draw!N46 ->  | C47: =Draw!O46 -> 0 | D47: =Draw!P46 -> 0
B48: =Draw!N47 ->  | C48: =Draw!O47 -> 0 | D48: =Draw!P47 -> 0
B49: =Draw!N48 ->  | C49: =Draw!O48 -> 0 | D49: =Draw!P48 -> 0
B50: =Draw!N49 ->  | C50: =Draw!O49 -> 0 | D50: =Draw!P49 -> 0
B51: =Draw!N50 ->  | C51: =Draw!O50 -> 0 | D51: =Draw!P50 -> 0
B52: =Draw!N51 ->  | C52: =Draw!O51 -> 0 | D52: =Draw!P51 -> 0
B53: =Draw!N52 ->  | C53: =Draw!O52 -> 0 | D53: =Draw!P52 -> 0
B54: =Draw!N53 ->  | C54: =Draw!O53 -> 0 | D54: =Draw!P53 -> 0
B55: =Draw!N54 ->  | C55: =Draw!O54 -> 0 | D55: =Draw!P54 -> 0
B56: =Draw!N55 ->  | C56: =Draw!O55 -> 0 | D56: =Draw!P55 -> 0
B57: =Draw!N56 ->  | C57: =Draw!O56 -> 0 | D57: =Draw!P56 -> 0
B58: =Draw!N57 ->  | C58: =Draw!O57 -> 0 | D58: =Draw!P57 -> 0
B59: =Draw!N58 ->  | C59: =Draw!O58 -> 0 | D59: =Draw!P58 -> 0
B60: =Draw!N59 ->  | C60: =Draw!O59 -> 0 | D60: =Draw!P59 -> 0
B61: =Draw!N60 ->  | C61: =Draw!O60 -> 0 | D61: =Draw!P60 -> 0
B62: =Draw!N61 ->  | C62: =Draw!O61 -> 0 | D62: =Draw!P61 -> 0
B63: =Draw!N62 ->  | C63: =Draw!O62 -> 0 | D63: =Draw!P62 -> 0
B64: =Draw!N63 ->  | C64: =Draw!O63 -> 0 | D64: =Draw!P63 -> 0
B65: =Draw!N64 ->  | C65: =Draw!O64 -> 0 | D65: =Draw!P64 -> 0
B66: =Draw!N65 ->  | C66: =Draw!O65 -> 0 | D66: =Draw!P65 -> 0
B67: =Draw!N66 ->  | C67: =Draw!O66 -> 0 | D67: =Draw!P66 -> 0
B68: =Draw!N67 ->  | C68: =Draw!O67 -> 0 | D68: =Draw!P67 -> 0
B69: =Draw!N68 ->  | C69: =Draw!O68 -> 0 | D69: =Draw!P68 -> 0
B70: =Draw!N69 ->  | C70: =Draw!O69 -> 0 | D70: =Draw!P69 -> 0
B71: =Draw!N70 ->  | C71: =Draw!O70 -> 0 | D71: =Draw!P70 -> 0
B72: =Draw!N71 ->  | C72: =Draw!O71 -> 0 | D72: =Draw!P71 -> 0
B73: =Draw!N72 ->  | C73: =Draw!O72 -> 0 | D73: =Draw!P72 -> 0
B74: =Draw!N73 ->  | C74: =Draw!O73 -> 0 | D74: =Draw!P73 -> 0
B75: =Draw!N74 ->  | C75: =Draw!O74 -> 0 | D75: =Draw!P74 -> 0
B76: =Draw!N75 ->  | C76: =Draw!O75 -> 0 | D76: =Draw!P75 -> 0
B77: =Draw!N76 ->  | C77: =Draw!O76 -> 0 | D77: =Draw!P76 -> 0
B78: =Draw!N77 ->  | C78: =Draw!O77 -> 0 | D78: =Draw!P77 -> 0
B79: =Draw!N78 ->  | C79: =Draw!O78 -> 0 | D79: =Draw!P78 -> 0
B80: =Draw!N79 ->  | C80: =Draw!O79 -> 0 | D80: =Draw!P79 -> 0
B81: =Draw!N80 ->  | C81: =Draw!O80 -> 0 | D81: =Draw!P80 -> 0
B82: =Draw!N81 ->  | C82: =Draw!O81 -> 0 | D82: =Draw!P81 -> 0
B83: =Draw!N82 ->  | C83: =Draw!O82 -> 0 | D83: =Draw!P82 -> 0
B84: =Draw!N83 ->  | C84: =Draw!O83 -> 0 | D84: =Draw!P83 -> 0
B85: =Draw!N84 ->  | C85: =Draw!O84 -> 0 | D85: =Draw!P84 -> 0
B86: =Draw!N85 ->  | C86: =Draw!O85 -> 0 | D86: =Draw!P85 -> 0
B87: =Draw!N86 ->  | C87: =Draw!O86 -> 0 | D87: =Draw!P86 -> 0
B88: =Draw!N87 ->  | C88: =Draw!O87 -> 0 | D88: =Draw!P87 -> 0
B89: =Draw!N88 ->  | C89: =Draw!O88 -> 0 | D89: =Draw!P88 -> 0
B90: =Draw!N89 ->  | C90: =Draw!O89 -> 0 | D90: =Draw!P89 -> 0
B91: =Draw!N90 ->  | C91: =Draw!O90 -> 0 | D91: =Draw!P90 -> 0
B92: =Draw!N91 ->  | C92: =Draw!O91 -> 0 | D92: =Draw!P91 -> 0
B93: =Draw!N92 ->  | C93: =Draw!O92 -> 0 | D93: =Draw!P92 -> 0
B94: =Draw!N93 ->  | C94: =Draw!O93 -> 0 | D94: =Draw!P93 -> 0
B95: =Draw!N94 ->  | C95: =Draw!O94 -> 0 | D95: =Draw!P94 -> 0
B96: =Draw!N95 ->  | C96: =Draw!O95 -> 0 | D96: =Draw!P95 -> 0
B97: =Draw!N96 ->  | C97: =Draw!O96 -> 0 | D97: =Draw!P96 -> 0
B98: =Draw!N97 ->  | C98: =Draw!O97 -> 0 | D98: =Draw!P97 -> 0
B99: =Draw!N98 ->  | C99: =Draw!O98 -> 0 | D99: =Draw!P98 -> 0
B100: =Draw!N99 ->  | C100: =Draw!O99 -> 0 | D100: =Draw!P99 -> 0
B101: =Draw!N100 ->  | C101: =Draw!O100 -> 0 | D101: =Draw!P100 -> 0
B102: =Draw!N101 ->  | C102: =Draw!O101 -> 0 | D102: =Draw!P101 -> 0
B103: =Draw!N102 ->  | C103: =Draw!O102 -> 0 | D103: =Draw!P102 -> 0
B104: =Draw!N103 ->  | C104: =Draw!O103 -> 0 | D104: =Draw!P103 -> 0
B105: =Draw!N104 ->  | C105: =Draw!O104 -> 0 | D105: =Draw!P104 -> 0
B106: =Draw!N105 ->  | C106: =Draw!O105 -> 0 | D106: =Draw!P105 -> 0
B107: =Draw!N106 ->  | C107: =Draw!O106 -> 0 | D107: =Draw!P106 -> 0
B108: =Draw!N107 ->  | C108: =Draw!O107 -> 0 | D108: =Draw!P107 -> 0
B109: =Draw!N108 ->  | C109: =Draw!O108 -> 0 | D109: =Draw!P108 -> 0
B110: =Draw!N109 ->  | C110: =Draw!O109 -> 0 | D110: =Draw!P109 -> 0
B111: =Draw!N110 ->  | C111: =Draw!O110 -> 0 | D111: =Draw!P110 -> 0
B112: =Draw!N111 ->  | C112: =Draw!O111 -> 0 | D112: =Draw!P111 -> 0
B113: =Draw!N112 ->  | C113: =Draw!O112 -> 0 | D113: =Draw!P112 -> 0
B114: =Draw!N113 ->  | C114: =Draw!O113 -> 0 | D114: =Draw!P113 -> 0
B115: =Draw!N114 ->  | C115: =Draw!O114 -> 0 | D115: =Draw!P114 -> 0
B116: =Draw!N115 ->  | C116: =Draw!O115 -> 0 | D116: =Draw!P115 -> 0
B117: =Draw!N116 ->  | C117: =Draw!O116 -> 0 | D117: =Draw!P116 -> 0
B118: =Draw!N117 ->  | C118: =Draw!O117 -> 0 | D118: =Draw!P117 -> 0
B119: =Draw!N118 ->  | C119: =Draw!O118 -> 0 | D119: =Draw!P118 -> 0
B120: =Draw!N119 ->  | C120: =Draw!O119 -> 0 | D120: =Draw!P119 -> 0
B121: =Draw!N120 ->  | C121: =Draw!O120 -> 0 | D121: =Draw!P120 -> 0
B122: =Draw!N121 ->  | C122: =Draw!O121 -> 0 | D122: =Draw!P121 -> 0
B123: =Draw!N122 ->  | C123: =Draw!O122 -> 0 | D123: =Draw!P122 -> 0
B124: =Draw!N123 ->  | C124: =Draw!O123 -> 0 | D124: =Draw!P123 -> 0
B125: =Draw!N124 ->  | C125: =Draw!O124 -> 0 | D125: =Draw!P124 -> 0
B126: =Draw!N125 ->  | C126: =Draw!O125 -> 0 | D126: =Draw!P125 -> 0
B127: =Draw!N126 ->  | C127: =Draw!O126 -> 0 | D127: =Draw!P126 -> 0
B128: =Draw!N127 ->  | C128: =Draw!O127 -> 0 | D128: =Draw!P127 -> 0
B129: =Draw!N128 ->  | C129: =Draw!O128 -> 0 | D129: =Draw!P128 -> 0
B130: =Draw!N129 ->  | C130: =Draw!O129 -> 0 | D130: =Draw!P129 -> 0
B131: =Draw!N130 ->  | C131: =Draw!O130 -> 0 | D131: =Draw!P130 -> 0
B132: =Draw!N131 ->  | C132: =Draw!O131 -> 0 | D132: =Draw!P131 -> 0
B133: =Draw!N132 ->  | C133: =Draw!O132 -> 0 | D133: =Draw!P132 -> 0
B134: =Draw!N133 ->  | C134: =Draw!O133 -> 0 | D134: =Draw!P133 -> 0
B135: =Draw!N134 ->  | C135: =Draw!O134 -> 0 | D135: =Draw!P134 -> 0
B136: =Draw!N135 ->  | C136: =Draw!O135 -> 0 | D136: =Draw!P135 -> 0
B137: =Draw!N136 ->  | C137: =Draw!O136 -> 0 | D137: =Draw!P136 -> 0
B138: =Draw!N137 ->  | C138: =Draw!O137 -> 0 | D138: =Draw!P137 -> 0
B139: =Draw!N138 ->  | C139: =Draw!O138 -> 0 | D139: =Draw!P138 -> 0
B140: =Draw!N139 ->  | C140: =Draw!O139 -> 0 | D140: =Draw!P139 -> 0
B141: =Draw!N140 ->  | C141: =Draw!O140 -> 0 | D141: =Draw!P140 -> 0
B142: =Draw!N141 ->  | C142: =Draw!O141 -> 0 | D142: =Draw!P141 -> 0
B143: =Draw!N142 ->  | C143: =Draw!O142 -> 0 | D143: =Draw!P142 -> 0
B144: =Draw!N143 ->  | C144: =Draw!O143 -> 0 | D144: =Draw!P143 -> 0
B145: =Draw!N144 ->  | C145: =Draw!O144 -> 0 | D145: =Draw!P144 -> 0
B146: =Draw!N145 ->  | C146: =Draw!O145 -> 0 | D146: =Draw!P145 -> 0
B147: =Draw!N146 ->  | C147: =Draw!O146 -> 0 | D147: =Draw!P146 -> 0
B148: =Draw!N147 ->  | C148: =Draw!O147 -> 0 | D148: =Draw!P147 -> 0
B149: =Draw!N148 ->  | C149: =Draw!O148 -> 0 | D149: =Draw!P148 -> 0
B150: =Draw!N149 ->  | C150: =Draw!O149 -> 0 | D150: =Draw!P149 -> 0
B151: =Draw!N150 ->  | C151: =Draw!O150 -> 0 | D151: =Draw!P150 -> 0

Sheet Meet Results
D2: Columbia Heights | E2: =SUMIF($F5:$G24,D2,$H5:$H24) -> 0 | F2: Stillwater | G2: =SUMIF($F5:$G24,F2,$H5:$H24) -> 0
D3: Total Score
D4: # | E4: Swimmer | F4: School | G4: Total | H4: SCORE | I4: PLACE
D5: 22 | E5: Elizabeth McBride | F5: Osseo-Maple Grove | G5: 60.85964912 | H5: =IF(ISNA(VLOOKUP(I5,Totals!$AX$3:$AY$102,2,FALSE)),"",VLOOKUP(I5,Totals!$AX$3:$AY$102,2,FALSE)) -> 8 | I5: =IF(ISNA(RANK(G5,G$5:G$150)),"",RANK(G5,G$5:G$150)) -> 1
D6: 1 | E6: Anna Ganser | F6: Osseo-Maple Grove | G6: 58.95175439 | H6: =IF(ISNA(VLOOKUP(I6,Totals!$AX$3:$AY$102,2,FALSE)),"",VLOOKUP(I6,Totals!$AX$3:$AY$102,2,FALSE)) -> 6 | I6: =IF(G6=G5,I5,IF(ISNA(RANK(G6,G$5:G$150)),"",RANK(G6,G$5:G$150))) -> 2
D7: 8 | E7: Gabriela Marick | F7: Osseo-Maple Grove | G7: 58.30263158 | H7: =IF(ISNA(VLOOKUP(I7,Totals!$AX$3:$AY$102,2,FALSE)),"",VLOOKUP(I7,Totals!$AX$3:$AY$102,2,FALSE)) -> 5 | I7: =IF(G7=G6,I6,IF(ISNA(RANK(G7,G$5:G$150)),"",RANK(G7,G$5:G$150))) -> 3
D8: 24 | E8: Alexadra Trudeau | F8: Osseo-Maple Grove | G8: 56.60526316 | H8: =IF(ISNA(VLOOKUP(I8,Totals!$AX$3:$AY$102,2,FALSE)),"",VLOOKUP(I8,Totals!$AX$3:$AY$102,2,FALSE)) -> 4 | I8: 4
D9: 16 | E9: Elisabeth Heitzig | F9: Osseo-Maple Grove | G9: 56.01754386 | H9: =IF(ISNA(VLOOKUP(I9,Totals!$AX$3:$AY$102,2,FALSE)),"",VLOOKUP(I9,Totals!$AX$3:$AY$102,2,FALSE)) -> 3 | I9: 5
D10: 2 | E10: Abigail Tollas | F10: Osseo-Maple Grove | G10: 55.81140351 | H10: =IF(ISNA(VLOOKUP(I10,Totals!$AX$3:$AY$102,2,FALSE)),"",VLOOKUP(I10,Totals!$AX$3:$AY$102,2,FALSE)) -> 2 | I10: 6
D11: 13 | E11: Marie Vanderwarn | F11: Osseo-Maple Grove | G11: 55.23684211 | H11: =IF(ISNA(VLOOKUP(I11,Totals!$AX$3:$AY$102,2,FALSE)),"",VLOOKUP(I11,Totals!$AX$3:$AY$102,2,FALSE)) -> 1 | I11: 7
D12: 17 | E12: Elena Vrba | F12: Osseo-Maple Grove | G12: 55.06578947 | H12: =IF(ISNA(VLOOKUP(I12,Totals!$AX$3:$AY$102,2,FALSE)),"",VLOOKUP(I12,Totals!$AX$3:$AY$102,2,FALSE)) -> 0 | I12: 8
D13: 15 | E13: Samantha Alexon | F13: Columbia Heights | G13: 53.57017544 | H13: =IF(ISNA(VLOOKUP(I13,Totals!$AX$3:$AY$102,2,FALSE)),"",VLOOKUP(I13,Totals!$AX$3:$AY$102,2,FALSE)) -> 0 | I13: 9
D14: 4 | E14: Kelly McNamee | F14: Osseo-Maple Grove | G14: 53.54824561 | H14: =IF(ISNA(VLOOKUP(I14,Totals!$AX$3:$AY$102,2,FALSE)),"",VLOOKUP(I14,Totals!$AX$3:$AY$102,2,FALSE)) -> 0 | I14: 10
D15: 10 | E15: Hannah Littel | F15: Osseo-Maple Grove | G15: 53.26315789 | H15: =IF(ISNA(VLOOKUP(I15,Totals!$AX$3:$AY$102,2,FALSE)),"",VLOOKUP(I15,Totals!$AX$3:$AY$102,2,FALSE)) -> 0 | I15: 11
D16: 5 | E16: Jessica Ruohoniemi | F16: Osseo-Maple Grove | G16: 51.35964912 | H16: =IF(ISNA(VLOOKUP(I16,Totals!$AX$3:$AY$102,2,FALSE)),"",VLOOKUP(I16,Totals!$AX$3:$AY$102,2,FALSE)) -> 0 | I16: 12
D17: 23 | E17: Emily Barr | F17: Osseo-Maple Grove | G17: 50.8377193 | H17: =IF(ISNA(VLOOKUP(I17,Totals!$AX$3:$AY$102,2,FALSE)),"",VLOOKUP(I17,Totals!$AX$3:$AY$102,2,FALSE)) -> 0 | I17: 13
D18: 9 | E18: Danielle Hawes | F18: Osseo-Maple Grove | G18: 50.77192982 | H18: =IF(ISNA(VLOOKUP(I18,Totals!$AX$3:$AY$102,2,FALSE)),"",VLOOKUP(I18,Totals!$AX$3:$AY$102,2,FALSE)) -> 0 | I18: 14
D19: 6 | E19: Katherine Olsen | F19: Osseo-Maple Grove | G19: 50.21491228 | H19: =IF(ISNA(VLOOKUP(I19,Totals!$AX$3:$AY$102,2,FALSE)),"",VLOOKUP(I19,Totals!$AX$3:$AY$102,2,FALSE)) -> 0 | I19: 15
D20: 18 | E20: Caroline LaBord | F20: Osseo-Maple Grove | G20: 50.14035088 | H20: =IF(ISNA(VLOOKUP(I20,Totals!$AX$3:$AY$102,2,FALSE)),"",VLOOKUP(I20,Totals!$AX$3:$AY$102,2,FALSE)) -> 0 | I20: 16
D21: 12 | E21: Hannah Thalhuber | F21: Columbia Heights | G21: 49.51315789 | H21: =IF(ISNA(VLOOKUP(I21,Totals!$AX$3:$AY$102,2,FALSE)),"",VLOOKUP(I21,Totals!$AX$3:$AY$102,2,FALSE)) -> 0 | I21: 17
D22: 14 | E22: Issy Rardin | F22: Columbia Heights | G22: 48.10964912 | H22: =IF(ISNA(VLOOKUP(I22,Totals!$AX$3:$AY$102,2,FALSE)),"",VLOOKUP(I22,Totals!$AX$3:$AY$102,2,FALSE)) -> 0 | I22: 18
D23: 21 | E23: Heather Breidenbach | F23: Osseo-Maple Grove | G23: 47.32894737 | H23: =IF(ISNA(VLOOKUP(I23,Totals!$AX$3:$AY$102,2,FALSE)),"",VLOOKUP(I23,Totals!$AX$3:$AY$102,2,FALSE)) -> 0 | I23: 19
D24: 11 | E24: Katelyn Moline | F24: Osseo-Maple Grove | G24: 45.85964912 | H24: =IF(ISNA(VLOOKUP(I24,Totals!$AX$3:$AY$102,2,FALSE)),"",VLOOKUP(I24,Totals!$AX$3:$AY$102,2,FALSE)) -> 0 | I24: 20
D25: 3 | E25: Shakila Hoke | F25: Columbia Heights | G25: 0 | H25: =IF(ISNA(VLOOKUP(I25,Totals!$AX$3:$AY$102,2,FALSE)),"",VLOOKUP(I25,Totals!$AX$3:$AY$102,2,FALSE)) -> 0 | I25: 21
D26: 7 | E26: Holly Drazenovich | F26: Osseo-Maple Grove | G26: 0 | H26: =IF(ISNA(VLOOKUP(I26,Totals!$AX$3:$AY$102,2,FALSE)),"",VLOOKUP(I26,Totals!$AX$3:$AY$102,2,FALSE)) -> 0 | I26: 21
D27: 19 | E27: Lily Dickson | F27: Columbia Heights | G27: 0 | H27: =IF(ISNA(VLOOKUP(I27,Totals!$AX$3:$AY$102,2,FALSE)),"",VLOOKUP(I27,Totals!$AX$3:$AY$102,2,FALSE)) -> 0 | I27: 21
D28: 20 | E28: Ava Rosengren | F28: Columbia Heights | G28: 0 | H28: =IF(ISNA(VLOOKUP(I28,Totals!$AX$3:$AY$102,2,FALSE)),"",VLOOKUP(I28,Totals!$AX$3:$AY$102,2,FALSE)) -> 0 | I28: 21
H29: =IF(ISNA(VLOOKUP(I29,Totals!$AX$3:$AY$102,2,FALSE)),"",VLOOKUP(I29,Totals!$AX$3:$AY$102,2,FALSE)) -> 0 | I29: 21
H30: =IF(ISNA(VLOOKUP(I30,Totals!$AX$3:$AY$102,2,FALSE)),"",VLOOKUP(I30,Totals!$AX$3:$AY$102,2,FALSE)) -> 0 | I30: 21
H31: =IF(ISNA(VLOOKUP(I31,Totals!$AX$3:$AY$102,2,FALSE)),"",VLOOKUP(I31,Totals!$AX$3:$AY$102,2,FALSE)) -> 0 | I31: 21
H32: =IF(ISNA(VLOOKUP(I32,Totals!$AX$3:$AY$102,2,FALSE)),"",VLOOKUP(I32,Totals!$AX$3:$AY$102,2,FALSE)) -> 0 | I32: 21
H33: =IF(ISNA(VLOOKUP(I33,Totals!$AX$3:$AY$102,2,FALSE)),"",VLOOKUP(I33,Totals!$AX$3:$AY$102,2,FALSE)) -> 0 | I33: 21
H34: =IF(ISNA(VLOOKUP(I34,Totals!$AX$3:$AY$102,2,FALSE)),"",VLOOKUP(I34,Totals!$AX$3:$AY$102,2,FALSE)) -> 0 | I34: 21
H35: =IF(ISNA(VLOOKUP(I35,Totals!$AX$3:$AY$102,2,FALSE)),"",VLOOKUP(I35,Totals!$AX$3:$AY$102,2,FALSE)) -> 0 | I35: 21
H36: =IF(ISNA(VLOOKUP(I36,Totals!$AX$3:$AY$102,2,FALSE)),"",VLOOKUP(I36,Totals!$AX$3:$AY$102,2,FALSE)) -> 0 | I36: 21
H37: =IF(ISNA(VLOOKUP(I37,Totals!$AX$3:$AY$102,2,FALSE)),"",VLOOKUP(I37,Totals!$AX$3:$AY$102,2,FALSE)) -> 0 | I37: 21
H38: =IF(ISNA(VLOOKUP(I38,Totals!$AX$3:$AY$102,2,FALSE)),"",VLOOKUP(I38,Totals!$AX$3:$AY$102,2,FALSE)) -> 0 | I38: =IF(G38=G37,I37,IF(ISNA(RANK(G38,G$5:G$150)),"",RANK(G38,G$5:G$150))) -> 21
H39: =IF(ISNA(VLOOKUP(I39,Totals!$AX$3:$AY$102,2,FALSE)),"",VLOOKUP(I39,Totals!$AX$3:$AY$102,2,FALSE)) -> 0 | I39: 21
H40: =IF(ISNA(VLOOKUP(I40,Totals!$AX$3:$AY$102,2,FALSE)),"",VLOOKUP(I40,Totals!$AX$3:$AY$102,2,FALSE)) -> 0 | I40: 21
H41: =IF(ISNA(VLOOKUP(I41,Totals!$AX$3:$AY$102,2,FALSE)),"",VLOOKUP(I41,Totals!$AX$3:$AY$102,2,FALSE)) -> 0 | I41: 21
H42: =IF(ISNA(VLOOKUP(I42,Totals!$AX$3:$AY$102,2,FALSE)),"",VLOOKUP(I42,Totals!$AX$3:$AY$102,2,FALSE)) -> 0 | I42: 21
H43: =IF(ISNA(VLOOKUP(I43,Totals!$AX$3:$AY$102,2,FALSE)),"",VLOOKUP(I43,Totals!$AX$3:$AY$102,2,FALSE)) -> 0 | I43: 21
H44: =IF(ISNA(VLOOKUP(I44,Totals!$AX$3:$AY$102,2,FALSE)),"",VLOOKUP(I44,Totals!$AX$3:$AY$102,2,FALSE)) -> 0 | I44: 21
H45: =IF(ISNA(VLOOKUP(I45,Totals!$AX$3:$AY$102,2,FALSE)),"",VLOOKUP(I45,Totals!$AX$3:$AY$102,2,FALSE)) -> 0 | I45: 21
H46: =IF(ISNA(VLOOKUP(I46,Totals!$AX$3:$AY$102,2,FALSE)),"",VLOOKUP(I46,Totals!$AX$3:$AY$102,2,FALSE)) -> 0 | I46: 21
H47: =IF(ISNA(VLOOKUP(I47,Totals!$AX$3:$AY$102,2,FALSE)),"",VLOOKUP(I47,Totals!$AX$3:$AY$102,2,FALSE)) -> 0 | I47: 21
H48: =IF(ISNA(VLOOKUP(I48,Totals!$AX$3:$AY$102,2,FALSE)),"",VLOOKUP(I48,Totals!$AX$3:$AY$102,2,FALSE)) -> 0 | I48: 21
H49: =IF(ISNA(VLOOKUP(I49,Totals!$AX$3:$AY$102,2,FALSE)),"",VLOOKUP(I49,Totals!$AX$3:$AY$102,2,FALSE)) -> 0 | I49: 21
H50: =IF(ISNA(VLOOKUP(I50,Totals!$AX$3:$AY$102,2,FALSE)),"",VLOOKUP(I50,Totals!$AX$3:$AY$102,2,FALSE)) -> 0 | I50: 21
H51: =IF(ISNA(VLOOKUP(I51,Totals!$AX$3:$AY$102,2,FALSE)),"",VLOOKUP(I51,Totals!$AX$3:$AY$102,2,FALSE)) -> 0 | I51: 21
H52: =IF(ISNA(VLOOKUP(I52,Totals!$AX$3:$AY$102,2,FALSE)),"",VLOOKUP(I52,Totals!$AX$3:$AY$102,2,FALSE)) -> 0 | I52: 21
H53: =IF(ISNA(VLOOKUP(I53,Totals!$AX$3:$AY$102,2,FALSE)),"",VLOOKUP(I53,Totals!$AX$3:$AY$102,2,FALSE)) -> 0 | I53: 21
H54: =IF(ISNA(VLOOKUP(I54,Totals!$AX$3:$AY$102,2,FALSE)),"",VLOOKUP(I54,Totals!$AX$3:$AY$102,2,FALSE)) -> 0 | I54: 21
H55: =IF(ISNA(VLOOKUP(I55,Totals!$AX$3:$AY$102,2,FALSE)),"",VLOOKUP(I55,Totals!$AX$3:$AY$102,2,FALSE)) -> 0 | I55: 21
H56: =IF(ISNA(VLOOKUP(I56,Totals!$AX$3:$AY$102,2,FALSE)),"",VLOOKUP(I56,Totals!$AX$3:$AY$102,2,FALSE)) -> 0 | I56: 21
H57: =IF(ISNA(VLOOKUP(I57,Totals!$AX$3:$AY$102,2,FALSE)),"",VLOOKUP(I57,Totals!$AX$3:$AY$102,2,FALSE)) -> 0 | I57: 21
H58: =IF(ISNA(VLOOKUP(I58,Totals!$AX$3:$AY$102,2,FALSE)),"",VLOOKUP(I58,Totals!$AX$3:$AY$102,2,FALSE)) -> 0 | I58: 21
H59: =IF(ISNA(VLOOKUP(I59,Totals!$AX$3:$AY$102,2,FALSE)),"",VLOOKUP(I59,Totals!$AX$3:$AY$102,2,FALSE)) -> 0 | I59: 21
H60: =IF(ISNA(VLOOKUP(I60,Totals!$AX$3:$AY$102,2,FALSE)),"",VLOOKUP(I60,Totals!$AX$3:$AY$102,2,FALSE)) -> 0 | I60: 21
H61: =IF(ISNA(VLOOKUP(I61,Totals!$AX$3:$AY$102,2,FALSE)),"",VLOOKUP(I61,Totals!$AX$3:$AY$102,2,FALSE)) -> 0 | I61: 21
H62: =IF(ISNA(VLOOKUP(I62,Totals!$AX$3:$AY$102,2,FALSE)),"",VLOOKUP(I62,Totals!$AX$3:$AY$102,2,FALSE)) -> 0 | I62: 21
H63: =IF(ISNA(VLOOKUP(I63,Totals!$AX$3:$AY$102,2,FALSE)),"",VLOOKUP(I63,Totals!$AX$3:$AY$102,2,FALSE)) -> 0 | I63: 21
H64: =IF(ISNA(VLOOKUP(I64,Totals!$AX$3:$AY$102,2,FALSE)),"",VLOOKUP(I64,Totals!$AX$3:$AY$102,2,FALSE)) -> 0 | I64: 21
H65: =IF(ISNA(VLOOKUP(I65,Totals!$AX$3:$AY$102,2,FALSE)),"",VLOOKUP(I65,Totals!$AX$3:$AY$102,2,FALSE)) -> 0 | I65: 21
H66: =IF(ISNA(VLOOKUP(I66,Totals!$AX$3:$AY$102,2,FALSE)),"",VLOOKUP(I66,Totals!$AX$3:$AY$102,2,FALSE)) -> 0 | I66: 21
H67: =IF(ISNA(VLOOKUP(I67,Totals!$AX$3:$AY$102,2,FALSE)),"",VLOOKUP(I67,Totals!$AX$3:$AY$102,2,FALSE)) -> 0 | I67: 21
H68: =IF(ISNA(VLOOKUP(I68,Totals!$AX$3:$AY$102,2,FALSE)),"",VLOOKUP(I68,Totals!$AX$3:$AY$102,2,FALSE)) -> 0 | I68: 21
H69: =IF(ISNA(VLOOKUP(I69,Totals!$AX$3:$AY$102,2,FALSE)),"",VLOOKUP(I69,Totals!$AX$3:$AY$102,2,FALSE)) -> 0 | I69: 21
H70: =IF(ISNA(VLOOKUP(I70,Totals!$AX$3:$AY$102,2,FALSE)),"",VLOOKUP(I70,Totals!$AX$3:$AY$102,2,FALSE)) -> 0 | I70: 21
H71: =IF(ISNA(VLOOKUP(I71,Totals!$AX$3:$AY$102,2,FALSE)),"",VLOOKUP(I71,Totals!$AX$3:$AY$102,2,FALSE)) -> 0 | I71: =IF(G71=G70,I70,IF(ISNA(RANK(G71,G$5:G$150)),"",RANK(G71,G$5:G$150))) -> 21
H72: =IF(ISNA(VLOOKUP(I72,Totals!$AX$3:$AY$102,2,FALSE)),"",VLOOKUP(I72,Totals!$AX$3:$AY$102,2,FALSE)) -> 0 | I72: 21
H73: =IF(ISNA(VLOOKUP(I73,Totals!$AX$3:$AY$102,2,FALSE)),"",VLOOKUP(I73,Totals!$AX$3:$AY$102,2,FALSE)) -> 0 | I73: 21
H74: =IF(ISNA(VLOOKUP(I74,Totals!$AX$3:$AY$102,2,FALSE)),"",VLOOKUP(I74,Totals!$AX$3:$AY$102,2,FALSE)) -> 0 | I74: 21
H75: =IF(ISNA(VLOOKUP(I75,Totals!$AX$3:$AY$102,2,FALSE)),"",VLOOKUP(I75,Totals!$AX$3:$AY$102,2,FALSE)) -> 0 | I75: 21
H76: =IF(ISNA(VLOOKUP(I76,Totals!$AX$3:$AY$102,2,FALSE)),"",VLOOKUP(I76,Totals!$AX$3:$AY$102,2,FALSE)) -> 0 | I76: 21
H77: =IF(ISNA(VLOOKUP(I77,Totals!$AX$3:$AY$102,2,FALSE)),"",VLOOKUP(I77,Totals!$AX$3:$AY$102,2,FALSE)) -> 0 | I77: 21
H78: =IF(ISNA(VLOOKUP(I78,Totals!$AX$3:$AY$102,2,FALSE)),"",VLOOKUP(I78,Totals!$AX$3:$AY$102,2,FALSE)) -> 0 | I78: 21
H79: =IF(ISNA(VLOOKUP(I79,Totals!$AX$3:$AY$102,2,FALSE)),"",VLOOKUP(I79,Totals!$AX$3:$AY$102,2,FALSE)) -> 0 | I79: 21
H80: =IF(ISNA(VLOOKUP(I80,Totals!$AX$3:$AY$102,2,FALSE)),"",VLOOKUP(I80,Totals!$AX$3:$AY$102,2,FALSE)) -> 0 | I80: 21
H81: =IF(ISNA(VLOOKUP(I81,Totals!$AX$3:$AY$102,2,FALSE)),"",VLOOKUP(I81,Totals!$AX$3:$AY$102,2,FALSE)) -> 0 | I81: 21
H82: =IF(ISNA(VLOOKUP(I82,Totals!$AX$3:$AY$102,2,FALSE)),"",VLOOKUP(I82,Totals!$AX$3:$AY$102,2,FALSE)) -> 0 | I82: 21
H83: =IF(ISNA(VLOOKUP(I83,Totals!$AX$3:$AY$102,2,FALSE)),"",VLOOKUP(I83,Totals!$AX$3:$AY$102,2,FALSE)) -> 0 | I83: 21
H84: =IF(ISNA(VLOOKUP(I84,Totals!$AX$3:$AY$102,2,FALSE)),"",VLOOKUP(I84,Totals!$AX$3:$AY$102,2,FALSE)) -> 0 | I84: 21
H85: =IF(ISNA(VLOOKUP(I85,Totals!$AX$3:$AY$102,2,FALSE)),"",VLOOKUP(I85,Totals!$AX$3:$AY$102,2,FALSE)) -> 0 | I85: 21
H86: =IF(ISNA(VLOOKUP(I86,Totals!$AX$3:$AY$102,2,FALSE)),"",VLOOKUP(I86,Totals!$AX$3:$AY$102,2,FALSE)) -> 0 | I86: 21
H87: =IF(ISNA(VLOOKUP(I87,Totals!$AX$3:$AY$102,2,FALSE)),"",VLOOKUP(I87,Totals!$AX$3:$AY$102,2,FALSE)) -> 0 | I87: 21
H88: =IF(ISNA(VLOOKUP(I88,Totals!$AX$3:$AY$102,2,FALSE)),"",VLOOKUP(I88,Totals!$AX$3:$AY$102,2,FALSE)) -> 0 | I88: 21
H89: =IF(ISNA(VLOOKUP(I89,Totals!$AX$3:$AY$102,2,FALSE)),"",VLOOKUP(I89,Totals!$AX$3:$AY$102,2,FALSE)) -> 0 | I89: 21
H90: =IF(ISNA(VLOOKUP(I90,Totals!$AX$3:$AY$102,2,FALSE)),"",VLOOKUP(I90,Totals!$AX$3:$AY$102,2,FALSE)) -> 0 | I90: 21
H91: =IF(ISNA(VLOOKUP(I91,Totals!$AX$3:$AY$102,2,FALSE)),"",VLOOKUP(I91,Totals!$AX$3:$AY$102,2,FALSE)) -> 0 | I91: 21
H92: =IF(ISNA(VLOOKUP(I92,Totals!$AX$3:$AY$102,2,FALSE)),"",VLOOKUP(I92,Totals!$AX$3:$AY$102,2,FALSE)) -> 0 | I92: 21
H93: =IF(ISNA(VLOOKUP(I93,Totals!$AX$3:$AY$102,2,FALSE)),"",VLOOKUP(I93,Totals!$AX$3:$AY$102,2,FALSE)) -> 0 | I93: 21
H94: =IF(ISNA(VLOOKUP(I94,Totals!$AX$3:$AY$102,2,FALSE)),"",VLOOKUP(I94,Totals!$AX$3:$AY$102,2,FALSE)) -> 0 | I94: 21
H95: =IF(ISNA(VLOOKUP(I95,Totals!$AX$3:$AY$102,2,FALSE)),"",VLOOKUP(I95,Totals!$AX$3:$AY$102,2,FALSE)) -> 0 | I95: 21
H96: =IF(ISNA(VLOOKUP(I96,Totals!$AX$3:$AY$102,2,FALSE)),"",VLOOKUP(I96,Totals!$AX$3:$AY$102,2,FALSE)) -> 0 | I96: 21
H97: =IF(ISNA(VLOOKUP(I97,Totals!$AX$3:$AY$102,2,FALSE)),"",VLOOKUP(I97,Totals!$AX$3:$AY$102,2,FALSE)) -> 0 | I97: 21
H98: =IF(ISNA(VLOOKUP(I98,Totals!$AX$3:$AY$102,2,FALSE)),"",VLOOKUP(I98,Totals!$AX$3:$AY$102,2,FALSE)) -> 0 | I98: 21
H99: =IF(ISNA(VLOOKUP(I99,Totals!$AX$3:$AY$102,2,FALSE)),"",VLOOKUP(I99,Totals!$AX$3:$AY$102,2,FALSE)) -> 0 | I99: 21
H100: =IF(ISNA(VLOOKUP(I100,Totals!$AX$3:$AY$102,2,FALSE)),"",VLOOKUP(I100,Totals!$AX$3:$AY$102,2,FALSE)) -> 0 | I100: 21
H101: =IF(ISNA(VLOOKUP(I101,Totals!$AX$3:$AY$102,2,FALSE)),"",VLOOKUP(I101,Totals!$AX$3:$AY$102,2,FALSE)) -> 0 | I101: 21
H102: =IF(ISNA(VLOOKUP(I102,Totals!$AX$3:$AY$102,2,FALSE)),"",VLOOKUP(I102,Totals!$AX$3:$AY$102,2,FALSE)) -> 0 | I102: 21
H103: =IF(ISNA(VLOOKUP(I103,Totals!$AX$3:$AY$102,2,FALSE)),"",VLOOKUP(I103,Totals!$AX$3:$AY$102,2,FALSE)) -> 0 | I103: 21
H104: =IF(ISNA(VLOOKUP(I104,Totals!$AX$3:$AY$102,2,FALSE)),"",VLOOKUP(I104,Totals!$AX$3:$AY$102,2,FALSE)) -> 0 | I104: 21
H105: =IF(ISNA(VLOOKUP(I105,Totals!$AX$3:$AY$102,2,FALSE)),"",VLOOKUP(I105,Totals!$AX$3:$AY$102,2,FALSE)) -> 0 | I105: 21
H106: =IF(ISNA(VLOOKUP(I106,Totals!$AX$3:$AY$102,2,FALSE)),"",VLOOKUP(I106,Totals!$AX$3:$AY$102,2,FALSE)) -> 0 | I106: 21
H107: =IF(ISNA(VLOOKUP(I107,Totals!$AX$3:$AY$102,2,FALSE)),"",VLOOKUP(I107,Totals!$AX$3:$AY$102,2,FALSE)) -> 0 | I107: 21
H108: =IF(ISNA(VLOOKUP(I108,Totals!$AX$3:$AY$102,2,FALSE)),"",VLOOKUP(I108,Totals!$AX$3:$AY$102,2,FALSE)) -> 0 | I108: 21
H109: =IF(ISNA(VLOOKUP(I109,Totals!$AX$3:$AY$102,2,FALSE)),"",VLOOKUP(I109,Totals!$AX$3:$AY$102,2,FALSE)) -> 0 | I109: 21
H110: =IF(ISNA(VLOOKUP(I110,Totals!$AX$3:$AY$102,2,FALSE)),"",VLOOKUP(I110,Totals!$AX$3:$AY$102,2,FALSE)) -> 0 | I110: 21
H111: =IF(ISNA(VLOOKUP(I111,Totals!$AX$3:$AY$102,2,FALSE)),"",VLOOKUP(I111,Totals!$AX$3:$AY$102,2,FALSE)) -> 0 | I111: 21
H112: =IF(ISNA(VLOOKUP(I112,Totals!$AX$3:$AY$102,2,FALSE)),"",VLOOKUP(I112,Totals!$AX$3:$AY$102,2,FALSE)) -> 0 | I112: 21
H113: =IF(ISNA(VLOOKUP(I113,Totals!$AX$3:$AY$102,2,FALSE)),"",VLOOKUP(I113,Totals!$AX$3:$AY$102,2,FALSE)) -> 0 | I113: 21
H114: =IF(ISNA(VLOOKUP(I114,Totals!$AX$3:$AY$102,2,FALSE)),"",VLOOKUP(I114,Totals!$AX$3:$AY$102,2,FALSE)) -> 0 | I114: 21
H115: =IF(ISNA(VLOOKUP(I115,Totals!$AX$3:$AY$102,2,FALSE)),"",VLOOKUP(I115,Totals!$AX$3:$AY$102,2,FALSE)) -> 0 | I115: 21
H116: =IF(ISNA(VLOOKUP(I116,Totals!$AX$3:$AY$102,2,FALSE)),"",VLOOKUP(I116,Totals!$AX$3:$AY$102,2,FALSE)) -> 0 | I116: 21
H117: =IF(ISNA(VLOOKUP(I117,Totals!$AX$3:$AY$102,2,FALSE)),"",VLOOKUP(I117,Totals!$AX$3:$AY$102,2,FALSE)) -> 0 | I117: 21
H118: =IF(ISNA(VLOOKUP(I118,Totals!$AX$3:$AY$102,2,FALSE)),"",VLOOKUP(I118,Totals!$AX$3:$AY$102,2,FALSE)) -> 0 | I118: 21
H119: =IF(ISNA(VLOOKUP(I119,Totals!$AX$3:$AY$102,2,FALSE)),"",VLOOKUP(I119,Totals!$AX$3:$AY$102,2,FALSE)) -> 0 | I119: 21
H120: =IF(ISNA(VLOOKUP(I120,Totals!$AX$3:$AY$102,2,FALSE)),"",VLOOKUP(I120,Totals!$AX$3:$AY$102,2,FALSE)) -> 0 | I120: 21
H121: =IF(ISNA(VLOOKUP(I121,Totals!$AX$3:$AY$102,2,FALSE)),"",VLOOKUP(I121,Totals!$AX$3:$AY$102,2,FALSE)) -> 0 | I121: 21
H122: =IF(ISNA(VLOOKUP(I122,Totals!$AX$3:$AY$102,2,FALSE)),"",VLOOKUP(I122,Totals!$AX$3:$AY$102,2,FALSE)) -> 0 | I122: 21
H123: =IF(ISNA(VLOOKUP(I123,Totals!$AX$3:$AY$102,2,FALSE)),"",VLOOKUP(I123,Totals!$AX$3:$AY$102,2,FALSE)) -> 0 | I123: 21
H124: =IF(ISNA(VLOOKUP(I124,Totals!$AX$3:$AY$102,2,FALSE)),"",VLOOKUP(I124,Totals!$AX$3:$AY$102,2,FALSE)) -> 0 | I124: 21
H125: =IF(ISNA(VLOOKUP(I125,Totals!$AX$3:$AY$102,2,FALSE)),"",VLOOKUP(I125,Totals!$AX$3:$AY$102,2,FALSE)) -> 0 | I125: 21
H126: =IF(ISNA(VLOOKUP(I126,Totals!$AX$3:$AY$102,2,FALSE)),"",VLOOKUP(I126,Totals!$AX$3:$AY$102,2,FALSE)) -> 0 | I126: 21
H127: =IF(ISNA(VLOOKUP(I127,Totals!$AX$3:$AY$102,2,FALSE)),"",VLOOKUP(I127,Totals!$AX$3:$AY$102,2,FALSE)) -> 0 | I127: 21
H128: =IF(ISNA(VLOOKUP(I128,Totals!$AX$3:$AY$102,2,FALSE)),"",VLOOKUP(I128,Totals!$AX$3:$AY$102,2,FALSE)) -> 0 | I128: 21
H129: =IF(ISNA(VLOOKUP(I129,Totals!$AX$3:$AY$102,2,FALSE)),"",VLOOKUP(I129,Totals!$AX$3:$AY$102,2,FALSE)) -> 0 | I129: 21
H130: =IF(ISNA(VLOOKUP(I130,Totals!$AX$3:$AY$102,2,FALSE)),"",VLOOKUP(I130,Totals!$AX$3:$AY$102,2,FALSE)) -> 0 | I130: 21
H131: =IF(ISNA(VLOOKUP(I131,Totals!$AX$3:$AY$102,2,FALSE)),"",VLOOKUP(I131,Totals!$AX$3:$AY$102,2,FALSE)) -> 0 | I131: 21
H132: =IF(ISNA(VLOOKUP(I132,Totals!$AX$3:$AY$102,2,FALSE)),"",VLOOKUP(I132,Totals!$AX$3:$AY$102,2,FALSE)) -> 0 | I132: 21
H133: =IF(ISNA(VLOOKUP(I133,Totals!$AX$3:$AY$102,2,FALSE)),"",VLOOKUP(I133,Totals!$AX$3:$AY$102,2,FALSE)) -> 0 | I133: 21
H134: =IF(ISNA(VLOOKUP(I134,Totals!$AX$3:$AY$102,2,FALSE)),"",VLOOKUP(I134,Totals!$AX$3:$AY$102,2,FALSE)) -> 0 | I134: 21
H135: =IF(ISNA(VLOOKUP(I135,Totals!$AX$3:$AY$102,2,FALSE)),"",VLOOKUP(I135,Totals!$AX$3:$AY$102,2,FALSE)) -> 0 | I135: =IF(G135=G134,I134,IF(ISNA(RANK(G135,G$5:G$150)),"",RANK(G135,G$5:G$150))) -> 21
H136: =IF(ISNA(VLOOKUP(I136,Totals!$AX$3:$AY$102,2,FALSE)),"",VLOOKUP(I136,Totals!$AX$3:$AY$102,2,FALSE)) -> 0 | I136: 21
H137: =IF(ISNA(VLOOKUP(I137,Totals!$AX$3:$AY$102,2,FALSE)),"",VLOOKUP(I137,Totals!$AX$3:$AY$102,2,FALSE)) -> 0 | I137: 21
H138: =IF(ISNA(VLOOKUP(I138,Totals!$AX$3:$AY$102,2,FALSE)),"",VLOOKUP(I138,Totals!$AX$3:$AY$102,2,FALSE)) -> 0 | I138: 21
H139: =IF(ISNA(VLOOKUP(I139,Totals!$AX$3:$AY$102,2,FALSE)),"",VLOOKUP(I139,Totals!$AX$3:$AY$102,2,FALSE)) -> 0 | I139: 21
H140: =IF(ISNA(VLOOKUP(I140,Totals!$AX$3:$AY$102,2,FALSE)),"",VLOOKUP(I140,Totals!$AX$3:$AY$102,2,FALSE)) -> 0 | I140: 21
H141: =IF(ISNA(VLOOKUP(I141,Totals!$AX$3:$AY$102,2,FALSE)),"",VLOOKUP(I141,Totals!$AX$3:$AY$102,2,FALSE)) -> 0 | I141: 21
H142: =IF(ISNA(VLOOKUP(I142,Totals!$AX$3:$AY$102,2,FALSE)),"",VLOOKUP(I142,Totals!$AX$3:$AY$102,2,FALSE)) -> 0 | I142: 21
H143: =IF(ISNA(VLOOKUP(I143,Totals!$AX$3:$AY$102,2,FALSE)),"",VLOOKUP(I143,Totals!$AX$3:$AY$102,2,FALSE)) -> 0 | I143: 21
H144: =IF(ISNA(VLOOKUP(I144,Totals!$AX$3:$AY$102,2,FALSE)),"",VLOOKUP(I144,Totals!$AX$3:$AY$102,2,FALSE)) -> 0 | I144: 21
H145: =IF(ISNA(VLOOKUP(I145,Totals!$AX$3:$AY$102,2,FALSE)),"",VLOOKUP(I145,Totals!$AX$3:$AY$102,2,FALSE)) -> 0 | I145: 21
H146: =IF(ISNA(VLOOKUP(I146,Totals!$AX$3:$AY$102,2,FALSE)),"",VLOOKUP(I146,Totals!$AX$3:$AY$102,2,FALSE)) -> 0 | I146: 21
H147: =IF(ISNA(VLOOKUP(I147,Totals!$AX$3:$AY$102,2,FALSE)),"",VLOOKUP(I147,Totals!$AX$3:$AY$102,2,FALSE)) -> 0 | I147: 21
H148: =IF(ISNA(VLOOKUP(I148,Totals!$AX$3:$AY$102,2,FALSE)),"",VLOOKUP(I148,Totals!$AX$3:$AY$102,2,FALSE)) -> 0 | I148: 21
H149: =IF(ISNA(VLOOKUP(I149,Totals!$AX$3:$AY$102,2,FALSE)),"",VLOOKUP(I149,Totals!$AX$3:$AY$102,2,FALSE)) -> 0 | I149: 21
H150: =IF(ISNA(VLOOKUP(I150,Totals!$AX$3:$AY$102,2,FALSE)),"",VLOOKUP(I150,Totals!$AX$3:$AY$102,2,FALSE)) -> 0 | I150: 21
